Workbook

Sheet INFORMATIONS GENERALES
C16: CLUB ORGANISATEUR : | G16: Commission Mouche FFPS | L16: LIEU DE L'EPREUVE : | Q16: 28ème CNPL Clermont Ferrand
C19: TYPE D'EPREUVE : | G19: Finale CDF 2016 | L19: NOMBRE TOTAL DE COMPETITEURS : | Q19: 29
C22: DATE : | G22: 2017-01-14 | L22: ANNEE DU PROGRAMME DE MONTAGE : | Q22: 2016
D28: JURY DE L'EPPREUVE :
D31: N°Juge | E31: NOM | H31: Prénom | K31: Club
O32: ATTENTION !
D33: 1 | E33: CORRE | H33: Stéphane | K33: CR ARA | O33: IL EST INDISPENSABLE D'ACTIVER LES MACROS POUR UTILISER LE LOGICIEL DE CLASSEMENT
D35: 2 | E35: OULION | H35: Jean | K35: CR ARA
D37: 3 | E37: BONNOT | H37: André | K37: CR Bourgogne
D39: 4
D41: 5
S44: Version 6.0 - 30/05/2014

Sheet INFORMATIONS COMPETITEURS
Q1: Benjamin
Q2: Minime
D3: INFORMATIONS COMPETITEURS | Q3: Cadet
Q4: Junior
Q5: Sénior
D6: N° de plaquette | E6: NOM | G6: Prénom | I6: Club | L6: Catégorie | M6: Vérification saisie lignes | Q6: Découverte
Q7: Handisport
Q8: Féminine
D9: 1 | E9: CAMPILLO | G9: Claude | I9: CML | L9: Sénior | M9: ð | N9: =IF(COUNTBLANK(E9:L9)=8,"",IF(T9="ERREUR","û",IF(COUNTBLANK(E9:L9)=4,"ü","û"))) -> ü | R9: =CONCATENATE(E9,G9,I9,L9) -> CAMPILLOClaudeCMLSénior | S9: =IF(R9="","",COUNTIF($R$9:$R$58,R9)) -> 1 | T9: =IF(S9="","",IF(S9>1,"ERREUR","")) ->  | V9: =IF(E9="","",1) -> 1 | W9: =COUNTIF(N9:N58,"ü") -> 29
D10: 2 | E10: DIEGO | G10: Didier | I10: GPD Pays d'Oc | L10: Sénior | M10: ð | N10: =IF(COUNTBLANK(E10:L10)=8,"",IF(T10="ERREUR","û",IF(COUNTBLANK(E10:L10)=4,"ü","û"))) -> ü | R10: =CONCATENATE(E10,G10,I10,L10) -> DIEGODidierGPD Pays d'OcSénior | S10: =IF(R10="","",COUNTIF($R$9:$R$58,R10)) -> 1 | T10: =IF(S10="","",IF(S10>1,"ERREUR","")) ->  | V10: =IF(E10="","",2) -> 2 | W10: =MAX(V9:V58) -> 29
D11: 3 | E11: CREPILLON | G11: Samuel | I11: GPS Nièvre Morvan | L11: Sénior | M11: ð | N11: ü | R11: CREPILLONSamuelGPS Nièvre MorvanSénior | S11: =IF(R11="","",COUNTIF($R$9:$R$58,R11)) -> 1 | T11: =IF(S11="","",IF(S11>1,"ERREUR","")) ->  | V11: =IF(E11="","",3) -> 3
D12: 4 | E12: BIBENT | G12: Valentin | I12: CML | L12: Minime | M12: ð | N12: ü | R12: BIBENTValentinCMLMinime | S12: 1 | T12: =IF(S12="","",IF(S12>1,"ERREUR","")) ->  | V12: =IF(E12="","",4) -> 4 | W12: =IF(W9+W10=0,"PB",IF(W9=W10,1,0)) -> 1
D13: 5 | E13: ALBERGE | G13: Nathalie | I13: CM Pays d'Oc | L13: Féminine | M13: ð | N13: ü | R13: ALBERGENathalieCM Pays d'OcFéminine | S13: 1 | T13: =IF(S13="","",IF(S13>1,"ERREUR","")) ->  | V13: =IF(E13="","",5) -> 5
D14: 6 | E14: GAULON | G14: Jean-Luc | I14: CMCRE | L14: Sénior | M14: ð | N14: ü | R14: GAULONJean-LucCMCRESénior | S14: 1 | V14: =IF(E14="","",6) -> 6
D15: 7 | E15: VILLE | G15: Jérôme | I15: GPS Lyon Centre | L15: Sénior | M15: ð | N15: ü | R15: VILLEJérômeGPS Lyon CentreSénior | S15: 1 | V15: =IF(E15="","",7) -> 7
D16: 8 | E16: RICHARD | G16: Edgard | I16: Ecole de pêche Dijon | L16: Cadet | M16: ð | N16: ü | R16: RICHARDEdgardEcole de pêche DijonCadet | S16: 1 | V16: =IF(E16="","",8) -> 8
D17: 9 | E17: Le Bourhis Beyer | G17: Solène | I17: CM Arzano | L17: Féminine | M17: ð | N17: ü | R17: Le Bourhis BeyerSolèneCM ArzanoFéminine | S17: 1 | V17: =IF(E17="","",9) -> 9
D18: 10 | E18: MASSON | G18: Guy | I18: GPS Lyon Centre | L18: Sénior | M18: ð | N18: ü | R18: MASSONGuyGPS Lyon CentreSénior | S18: 1 | V18: =IF(E18="","",10) -> 10
D19: 11 | E19: COMMARET | G19: Gerard | I19: GPS Val de Saone | L19: Handisport | M19: ð | N19: ü | R19: COMMARETGerardGPS Val de SaoneHandisport | S19: 1 | V19: =IF(E19="","",11) -> 11
D20: 12 | E20: PONCET | G20: Stéphane | I20: GPS Bresse Remiremont | L20: Sénior | M20: ð | N20: ü | R20: PONCETStéphaneGPS Bresse RemiremontSénior | S20: 1 | V20: =IF(E20="","",12) -> 12
D21: 13 | E21: CHETAUD | G21: Didier | I21: GPS Val de Saone | L21: Sénior | M21: ð | N21: ü | R21: CHETAUDDidierGPS Val de SaoneSénior | S21: 1 | V21: =IF(E21="","",13) -> 13
D22: 14 | E22: GIAMPRETI | G22: Eric | I22: GPS Lyon Centre | L22: Sénior | M22: ð | N22: ü | R22: GIAMPRETIEricGPS Lyon CentreSénior | S22: 1 | V22: =IF(E22="","",14) -> 14
D23: 15 | E23: EVENNOU | G23: Frédéric | I23: GPS Lyon Centre | L23: Sénior | M23: ð | N23: ü | R23: EVENNOUFrédéricGPS Lyon CentreSénior | S23: 1 | V23: =IF(E23="","",15) -> 15
D24: 16 | E24: FAIVRE | G24: Bernard | I24: GPS Pays d'Oc | L24: Sénior | M24: ð | N24: ü | R24: =CONCATENATE(E24,G24,I24,L24) -> FAIVREBernardGPS Pays d'OcSénior | S24: 1 | V24: =IF(E24="","",16) -> 16
D25: 17 | E25: Rémi | G25: Bernard | I25: Ecole de pêche Dijon | L25: Benjamin | M25: ð | N25: ü | R25: RémiBernardEcole de pêche DijonBenjamin | S25: =IF(R25="","",COUNTIF($R$9:$R$58,R25)) -> 1 | V25: =IF(E25="","",17) -> 17
D26: 18 | E26: FAUVELLIERE | G26: Denis | I26: CM Plaisir | L26: Sénior | M26: ð | N26: ü | R26: FAUVELLIEREDenisCM PlaisirSénior | S26: 1 | T26: =IF(S26="","",IF(S26>1,"ERREUR","")) ->  | V26: =IF(E26="","",18) -> 18
D27: 19 | E27: GOMINET | G27: Lionel | I27: GPS Pays d'Oc | L27: Sénior | M27: ð | N27: ü | R27: GOMINETLionelGPS Pays d'OcSénior | S27: 1 | V27: =IF(E27="","",19) -> 19
D28: 20 | E28: MAACH | G28: HAMZA | I28: Ecole de pêche Dijon | L28: Benjamin | M28: ð | N28: ü | R28: MAACHHAMZAEcole de pêche DijonBenjamin | S28: 1 | V28: =IF(E28="","",20) -> 20
D29: 21 | E29: DEZOTHEZ | G29: Dimitri | I29: Club Mouche du gévaudan | L29: Minime | M29: ð | N29: ü | R29: DEZOTHEZDimitriClub Mouche du gévaudanMinime | S29: 1 | V29: =IF(E29="","",21) -> 21
D30: 22 | E30: BRULEY | G30: Dominique | I30: GPS Val de Saone | L30: Sénior | M30: ð | N30: ü | R30: BRULEYDominiqueGPS Val de SaoneSénior | S30: 1 | V30: =IF(E30="","",22) -> 22
D31: 23 | E31: MARTIN | G31: Christophe | I31: CM Plaisir | L31: Sénior | M31: ð | N31: ü | R31: MARTINChristopheCM PlaisirSénior | S31: 1 | V31: =IF(E31="","",23) -> 23
D32: 24 | E32: VILLA | G32: Gérard | I32: GPS Pays d'Oc | L32: Sénior | M32: ð | N32: ü | R32: VILLAGérardGPS Pays d'OcSénior | S32: 1 | V32: =IF(E32="","",24) -> 24
D33: 25 | E33: JACQUOT | G33: patrick | I33: GPS Val de Saone | L33: Sénior | M33: ð | N33: ü | R33: JACQUOTpatrickGPS Val de SaoneSénior | S33: 1 | V33: =IF(E33="","",25) -> 25
D34: 26 | E34: CALAVIA | G34: Henri | I34: CMCRE | L34: Sénior | M34: ð | N34: ü | R34: CALAVIAHenriCMCRESénior | S34: 1 | V34: =IF(E34="","",26) -> 26
D35: 27 | E35: JEANIN | G35: Batiste | I35: Ecole de pêche Dijon | L35: Cadet | M35: ð | N35: ü | R35: JEANINBatisteEcole de pêche DijonCadet | S35: 1 | V35: =IF(E35="","",27) -> 27
D36: 28 | E36: CAZARETH | G36: Règis | I36: GPS Décines | L36: Sénior | M36: ð | N36: ü | R36: CAZARETHRègisGPS DécinesSénior | S36: 1 | V36: =IF(E36="","",28) -> 28
D37: 29 | E37: DENIL | G37: BOUAFFIA | I37: GPS | L37: Minime | M37: ð | N37: ü | R37: DENILBOUAFFIAGPSMinime | S37: 1 | V37: =IF(E37="","",29) -> 29
D38: 30 | M38: ð | V38: =IF(E38="","",30) -> 
D39: 31 | M39: ð | V39: =IF(E39="","",31) -> 
D40: 32 | M40: ð | V40: =IF(E40="","",32) -> 
D41: 33 | M41: ð | V41: =IF(E41="","",33) -> 
D42: 34 | M42: ð | V42: =IF(E42="","",34) -> 
D43: 35 | M43: ð | V43: =IF(E43="","",35) -> 
D44: 36 | M44: ð | V44: =IF(E44="","",36) -> 
D45: 37 | M45: ð | V45: =IF(E45="","",37) -> 
D46: 38 | M46: ð | V46: =IF(E46="","",38) -> 
D47: 39 | M47: ð | V47: =IF(E47="","",39) -> 
D48: 40 | M48: ð | V48: =IF(E48="","",40) -> 
D49: 41 | M49: ð | V49: =IF(E49="","",41) -> 
D50: 42 | M50: ð | V50: =IF(E50="","",42) -> 
D51: 43 | M51: ð | V51: =IF(E51="","",43) -> 
D52: 44 | M52: ð | V52: =IF(E52="","",44) -> 
D53: 45 | M53: ð | V53: =IF(E53="","",45) -> 
D54: 46 | M54: ð | V54: =IF(E54="","",46) -> 
D55: 47 | M55: ð | V55: =IF(E55="","",47) -> 
D56: 48 | M56: ð | V56: =IF(E56="","",48) -> 
D57: 49 | M57: ð | V57: =IF(E57="","",49) -> 
D58: 50 | M58: ð | V58: =IF(E58="","",50) -> 
D59: =IF(AND(COUNTIF(N9:N58,"ü")=0,COUNTIF(N9:N58,"û")=0,'INFORMATIONS GENERALES'!Q19=0),"TABLEAU DE SAISIE NON CONFORME",IF(AND(COUNTIF(N9:N58,"ü")='INFORMATIONS GENERALES'!Q19,COUNTIF(N9:N58,"û")=0,W12=1),"TABLEAU DE SAISIE CONFORME","TABLEAU DE SAISIE NON CONFORME")) -> TABLEAU DE SAISIE CONFORME
D64: =IF(D59="TABLEAU DE SAISIE NON CONFORME","AIDE :","") -> 
D65: =IF(D59="TABLEAU DE SAISIE NON CONFORME","Vérifiez l'information relative au nombre de compétiteurs dans la feuille INFORMATIONS GENERALES.","") -> 
D66: =IF(D59="TABLEAU DE SAISIE NON CONFORME","Vérifiez que toutes les lignes du tableau ci-dessus relatives aux compétiteurs soient complétement renseignées et uniques.","") -> 
D67: =IF(D59="TABLEAU DE SAISIE NON CONFORME","Vérifiez qu'il n'y a pas de ligne vide entre 2 compétiteurs et que la première ligne du tableau est renseignée.","") -> 

Sheet MOUCHE N°1
D3: SAISIE DES RESULTATS - MOUCHE N°1
D6: N° de plaquette | E6: Compétiteur | H6: Club | K6: RESULTATS DES JUGES | P6: POINTS MOUCHES
K8: Juge N°1 | L8: Juge N°2 | M8: Juge N°3 | N8: Juge N°4 | O8: Juge N°5
D10: ='INFORMATIONS COMPETITEURS'!D9 -> 1 | E10: =IF('INFORMATIONS COMPETITEURS'!$D$59="TABLEAU DE SAISIE CONFORME",CONCATENATE('INFORMATIONS COMPETITEURS'!G9," ",'INFORMATIONS COMPETITEURS'!E9),"") -> Claude CAMPILLO | H10: =IF('INFORMATIONS COMPETITEURS'!$D$59="TABLEAU DE SAISIE CONFORME",IF('INFORMATIONS COMPETITEURS'!I9="","",'INFORMATIONS COMPETITEURS'!I9),"") -> CML | K10: 58 | L10: 57 | M10: 54 | P10: =IF('INFORMATIONS COMPETITEURS'!$D$59="TABLEAU DE SAISIE NON CONFORME","",IF(E10=" ",N(0),IF(SUM(K10:O10)=0,N(0),SUM(K10:O10)))) -> 169
D11: ='INFORMATIONS COMPETITEURS'!D10 -> 2 | E11: =IF('INFORMATIONS COMPETITEURS'!$D$59="TABLEAU DE SAISIE CONFORME",CONCATENATE('INFORMATIONS COMPETITEURS'!G10," ",'INFORMATIONS COMPETITEURS'!E10),"") -> Didier DIEGO | H11: =IF('INFORMATIONS COMPETITEURS'!$D$59="TABLEAU DE SAISIE CONFORME",IF('INFORMATIONS COMPETITEURS'!I10="","",'INFORMATIONS COMPETITEURS'!I10),"") -> GPD Pays d'Oc | K11: 92 | L11: 80 | M11: 80 | P11: =IF('INFORMATIONS COMPETITEURS'!$D$59="TABLEAU DE SAISIE NON CONFORME","",IF(E11=" ",N(0),IF(SUM(K11:O11)=0,N(0),SUM(K11:O11)))) -> 252
D12: ='INFORMATIONS COMPETITEURS'!D11 -> 3 | E12: =IF('INFORMATIONS COMPETITEURS'!$D$59="TABLEAU DE SAISIE CONFORME",CONCATENATE('INFORMATIONS COMPETITEURS'!G11," ",'INFORMATIONS COMPETITEURS'!E11),"") -> Samuel CREPILLON | H12: =IF('INFORMATIONS COMPETITEURS'!$D$59="TABLEAU DE SAISIE CONFORME",IF('INFORMATIONS COMPETITEURS'!I11="","",'INFORMATIONS COMPETITEURS'!I11),"") -> GPS Nièvre Morvan | K12: 40 | L12: 40 | M12: 40 | P12: =IF('INFORMATIONS COMPETITEURS'!$D$59="TABLEAU DE SAISIE NON CONFORME","",IF(E12=" ",N(0),IF(SUM(K12:O12)=0,N(0),SUM(K12:O12)))) -> 120
D13: ='INFORMATIONS COMPETITEURS'!D12 -> 4 | E13: =IF('INFORMATIONS COMPETITEURS'!$D$59="TABLEAU DE SAISIE CONFORME",CONCATENATE('INFORMATIONS COMPETITEURS'!G12," ",'INFORMATIONS COMPETITEURS'!E12),"") -> Valentin BIBENT | H13: =IF('INFORMATIONS COMPETITEURS'!$D$59="TABLEAU DE SAISIE CONFORME",IF('INFORMATIONS COMPETITEURS'!I12="","",'INFORMATIONS COMPETITEURS'!I12),"") -> CML | K13: 15 | L13: 25 | M13: 25 | P13: =IF('INFORMATIONS COMPETITEURS'!$D$59="TABLEAU DE SAISIE NON CONFORME","",IF(E13=" ",N(0),IF(SUM(K13:O13)=0,N(0),SUM(K13:O13)))) -> 65
D14: ='INFORMATIONS COMPETITEURS'!D13 -> 5 | E14: =IF('INFORMATIONS COMPETITEURS'!$D$59="TABLEAU DE SAISIE CONFORME",CONCATENATE('INFORMATIONS COMPETITEURS'!G13," ",'INFORMATIONS COMPETITEURS'!E13),"") -> Nathalie ALBERGE | H14: =IF('INFORMATIONS COMPETITEURS'!$D$59="TABLEAU DE SAISIE CONFORME",IF('INFORMATIONS COMPETITEURS'!I13="","",'INFORMATIONS COMPETITEURS'!I13),"") -> CM Pays d'Oc | K14: 62 | L14: 60 | M14: 60 | P14: =IF('INFORMATIONS COMPETITEURS'!$D$59="TABLEAU DE SAISIE NON CONFORME","",IF(E14=" ",N(0),IF(SUM(K14:O14)=0,N(0),SUM(K14:O14)))) -> 182
D15: ='INFORMATIONS COMPETITEURS'!D14 -> 6 | E15: =IF('INFORMATIONS COMPETITEURS'!$D$59="TABLEAU DE SAISIE CONFORME",CONCATENATE('INFORMATIONS COMPETITEURS'!G14," ",'INFORMATIONS COMPETITEURS'!E14),"") -> Jean-Luc GAULON | H15: =IF('INFORMATIONS COMPETITEURS'!$D$59="TABLEAU DE SAISIE CONFORME",IF('INFORMATIONS COMPETITEURS'!I14="","",'INFORMATIONS COMPETITEURS'!I14),"") -> CMCRE | K15: 34 | L15: 40 | M15: 38 | P15: =IF('INFORMATIONS COMPETITEURS'!$D$59="TABLEAU DE SAISIE NON CONFORME","",IF(E15=" ",N(0),IF(SUM(K15:O15)=0,N(0),SUM(K15:O15)))) -> 112
D16: ='INFORMATIONS COMPETITEURS'!D15 -> 7 | E16: =IF('INFORMATIONS COMPETITEURS'!$D$59="TABLEAU DE SAISIE CONFORME",CONCATENATE('INFORMATIONS COMPETITEURS'!G15," ",'INFORMATIONS COMPETITEURS'!E15),"") -> Jérôme VILLE | H16: =IF('INFORMATIONS COMPETITEURS'!$D$59="TABLEAU DE SAISIE CONFORME",IF('INFORMATIONS COMPETITEURS'!I15="","",'INFORMATIONS COMPETITEURS'!I15),"") -> GPS Lyon Centre | K16: 62 | L16: 57 | M16: 57 | P16: =IF('INFORMATIONS COMPETITEURS'!$D$59="TABLEAU DE SAISIE NON CONFORME","",IF(E16=" ",N(0),IF(SUM(K16:O16)=0,N(0),SUM(K16:O16)))) -> 176
D17: ='INFORMATIONS COMPETITEURS'!D16 -> 8 | E17: =IF('INFORMATIONS COMPETITEURS'!$D$59="TABLEAU DE SAISIE CONFORME",CONCATENATE('INFORMATIONS COMPETITEURS'!G16," ",'INFORMATIONS COMPETITEURS'!E16),"") -> Edgard RICHARD | H17: =IF('INFORMATIONS COMPETITEURS'!$D$59="TABLEAU DE SAISIE CONFORME",IF('INFORMATIONS COMPETITEURS'!I16="","",'INFORMATIONS COMPETITEURS'!I16),"") -> Ecole de pêche Dijon | K17: 30 | L17: 35 | M17: 30 | P17: =IF('INFORMATIONS COMPETITEURS'!$D$59="TABLEAU DE SAISIE NON CONFORME","",IF(E17=" ",N(0),IF(SUM(K17:O17)=0,N(0),SUM(K17:O17)))) -> 95
D18: ='INFORMATIONS COMPETITEURS'!D17 -> 9 | E18: =IF('INFORMATIONS COMPETITEURS'!$D$59="TABLEAU DE SAISIE CONFORME",CONCATENATE('INFORMATIONS COMPETITEURS'!G17," ",'INFORMATIONS COMPETITEURS'!E17),"") -> Solène Le Bourhis Beyer | H18: =IF('INFORMATIONS COMPETITEURS'!$D$59="TABLEAU DE SAISIE CONFORME",IF('INFORMATIONS COMPETITEURS'!I17="","",'INFORMATIONS COMPETITEURS'!I17),"") -> CM Arzano | K18: 60 | L18: 60 | M18: 60 | P18: =IF('INFORMATIONS COMPETITEURS'!$D$59="TABLEAU DE SAISIE NON CONFORME","",IF(E18=" ",N(0),IF(SUM(K18:O18)=0,N(0),SUM(K18:O18)))) -> 180
D19: ='INFORMATIONS COMPETITEURS'!D18 -> 10 | E19: =IF('INFORMATIONS COMPETITEURS'!$D$59="TABLEAU DE SAISIE CONFORME",CONCATENATE('INFORMATIONS COMPETITEURS'!G18," ",'INFORMATIONS COMPETITEURS'!E18),"") -> Guy MASSON | H19: =IF('INFORMATIONS COMPETITEURS'!$D$59="TABLEAU DE SAISIE CONFORME",IF('INFORMATIONS COMPETITEURS'!I18="","",'INFORMATIONS COMPETITEURS'!I18),"") -> GPS Lyon Centre | K19: 83 | L19: 85 | M19: 82 | P19: =IF('INFORMATIONS COMPETITEURS'!$D$59="TABLEAU DE SAISIE NON CONFORME","",IF(E19=" ",N(0),IF(SUM(K19:O19)=0,N(0),SUM(K19:O19)))) -> 250
D20: ='INFORMATIONS COMPETITEURS'!D19 -> 11 | E20: =IF('INFORMATIONS COMPETITEURS'!$D$59="TABLEAU DE SAISIE CONFORME",CONCATENATE('INFORMATIONS COMPETITEURS'!G19," ",'INFORMATIONS COMPETITEURS'!E19),"") -> Gerard COMMARET | H20: =IF('INFORMATIONS COMPETITEURS'!$D$59="TABLEAU DE SAISIE CONFORME",IF('INFORMATIONS COMPETITEURS'!I19="","",'INFORMATIONS COMPETITEURS'!I19),"") -> GPS Val de Saone | K20: 19 | L20: 32 | M20: 28 | P20: =IF('INFORMATIONS COMPETITEURS'!$D$59="TABLEAU DE SAISIE NON CONFORME","",IF(E20=" ",N(0),IF(SUM(K20:O20)=0,N(0),SUM(K20:O20)))) -> 79
D21: ='INFORMATIONS COMPETITEURS'!D20 -> 12 | E21: =IF('INFORMATIONS COMPETITEURS'!$D$59="TABLEAU DE SAISIE CONFORME",CONCATENATE('INFORMATIONS COMPETITEURS'!G20," ",'INFORMATIONS COMPETITEURS'!E20),"") -> Stéphane PONCET | H21: =IF('INFORMATIONS COMPETITEURS'!$D$59="TABLEAU DE SAISIE CONFORME",IF('INFORMATIONS COMPETITEURS'!I20="","",'INFORMATIONS COMPETITEURS'!I20),"") -> GPS Bresse Remiremont | K21: 84 | L21: 83 | M21: 77 | P21: =IF('INFORMATIONS COMPETITEURS'!$D$59="TABLEAU DE SAISIE NON CONFORME","",IF(E21=" ",N(0),IF(SUM(K21:O21)=0,N(0),SUM(K21:O21)))) -> 244
D22: ='INFORMATIONS COMPETITEURS'!D21 -> 13 | E22: =IF('INFORMATIONS COMPETITEURS'!$D$59="TABLEAU DE SAISIE CONFORME",CONCATENATE('INFORMATIONS COMPETITEURS'!G21," ",'INFORMATIONS COMPETITEURS'!E21),"") -> Didier CHETAUD | H22: =IF('INFORMATIONS COMPETITEURS'!$D$59="TABLEAU DE SAISIE CONFORME",IF('INFORMATIONS COMPETITEURS'!I21="","",'INFORMATIONS COMPETITEURS'!I21),"") -> GPS Val de Saone | K22: 81 | L22: 82 | M22: 85 | P22: =IF('INFORMATIONS COMPETITEURS'!$D$59="TABLEAU DE SAISIE NON CONFORME","",IF(E22=" ",N(0),IF(SUM(K22:O22)=0,N(0),SUM(K22:O22)))) -> 248
D23: ='INFORMATIONS COMPETITEURS'!D22 -> 14 | E23: =IF('INFORMATIONS COMPETITEURS'!$D$59="TABLEAU DE SAISIE CONFORME",CONCATENATE('INFORMATIONS COMPETITEURS'!G22," ",'INFORMATIONS COMPETITEURS'!E22),"") -> Eric GIAMPRETI | H23: =IF('INFORMATIONS COMPETITEURS'!$D$59="TABLEAU DE SAISIE CONFORME",IF('INFORMATIONS COMPETITEURS'!I22="","",'INFORMATIONS COMPETITEURS'!I22),"") -> GPS Lyon Centre | K23: 71 | L23: 71 | M23: 70 | P23: =IF('INFORMATIONS COMPETITEURS'!$D$59="TABLEAU DE SAISIE NON CONFORME","",IF(E23=" ",N(0),IF(SUM(K23:O23)=0,N(0),SUM(K23:O23)))) -> 212
D24: ='INFORMATIONS COMPETITEURS'!D23 -> 15 | E24: =IF('INFORMATIONS COMPETITEURS'!$D$59="TABLEAU DE SAISIE CONFORME",CONCATENATE('INFORMATIONS COMPETITEURS'!G23," ",'INFORMATIONS COMPETITEURS'!E23),"") -> Frédéric EVENNOU | H24: =IF('INFORMATIONS COMPETITEURS'!$D$59="TABLEAU DE SAISIE CONFORME",IF('INFORMATIONS COMPETITEURS'!I23="","",'INFORMATIONS COMPETITEURS'!I23),"") -> GPS Lyon Centre | K24: 47 | L24: 48 | M24: 44 | P24: =IF('INFORMATIONS COMPETITEURS'!$D$59="TABLEAU DE SAISIE NON CONFORME","",IF(E24=" ",N(0),IF(SUM(K24:O24)=0,N(0),SUM(K24:O24)))) -> 139
D25: ='INFORMATIONS COMPETITEURS'!D24 -> 16 | E25: =IF('INFORMATIONS COMPETITEURS'!$D$59="TABLEAU DE SAISIE CONFORME",CONCATENATE('INFORMATIONS COMPETITEURS'!G24," ",'INFORMATIONS COMPETITEURS'!E24),"") -> Bernard FAIVRE | H25: =IF('INFORMATIONS COMPETITEURS'!$D$59="TABLEAU DE SAISIE CONFORME",IF('INFORMATIONS COMPETITEURS'!I24="","",'INFORMATIONS COMPETITEURS'!I24),"") -> GPS Pays d'Oc | K25: 78 | L25: 75 | M25: 77 | P25: =IF('INFORMATIONS COMPETITEURS'!$D$59="TABLEAU DE SAISIE NON CONFORME","",IF(E25=" ",N(0),IF(SUM(K25:O25)=0,N(0),SUM(K25:O25)))) -> 230
D26: ='INFORMATIONS COMPETITEURS'!D25 -> 17 | E26: =IF('INFORMATIONS COMPETITEURS'!$D$59="TABLEAU DE SAISIE CONFORME",CONCATENATE('INFORMATIONS COMPETITEURS'!G25," ",'INFORMATIONS COMPETITEURS'!E25),"") -> Bernard Rémi | H26: =IF('INFORMATIONS COMPETITEURS'!$D$59="TABLEAU DE SAISIE CONFORME",IF('INFORMATIONS COMPETITEURS'!I25="","",'INFORMATIONS COMPETITEURS'!I25),"") -> Ecole de pêche Dijon | K26: 0 | L26: 0 | M26: 0 | P26: =IF('INFORMATIONS COMPETITEURS'!$D$59="TABLEAU DE SAISIE NON CONFORME","",IF(E26=" ",N(0),IF(SUM(K26:O26)=0,N(0),SUM(K26:O26)))) -> 0
D27: ='INFORMATIONS COMPETITEURS'!D26 -> 18 | E27: =IF('INFORMATIONS COMPETITEURS'!$D$59="TABLEAU DE SAISIE CONFORME",CONCATENATE('INFORMATIONS COMPETITEURS'!G26," ",'INFORMATIONS COMPETITEURS'!E26),"") -> Denis FAUVELLIERE | H27: =IF('INFORMATIONS COMPETITEURS'!$D$59="TABLEAU DE SAISIE CONFORME",IF('INFORMATIONS COMPETITEURS'!I26="","",'INFORMATIONS COMPETITEURS'!I26),"") -> CM Plaisir | K27: 41 | L27: 42 | M27: 41 | P27: =IF('INFORMATIONS COMPETITEURS'!$D$59="TABLEAU DE SAISIE NON CONFORME","",IF(E27=" ",N(0),IF(SUM(K27:O27)=0,N(0),SUM(K27:O27)))) -> 124
D28: ='INFORMATIONS COMPETITEURS'!D27 -> 19 | E28: =IF('INFORMATIONS COMPETITEURS'!$D$59="TABLEAU DE SAISIE CONFORME",CONCATENATE('INFORMATIONS COMPETITEURS'!G27," ",'INFORMATIONS COMPETITEURS'!E27),"") -> Lionel GOMINET | H28: =IF('INFORMATIONS COMPETITEURS'!$D$59="TABLEAU DE SAISIE CONFORME",IF('INFORMATIONS COMPETITEURS'!I27="","",'INFORMATIONS COMPETITEURS'!I27),"") -> GPS Pays d'Oc | K28: 60 | L28: 50 | M28: 51 | P28: =IF('INFORMATIONS COMPETITEURS'!$D$59="TABLEAU DE SAISIE NON CONFORME","",IF(E28=" ",N(0),IF(SUM(K28:O28)=0,N(0),SUM(K28:O28)))) -> 161
D29: ='INFORMATIONS COMPETITEURS'!D28 -> 20 | E29: =IF('INFORMATIONS COMPETITEURS'!$D$59="TABLEAU DE SAISIE CONFORME",CONCATENATE('INFORMATIONS COMPETITEURS'!G28," ",'INFORMATIONS COMPETITEURS'!E28),"") -> HAMZA MAACH | H29: =IF('INFORMATIONS COMPETITEURS'!$D$59="TABLEAU DE SAISIE CONFORME",IF('INFORMATIONS COMPETITEURS'!I28="","",'INFORMATIONS COMPETITEURS'!I28),"") -> Ecole de pêche Dijon | K29: 32 | L29: 30 | M29: 30 | P29: =IF('INFORMATIONS COMPETITEURS'!$D$59="TABLEAU DE SAISIE NON CONFORME","",IF(E29=" ",N(0),IF(SUM(K29:O29)=0,N(0),SUM(K29:O29)))) -> 92
D30: ='INFORMATIONS COMPETITEURS'!D29 -> 21 | E30: =IF('INFORMATIONS COMPETITEURS'!$D$59="TABLEAU DE SAISIE CONFORME",CONCATENATE('INFORMATIONS COMPETITEURS'!G29," ",'INFORMATIONS COMPETITEURS'!E29),"") -> Dimitri DEZOTHEZ | H30: =IF('INFORMATIONS COMPETITEURS'!$D$59="TABLEAU DE SAISIE CONFORME",IF('INFORMATIONS COMPETITEURS'!I29="","",'INFORMATIONS COMPETITEURS'!I29),"") -> Club Mouche du gévaudan | K30: 87 | L30: 87 | M30: 88 | P30: =IF('INFORMATIONS COMPETITEURS'!$D$59="TABLEAU DE SAISIE NON CONFORME","",IF(E30=" ",N(0),IF(SUM(K30:O30)=0,N(0),SUM(K30:O30)))) -> 262
D31: ='INFORMATIONS COMPETITEURS'!D30 -> 22 | E31: =IF('INFORMATIONS COMPETITEURS'!$D$59="TABLEAU DE SAISIE CONFORME",CONCATENATE('INFORMATIONS COMPETITEURS'!G30," ",'INFORMATIONS COMPETITEURS'!E30),"") -> Dominique BRULEY | H31: =IF('INFORMATIONS COMPETITEURS'!$D$59="TABLEAU DE SAISIE CONFORME",IF('INFORMATIONS COMPETITEURS'!I30="","",'INFORMATIONS COMPETITEURS'!I30),"") -> GPS Val de Saone | K31: 92 | L31: 90 | M31: 94 | P31: =IF('INFORMATIONS COMPETITEURS'!$D$59="TABLEAU DE SAISIE NON CONFORME","",IF(E31=" ",N(0),IF(SUM(K31:O31)=0,N(0),SUM(K31:O31)))) -> 276
D32: ='INFORMATIONS COMPETITEURS'!D31 -> 23 | E32: =IF('INFORMATIONS COMPETITEURS'!$D$59="TABLEAU DE SAISIE CONFORME",CONCATENATE('INFORMATIONS COMPETITEURS'!G31," ",'INFORMATIONS COMPETITEURS'!E31),"") -> Christophe MARTIN | H32: =IF('INFORMATIONS COMPETITEURS'!$D$59="TABLEAU DE SAISIE CONFORME",IF('INFORMATIONS COMPETITEURS'!I31="","",'INFORMATIONS COMPETITEURS'!I31),"") -> CM Plaisir | K32: 52 | L32: 49 | M32: 48 | P32: =IF('INFORMATIONS COMPETITEURS'!$D$59="TABLEAU DE SAISIE NON CONFORME","",IF(E32=" ",N(0),IF(SUM(K32:O32)=0,N(0),SUM(K32:O32)))) -> 149
D33: ='INFORMATIONS COMPETITEURS'!D32 -> 24 | E33: =IF('INFORMATIONS COMPETITEURS'!$D$59="TABLEAU DE SAISIE CONFORME",CONCATENATE('INFORMATIONS COMPETITEURS'!G32," ",'INFORMATIONS COMPETITEURS'!E32),"") -> Gérard VILLA | H33: =IF('INFORMATIONS COMPETITEURS'!$D$59="TABLEAU DE SAISIE CONFORME",IF('INFORMATIONS COMPETITEURS'!I32="","",'INFORMATIONS COMPETITEURS'!I32),"") -> GPS Pays d'Oc | K33: 76 | L33: 77 | M33: 76 | P33: =IF('INFORMATIONS COMPETITEURS'!$D$59="TABLEAU DE SAISIE NON CONFORME","",IF(E33=" ",N(0),IF(SUM(K33:O33)=0,N(0),SUM(K33:O33)))) -> 229
D34: ='INFORMATIONS COMPETITEURS'!D33 -> 25 | E34: =IF('INFORMATIONS COMPETITEURS'!$D$59="TABLEAU DE SAISIE CONFORME",CONCATENATE('INFORMATIONS COMPETITEURS'!G33," ",'INFORMATIONS COMPETITEURS'!E33),"") -> patrick JACQUOT | H34: =IF('INFORMATIONS COMPETITEURS'!$D$59="TABLEAU DE SAISIE CONFORME",IF('INFORMATIONS COMPETITEURS'!I33="","",'INFORMATIONS COMPETITEURS'!I33),"") -> GPS Val de Saone | K34: 50 | L34: 45 | M34: 48 | P34: =IF('INFORMATIONS COMPETITEURS'!$D$59="TABLEAU DE SAISIE NON CONFORME","",IF(E34=" ",N(0),IF(SUM(K34:O34)=0,N(0),SUM(K34:O34)))) -> 143
D35: ='INFORMATIONS COMPETITEURS'!D34 -> 26 | E35: =IF('INFORMATIONS COMPETITEURS'!$D$59="TABLEAU DE SAISIE CONFORME",CONCATENATE('INFORMATIONS COMPETITEURS'!G34," ",'INFORMATIONS COMPETITEURS'!E34),"") -> Henri CALAVIA | H35: =IF('INFORMATIONS COMPETITEURS'!$D$59="TABLEAU DE SAISIE CONFORME",IF('INFORMATIONS COMPETITEURS'!I34="","",'INFORMATIONS COMPETITEURS'!I34),"") -> CMCRE | K35: 95 | L35: 95 | M35: 95 | P35: =IF('INFORMATIONS COMPETITEURS'!$D$59="TABLEAU DE SAISIE NON CONFORME","",IF(E35=" ",N(0),IF(SUM(K35:O35)=0,N(0),SUM(K35:O35)))) -> 285
D36: ='INFORMATIONS COMPETITEURS'!D35 -> 27 | E36: =IF('INFORMATIONS COMPETITEURS'!$D$59="TABLEAU DE SAISIE CONFORME",CONCATENATE('INFORMATIONS COMPETITEURS'!G35," ",'INFORMATIONS COMPETITEURS'!E35),"") -> Batiste JEANIN | H36: =IF('INFORMATIONS COMPETITEURS'!$D$59="TABLEAU DE SAISIE CONFORME",IF('INFORMATIONS COMPETITEURS'!I35="","",'INFORMATIONS COMPETITEURS'!I35),"") -> Ecole de pêche Dijon | K36: 39 | L36: 38 | M36: 38 | P36: =IF('INFORMATIONS COMPETITEURS'!$D$59="TABLEAU DE SAISIE NON CONFORME","",IF(E36=" ",N(0),IF(SUM(K36:O36)=0,N(0),SUM(K36:O36)))) -> 115
D37: ='INFORMATIONS COMPETITEURS'!D36 -> 28 | E37: =IF('INFORMATIONS COMPETITEURS'!$D$59="TABLEAU DE SAISIE CONFORME",CONCATENATE('INFORMATIONS COMPETITEURS'!G36," ",'INFORMATIONS COMPETITEURS'!E36),"") -> Règis CAZARETH | H37: =IF('INFORMATIONS COMPETITEURS'!$D$59="TABLEAU DE SAISIE CONFORME",IF('INFORMATIONS COMPETITEURS'!I36="","",'INFORMATIONS COMPETITEURS'!I36),"") -> GPS Décines | K37: 33 | L37: 40 | M37: 41 | P37: =IF('INFORMATIONS COMPETITEURS'!$D$59="TABLEAU DE SAISIE NON CONFORME","",IF(E37=" ",N(0),IF(SUM(K37:O37)=0,N(0),SUM(K37:O37)))) -> 114
D38: ='INFORMATIONS COMPETITEURS'!D37 -> 29 | E38: =IF('INFORMATIONS COMPETITEURS'!$D$59="TABLEAU DE SAISIE CONFORME",CONCATENATE('INFORMATIONS COMPETITEURS'!G37," ",'INFORMATIONS COMPETITEURS'!E37),"") -> BOUAFFIA DENIL | H38: =IF('INFORMATIONS COMPETITEURS'!$D$59="TABLEAU DE SAISIE CONFORME",IF('INFORMATIONS COMPETITEURS'!I37="","",'INFORMATIONS COMPETITEURS'!I37),"") -> GPS | K38: 0 | L38: 0 | M38: 0 | P38: =IF('INFORMATIONS COMPETITEURS'!$D$59="TABLEAU DE SAISIE NON CONFORME","",IF(E38=" ",N(0),IF(SUM(K38:O38)=0,N(0),SUM(K38:O38)))) -> 0
D39: ='INFORMATIONS COMPETITEURS'!D38 -> 30 | E39: =IF('INFORMATIONS COMPETITEURS'!$D$59="TABLEAU DE SAISIE CONFORME",CONCATENATE('INFORMATIONS COMPETITEURS'!G38," ",'INFORMATIONS COMPETITEURS'!E38),"") ->  | H39: =IF('INFORMATIONS COMPETITEURS'!$D$59="TABLEAU DE SAISIE CONFORME",IF('INFORMATIONS COMPETITEURS'!I38="","",'INFORMATIONS COMPETITEURS'!I38),"") ->  | P39: =IF('INFORMATIONS COMPETITEURS'!$D$59="TABLEAU DE SAISIE NON CONFORME","",IF(E39=" ",N(0),IF(SUM(K39:O39)=0,N(0),SUM(K39:O39)))) -> 0
D40: ='INFORMATIONS COMPETITEURS'!D39 -> 31 | E40: =IF('INFORMATIONS COMPETITEURS'!$D$59="TABLEAU DE SAISIE CONFORME",CONCATENATE('INFORMATIONS COMPETITEURS'!G39," ",'INFORMATIONS COMPETITEURS'!E39),"") ->  | H40: =IF('INFORMATIONS COMPETITEURS'!$D$59="TABLEAU DE SAISIE CONFORME",IF('INFORMATIONS COMPETITEURS'!I39="","",'INFORMATIONS COMPETITEURS'!I39),"") ->  | P40: =IF('INFORMATIONS COMPETITEURS'!$D$59="TABLEAU DE SAISIE NON CONFORME","",IF(E40=" ",N(0),IF(SUM(K40:O40)=0,N(0),SUM(K40:O40)))) -> 0
D41: ='INFORMATIONS COMPETITEURS'!D40 -> 32 | E41: =IF('INFORMATIONS COMPETITEURS'!$D$59="TABLEAU DE SAISIE CONFORME",CONCATENATE('INFORMATIONS COMPETITEURS'!G40," ",'INFORMATIONS COMPETITEURS'!E40),"") ->  | H41: =IF('INFORMATIONS COMPETITEURS'!$D$59="TABLEAU DE SAISIE CONFORME",IF('INFORMATIONS COMPETITEURS'!I40="","",'INFORMATIONS COMPETITEURS'!I40),"") ->  | P41: =IF('INFORMATIONS COMPETITEURS'!$D$59="TABLEAU DE SAISIE NON CONFORME","",IF(E41=" ",N(0),IF(SUM(K41:O41)=0,N(0),SUM(K41:O41)))) -> 0
D42: ='INFORMATIONS COMPETITEURS'!D41 -> 33 | E42: =IF('INFORMATIONS COMPETITEURS'!$D$59="TABLEAU DE SAISIE CONFORME",CONCATENATE('INFORMATIONS COMPETITEURS'!G41," ",'INFORMATIONS COMPETITEURS'!E41),"") ->  | H42: =IF('INFORMATIONS COMPETITEURS'!$D$59="TABLEAU DE SAISIE CONFORME",IF('INFORMATIONS COMPETITEURS'!I41="","",'INFORMATIONS COMPETITEURS'!I41),"") ->  | P42: =IF('INFORMATIONS COMPETITEURS'!$D$59="TABLEAU DE SAISIE NON CONFORME","",IF(E42=" ",N(0),IF(SUM(K42:O42)=0,N(0),SUM(K42:O42)))) -> 0
D43: ='INFORMATIONS COMPETITEURS'!D42 -> 34 | E43: =IF('INFORMATIONS COMPETITEURS'!$D$59="TABLEAU DE SAISIE CONFORME",CONCATENATE('INFORMATIONS COMPETITEURS'!G42," ",'INFORMATIONS COMPETITEURS'!E42),"") ->  | H43: =IF('INFORMATIONS COMPETITEURS'!$D$59="TABLEAU DE SAISIE CONFORME",IF('INFORMATIONS COMPETITEURS'!I42="","",'INFORMATIONS COMPETITEURS'!I42),"") ->  | P43: =IF('INFORMATIONS COMPETITEURS'!$D$59="TABLEAU DE SAISIE NON CONFORME","",IF(E43=" ",N(0),IF(SUM(K43:O43)=0,N(0),SUM(K43:O43)))) -> 0
D44: ='INFORMATIONS COMPETITEURS'!D43 -> 35 | E44: =IF('INFORMATIONS COMPETITEURS'!$D$59="TABLEAU DE SAISIE CONFORME",CONCATENATE('INFORMATIONS COMPETITEURS'!G43," ",'INFORMATIONS COMPETITEURS'!E43),"") ->  | H44: =IF('INFORMATIONS COMPETITEURS'!$D$59="TABLEAU DE SAISIE CONFORME",IF('INFORMATIONS COMPETITEURS'!I43="","",'INFORMATIONS COMPETITEURS'!I43),"") ->  | P44: =IF('INFORMATIONS COMPETITEURS'!$D$59="TABLEAU DE SAISIE NON CONFORME","",IF(E44=" ",N(0),IF(SUM(K44:O44)=0,N(0),SUM(K44:O44)))) -> 0
D45: ='INFORMATIONS COMPETITEURS'!D44 -> 36 | E45: =IF('INFORMATIONS COMPETITEURS'!$D$59="TABLEAU DE SAISIE CONFORME",CONCATENATE('INFORMATIONS COMPETITEURS'!G44," ",'INFORMATIONS COMPETITEURS'!E44),"") ->  | H45: =IF('INFORMATIONS COMPETITEURS'!$D$59="TABLEAU DE SAISIE CONFORME",IF('INFORMATIONS COMPETITEURS'!I44="","",'INFORMATIONS COMPETITEURS'!I44),"") ->  | P45: =IF('INFORMATIONS COMPETITEURS'!$D$59="TABLEAU DE SAISIE NON CONFORME","",IF(E45=" ",N(0),IF(SUM(K45:O45)=0,N(0),SUM(K45:O45)))) -> 0
D46: ='INFORMATIONS COMPETITEURS'!D45 -> 37 | E46: =IF('INFORMATIONS COMPETITEURS'!$D$59="TABLEAU DE SAISIE CONFORME",CONCATENATE('INFORMATIONS COMPETITEURS'!G45," ",'INFORMATIONS COMPETITEURS'!E45),"") ->  | H46: =IF('INFORMATIONS COMPETITEURS'!$D$59="TABLEAU DE SAISIE CONFORME",IF('INFORMATIONS COMPETITEURS'!I45="","",'INFORMATIONS COMPETITEURS'!I45),"") ->  | P46: =IF('INFORMATIONS COMPETITEURS'!$D$59="TABLEAU DE SAISIE NON CONFORME","",IF(E46=" ",N(0),IF(SUM(K46:O46)=0,N(0),SUM(K46:O46)))) -> 0
D47: ='INFORMATIONS COMPETITEURS'!D46 -> 38 | E47: =IF('INFORMATIONS COMPETITEURS'!$D$59="TABLEAU DE SAISIE CONFORME",CONCATENATE('INFORMATIONS COMPETITEURS'!G46," ",'INFORMATIONS COMPETITEURS'!E46),"") ->  | H47: =IF('INFORMATIONS COMPETITEURS'!$D$59="TABLEAU DE SAISIE CONFORME",IF('INFORMATIONS COMPETITEURS'!I46="","",'INFORMATIONS COMPETITEURS'!I46),"") ->  | P47: =IF('INFORMATIONS COMPETITEURS'!$D$59="TABLEAU DE SAISIE NON CONFORME","",IF(E47=" ",N(0),IF(SUM(K47:O47)=0,N(0),SUM(K47:O47)))) -> 0
D48: ='INFORMATIONS COMPETITEURS'!D47 -> 39 | E48: =IF('INFORMATIONS COMPETITEURS'!$D$59="TABLEAU DE SAISIE CONFORME",CONCATENATE('INFORMATIONS COMPETITEURS'!G47," ",'INFORMATIONS COMPETITEURS'!E47),"") ->  | H48: =IF('INFORMATIONS COMPETITEURS'!$D$59="TABLEAU DE SAISIE CONFORME",IF('INFORMATIONS COMPETITEURS'!I47="","",'INFORMATIONS COMPETITEURS'!I47),"") ->  | P48: =IF('INFORMATIONS COMPETITEURS'!$D$59="TABLEAU DE SAISIE NON CONFORME","",IF(E48=" ",N(0),IF(SUM(K48:O48)=0,N(0),SUM(K48:O48)))) -> 0
D49: ='INFORMATIONS COMPETITEURS'!D48 -> 40 | E49: =IF('INFORMATIONS COMPETITEURS'!$D$59="TABLEAU DE SAISIE CONFORME",CONCATENATE('INFORMATIONS COMPETITEURS'!G48," ",'INFORMATIONS COMPETITEURS'!E48),"") ->  | H49: =IF('INFORMATIONS COMPETITEURS'!$D$59="TABLEAU DE SAISIE CONFORME",IF('INFORMATIONS COMPETITEURS'!I48="","",'INFORMATIONS COMPETITEURS'!I48),"") ->  | P49: =IF('INFORMATIONS COMPETITEURS'!$D$59="TABLEAU DE SAISIE NON CONFORME","",IF(E49=" ",N(0),IF(SUM(K49:O49)=0,N(0),SUM(K49:O49)))) -> 0
D50: ='INFORMATIONS COMPETITEURS'!D49 -> 41 | E50: =IF('INFORMATIONS COMPETITEURS'!$D$59="TABLEAU DE SAISIE CONFORME",CONCATENATE('INFORMATIONS COMPETITEURS'!G49," ",'INFORMATIONS COMPETITEURS'!E49),"") ->  | H50: =IF('INFORMATIONS COMPETITEURS'!$D$59="TABLEAU DE SAISIE CONFORME",IF('INFORMATIONS COMPETITEURS'!I49="","",'INFORMATIONS COMPETITEURS'!I49),"") ->  | P50: =IF('INFORMATIONS COMPETITEURS'!$D$59="TABLEAU DE SAISIE NON CONFORME","",IF(E50=" ",N(0),IF(SUM(K50:O50)=0,N(0),SUM(K50:O50)))) -> 0
D51: ='INFORMATIONS COMPETITEURS'!D50 -> 42 | E51: =IF('INFORMATIONS COMPETITEURS'!$D$59="TABLEAU DE SAISIE CONFORME",CONCATENATE('INFORMATIONS COMPETITEURS'!G50," ",'INFORMATIONS COMPETITEURS'!E50),"") ->  | H51: =IF('INFORMATIONS COMPETITEURS'!$D$59="TABLEAU DE SAISIE CONFORME",IF('INFORMATIONS COMPETITEURS'!I50="","",'INFORMATIONS COMPETITEURS'!I50),"") ->  | P51: =IF('INFORMATIONS COMPETITEURS'!$D$59="TABLEAU DE SAISIE NON CONFORME","",IF(E51=" ",N(0),IF(SUM(K51:O51)=0,N(0),SUM(K51:O51)))) -> 0
D52: ='INFORMATIONS COMPETITEURS'!D51 -> 43 | E52: =IF('INFORMATIONS COMPETITEURS'!$D$59="TABLEAU DE SAISIE CONFORME",CONCATENATE('INFORMATIONS COMPETITEURS'!G51," ",'INFORMATIONS COMPETITEURS'!E51),"") ->  | H52: =IF('INFORMATIONS COMPETITEURS'!$D$59="TABLEAU DE SAISIE CONFORME",IF('INFORMATIONS COMPETITEURS'!I51="","",'INFORMATIONS COMPETITEURS'!I51),"") ->  | P52: =IF('INFORMATIONS COMPETITEURS'!$D$59="TABLEAU DE SAISIE NON CONFORME","",IF(E52=" ",N(0),IF(SUM(K52:O52)=0,N(0),SUM(K52:O52)))) -> 0
D53: ='INFORMATIONS COMPETITEURS'!D52 -> 44 | E53: =IF('INFORMATIONS COMPETITEURS'!$D$59="TABLEAU DE SAISIE CONFORME",CONCATENATE('INFORMATIONS COMPETITEURS'!G52," ",'INFORMATIONS COMPETITEURS'!E52),"") ->  | H53: =IF('INFORMATIONS COMPETITEURS'!$D$59="TABLEAU DE SAISIE CONFORME",IF('INFORMATIONS COMPETITEURS'!I52="","",'INFORMATIONS COMPETITEURS'!I52),"") ->  | P53: =IF('INFORMATIONS COMPETITEURS'!$D$59="TABLEAU DE SAISIE NON CONFORME","",IF(E53=" ",N(0),IF(SUM(K53:O53)=0,N(0),SUM(K53:O53)))) -> 0
D54: ='INFORMATIONS COMPETITEURS'!D53 -> 45 | E54: =IF('INFORMATIONS COMPETITEURS'!$D$59="TABLEAU DE SAISIE CONFORME",CONCATENATE('INFORMATIONS COMPETITEURS'!G53," ",'INFORMATIONS COMPETITEURS'!E53),"") ->  | H54: =IF('INFORMATIONS COMPETITEURS'!$D$59="TABLEAU DE SAISIE CONFORME",IF('INFORMATIONS COMPETITEURS'!I53="","",'INFORMATIONS COMPETITEURS'!I53),"") ->  | P54: =IF('INFORMATIONS COMPETITEURS'!$D$59="TABLEAU DE SAISIE NON CONFORME","",IF(E54=" ",N(0),IF(SUM(K54:O54)=0,N(0),SUM(K54:O54)))) -> 0
D55: ='INFORMATIONS COMPETITEURS'!D54 -> 46 | E55: =IF('INFORMATIONS COMPETITEURS'!$D$59="TABLEAU DE SAISIE CONFORME",CONCATENATE('INFORMATIONS COMPETITEURS'!G54," ",'INFORMATIONS COMPETITEURS'!E54),"") ->  | H55: =IF('INFORMATIONS COMPETITEURS'!$D$59="TABLEAU DE SAISIE CONFORME",IF('INFORMATIONS COMPETITEURS'!I54="","",'INFORMATIONS COMPETITEURS'!I54),"") ->  | P55: =IF('INFORMATIONS COMPETITEURS'!$D$59="TABLEAU DE SAISIE NON CONFORME","",IF(E55=" ",N(0),IF(SUM(K55:O55)=0,N(0),SUM(K55:O55)))) -> 0
D56: ='INFORMATIONS COMPETITEURS'!D55 -> 47 | E56: =IF('INFORMATIONS COMPETITEURS'!$D$59="TABLEAU DE SAISIE CONFORME",CONCATENATE('INFORMATIONS COMPETITEURS'!G55," ",'INFORMATIONS COMPETITEURS'!E55),"") ->  | H56: =IF('INFORMATIONS COMPETITEURS'!$D$59="TABLEAU DE SAISIE CONFORME",IF('INFORMATIONS COMPETITEURS'!I55="","",'INFORMATIONS COMPETITEURS'!I55),"") ->  | P56: =IF('INFORMATIONS COMPETITEURS'!$D$59="TABLEAU DE SAISIE NON CONFORME","",IF(E56=" ",N(0),IF(SUM(K56:O56)=0,N(0),SUM(K56:O56)))) -> 0
D57: ='INFORMATIONS COMPETITEURS'!D56 -> 48 | E57: =IF('INFORMATIONS COMPETITEURS'!$D$59="TABLEAU DE SAISIE CONFORME",CONCATENATE('INFORMATIONS COMPETITEURS'!G56," ",'INFORMATIONS COMPETITEURS'!E56),"") ->  | H57: =IF('INFORMATIONS COMPETITEURS'!$D$59="TABLEAU DE SAISIE CONFORME",IF('INFORMATIONS COMPETITEURS'!I56="","",'INFORMATIONS COMPETITEURS'!I56),"") ->  | P57: =IF('INFORMATIONS COMPETITEURS'!$D$59="TABLEAU DE SAISIE NON CONFORME","",IF(E57=" ",N(0),IF(SUM(K57:O57)=0,N(0),SUM(K57:O57)))) -> 0
D58: ='INFORMATIONS COMPETITEURS'!D57 -> 49 | E58: =IF('INFORMATIONS COMPETITEURS'!$D$59="TABLEAU DE SAISIE CONFORME",CONCATENATE('INFORMATIONS COMPETITEURS'!G57," ",'INFORMATIONS COMPETITEURS'!E57),"") ->  | H58: =IF('INFORMATIONS COMPETITEURS'!$D$59="TABLEAU DE SAISIE CONFORME",IF('INFORMATIONS COMPETITEURS'!I57="","",'INFORMATIONS COMPETITEURS'!I57),"") ->  | P58: =IF('INFORMATIONS COMPETITEURS'!$D$59="TABLEAU DE SAISIE NON CONFORME","",IF(E58=" ",N(0),IF(SUM(K58:O58)=0,N(0),SUM(K58:O58)))) -> 0
D59: ='INFORMATIONS COMPETITEURS'!D58 -> 50 | E59: =IF('INFORMATIONS COMPETITEURS'!$D$59="TABLEAU DE SAISIE CONFORME",CONCATENATE('INFORMATIONS COMPETITEURS'!G58," ",'INFORMATIONS COMPETITEURS'!E58),"") ->  | H59: =IF('INFORMATIONS COMPETITEURS'!$D$59="TABLEAU DE SAISIE CONFORME",IF('INFORMATIONS COMPETITEURS'!I58="","",'INFORMATIONS COMPETITEURS'!I58),"") ->  | P59: =IF('INFORMATIONS COMPETITEURS'!$D$59="TABLEAU DE SAISIE NON CONFORME","",IF(E59=" ",N(0),IF(SUM(K59:O59)=0,N(0),SUM(K59:O59)))) -> 0

Sheet MOUCHE N°2
D3: SAISIE DES RESULTATS - MOUCHE N°2
D6: N° de plaquette | E6: Compétiteur | H6: Club | K6: RESULTATS DES JUGES | P6: POINTS MOUCHES
K8: Juge N°1 | L8: Juge N°2 | M8: Juge N°3 | N8: Juge N°4 | O8: Juge N°5
D10: ='INFORMATIONS COMPETITEURS'!D9 -> 1 | E10: =IF('INFORMATIONS COMPETITEURS'!$D$59="TABLEAU DE SAISIE CONFORME",CONCATENATE('INFORMATIONS COMPETITEURS'!G9," ",'INFORMATIONS COMPETITEURS'!E9),"") -> Claude CAMPILLO | H10: =IF('INFORMATIONS COMPETITEURS'!$D$59="TABLEAU DE SAISIE CONFORME",IF('INFORMATIONS COMPETITEURS'!I9="","",'INFORMATIONS COMPETITEURS'!I9),"") -> CML | K10: 50 | L10: 52 | M10: 50 | P10: =IF('INFORMATIONS COMPETITEURS'!$D$59="TABLEAU DE SAISIE NON CONFORME","",IF(E10=" ",N(0),IF(SUM(K10:O10)=0,N(0),SUM(K10:O10)))) -> 152
D11: ='INFORMATIONS COMPETITEURS'!D10 -> 2 | E11: =IF('INFORMATIONS COMPETITEURS'!$D$59="TABLEAU DE SAISIE CONFORME",CONCATENATE('INFORMATIONS COMPETITEURS'!G10," ",'INFORMATIONS COMPETITEURS'!E10),"") -> Didier DIEGO | H11: =IF('INFORMATIONS COMPETITEURS'!$D$59="TABLEAU DE SAISIE CONFORME",IF('INFORMATIONS COMPETITEURS'!I10="","",'INFORMATIONS COMPETITEURS'!I10),"") -> GPD Pays d'Oc | K11: 75 | L11: 75 | M11: 73 | P11: =IF('INFORMATIONS COMPETITEURS'!$D$59="TABLEAU DE SAISIE NON CONFORME","",IF(E11=" ",N(0),IF(SUM(K11:O11)=0,N(0),SUM(K11:O11)))) -> 223
D12: ='INFORMATIONS COMPETITEURS'!D11 -> 3 | E12: =IF('INFORMATIONS COMPETITEURS'!$D$59="TABLEAU DE SAISIE CONFORME",CONCATENATE('INFORMATIONS COMPETITEURS'!G11," ",'INFORMATIONS COMPETITEURS'!E11),"") -> Samuel CREPILLON | H12: =IF('INFORMATIONS COMPETITEURS'!$D$59="TABLEAU DE SAISIE CONFORME",IF('INFORMATIONS COMPETITEURS'!I11="","",'INFORMATIONS COMPETITEURS'!I11),"") -> GPS Nièvre Morvan | K12: 38 | L12: 42 | M12: 40 | P12: =IF('INFORMATIONS COMPETITEURS'!$D$59="TABLEAU DE SAISIE NON CONFORME","",IF(E12=" ",N(0),IF(SUM(K12:O12)=0,N(0),SUM(K12:O12)))) -> 120
D13: ='INFORMATIONS COMPETITEURS'!D12 -> 4 | E13: =IF('INFORMATIONS COMPETITEURS'!$D$59="TABLEAU DE SAISIE CONFORME",CONCATENATE('INFORMATIONS COMPETITEURS'!G12," ",'INFORMATIONS COMPETITEURS'!E12),"") -> Valentin BIBENT | H13: =IF('INFORMATIONS COMPETITEURS'!$D$59="TABLEAU DE SAISIE CONFORME",IF('INFORMATIONS COMPETITEURS'!I12="","",'INFORMATIONS COMPETITEURS'!I12),"") -> CML | K13: 65 | L13: 65 | M13: 62 | P13: =IF('INFORMATIONS COMPETITEURS'!$D$59="TABLEAU DE SAISIE NON CONFORME","",IF(E13=" ",N(0),IF(SUM(K13:O13)=0,N(0),SUM(K13:O13)))) -> 192
D14: ='INFORMATIONS COMPETITEURS'!D13 -> 5 | E14: =IF('INFORMATIONS COMPETITEURS'!$D$59="TABLEAU DE SAISIE CONFORME",CONCATENATE('INFORMATIONS COMPETITEURS'!G13," ",'INFORMATIONS COMPETITEURS'!E13),"") -> Nathalie ALBERGE | H14: =IF('INFORMATIONS COMPETITEURS'!$D$59="TABLEAU DE SAISIE CONFORME",IF('INFORMATIONS COMPETITEURS'!I13="","",'INFORMATIONS COMPETITEURS'!I13),"") -> CM Pays d'Oc | K14: 58 | L14: 58 | M14: 53 | P14: =IF('INFORMATIONS COMPETITEURS'!$D$59="TABLEAU DE SAISIE NON CONFORME","",IF(E14=" ",N(0),IF(SUM(K14:O14)=0,N(0),SUM(K14:O14)))) -> 169
D15: ='INFORMATIONS COMPETITEURS'!D14 -> 6 | E15: =IF('INFORMATIONS COMPETITEURS'!$D$59="TABLEAU DE SAISIE CONFORME",CONCATENATE('INFORMATIONS COMPETITEURS'!G14," ",'INFORMATIONS COMPETITEURS'!E14),"") -> Jean-Luc GAULON | H15: =IF('INFORMATIONS COMPETITEURS'!$D$59="TABLEAU DE SAISIE CONFORME",IF('INFORMATIONS COMPETITEURS'!I14="","",'INFORMATIONS COMPETITEURS'!I14),"") -> CMCRE | K15: 20 | L15: 35 | M15: 41 | P15: =IF('INFORMATIONS COMPETITEURS'!$D$59="TABLEAU DE SAISIE NON CONFORME","",IF(E15=" ",N(0),IF(SUM(K15:O15)=0,N(0),SUM(K15:O15)))) -> 96
D16: ='INFORMATIONS COMPETITEURS'!D15 -> 7 | E16: =IF('INFORMATIONS COMPETITEURS'!$D$59="TABLEAU DE SAISIE CONFORME",CONCATENATE('INFORMATIONS COMPETITEURS'!G15," ",'INFORMATIONS COMPETITEURS'!E15),"") -> Jérôme VILLE | H16: =IF('INFORMATIONS COMPETITEURS'!$D$59="TABLEAU DE SAISIE CONFORME",IF('INFORMATIONS COMPETITEURS'!I15="","",'INFORMATIONS COMPETITEURS'!I15),"") -> GPS Lyon Centre | K16: 63 | L16: 63 | M16: 61 | P16: =IF('INFORMATIONS COMPETITEURS'!$D$59="TABLEAU DE SAISIE NON CONFORME","",IF(E16=" ",N(0),IF(SUM(K16:O16)=0,N(0),SUM(K16:O16)))) -> 187
D17: ='INFORMATIONS COMPETITEURS'!D16 -> 8 | E17: =IF('INFORMATIONS COMPETITEURS'!$D$59="TABLEAU DE SAISIE CONFORME",CONCATENATE('INFORMATIONS COMPETITEURS'!G16," ",'INFORMATIONS COMPETITEURS'!E16),"") -> Edgard RICHARD | H17: =IF('INFORMATIONS COMPETITEURS'!$D$59="TABLEAU DE SAISIE CONFORME",IF('INFORMATIONS COMPETITEURS'!I16="","",'INFORMATIONS COMPETITEURS'!I16),"") -> Ecole de pêche Dijon | K17: 30 | L17: 40 | M17: 45 | P17: =IF('INFORMATIONS COMPETITEURS'!$D$59="TABLEAU DE SAISIE NON CONFORME","",IF(E17=" ",N(0),IF(SUM(K17:O17)=0,N(0),SUM(K17:O17)))) -> 115
D18: ='INFORMATIONS COMPETITEURS'!D17 -> 9 | E18: =IF('INFORMATIONS COMPETITEURS'!$D$59="TABLEAU DE SAISIE CONFORME",CONCATENATE('INFORMATIONS COMPETITEURS'!G17," ",'INFORMATIONS COMPETITEURS'!E17),"") -> Solène Le Bourhis Beyer | H18: =IF('INFORMATIONS COMPETITEURS'!$D$59="TABLEAU DE SAISIE CONFORME",IF('INFORMATIONS COMPETITEURS'!I17="","",'INFORMATIONS COMPETITEURS'!I17),"") -> CM Arzano | K18: 60 | L18: 51 | M18: 49 | P18: =IF('INFORMATIONS COMPETITEURS'!$D$59="TABLEAU DE SAISIE NON CONFORME","",IF(E18=" ",N(0),IF(SUM(K18:O18)=0,N(0),SUM(K18:O18)))) -> 160
D19: ='INFORMATIONS COMPETITEURS'!D18 -> 10 | E19: =IF('INFORMATIONS COMPETITEURS'!$D$59="TABLEAU DE SAISIE CONFORME",CONCATENATE('INFORMATIONS COMPETITEURS'!G18," ",'INFORMATIONS COMPETITEURS'!E18),"") -> Guy MASSON | H19: =IF('INFORMATIONS COMPETITEURS'!$D$59="TABLEAU DE SAISIE CONFORME",IF('INFORMATIONS COMPETITEURS'!I18="","",'INFORMATIONS COMPETITEURS'!I18),"") -> GPS Lyon Centre | K19: 28 | L19: 29 | M19: 38 | P19: =IF('INFORMATIONS COMPETITEURS'!$D$59="TABLEAU DE SAISIE NON CONFORME","",IF(E19=" ",N(0),IF(SUM(K19:O19)=0,N(0),SUM(K19:O19)))) -> 95
D20: ='INFORMATIONS COMPETITEURS'!D19 -> 11 | E20: =IF('INFORMATIONS COMPETITEURS'!$D$59="TABLEAU DE SAISIE CONFORME",CONCATENATE('INFORMATIONS COMPETITEURS'!G19," ",'INFORMATIONS COMPETITEURS'!E19),"") -> Gerard COMMARET | H20: =IF('INFORMATIONS COMPETITEURS'!$D$59="TABLEAU DE SAISIE CONFORME",IF('INFORMATIONS COMPETITEURS'!I19="","",'INFORMATIONS COMPETITEURS'!I19),"") -> GPS Val de Saone | K20: 30 | L20: 31 | M20: 30 | P20: =IF('INFORMATIONS COMPETITEURS'!$D$59="TABLEAU DE SAISIE NON CONFORME","",IF(E20=" ",N(0),IF(SUM(K20:O20)=0,N(0),SUM(K20:O20)))) -> 91
D21: ='INFORMATIONS COMPETITEURS'!D20 -> 12 | E21: =IF('INFORMATIONS COMPETITEURS'!$D$59="TABLEAU DE SAISIE CONFORME",CONCATENATE('INFORMATIONS COMPETITEURS'!G20," ",'INFORMATIONS COMPETITEURS'!E20),"") -> Stéphane PONCET | H21: =IF('INFORMATIONS COMPETITEURS'!$D$59="TABLEAU DE SAISIE CONFORME",IF('INFORMATIONS COMPETITEURS'!I20="","",'INFORMATIONS COMPETITEURS'!I20),"") -> GPS Bresse Remiremont | K21: 58 | L21: 52 | M21: 52 | P21: =IF('INFORMATIONS COMPETITEURS'!$D$59="TABLEAU DE SAISIE NON CONFORME","",IF(E21=" ",N(0),IF(SUM(K21:O21)=0,N(0),SUM(K21:O21)))) -> 162
D22: ='INFORMATIONS COMPETITEURS'!D21 -> 13 | E22: =IF('INFORMATIONS COMPETITEURS'!$D$59="TABLEAU DE SAISIE CONFORME",CONCATENATE('INFORMATIONS COMPETITEURS'!G21," ",'INFORMATIONS COMPETITEURS'!E21),"") -> Didier CHETAUD | H22: =IF('INFORMATIONS COMPETITEURS'!$D$59="TABLEAU DE SAISIE CONFORME",IF('INFORMATIONS COMPETITEURS'!I21="","",'INFORMATIONS COMPETITEURS'!I21),"") -> GPS Val de Saone | K22: 80 | L22: 80 | M22: 88 | P22: =IF('INFORMATIONS COMPETITEURS'!$D$59="TABLEAU DE SAISIE NON CONFORME","",IF(E22=" ",N(0),IF(SUM(K22:O22)=0,N(0),SUM(K22:O22)))) -> 248
D23: ='INFORMATIONS COMPETITEURS'!D22 -> 14 | E23: =IF('INFORMATIONS COMPETITEURS'!$D$59="TABLEAU DE SAISIE CONFORME",CONCATENATE('INFORMATIONS COMPETITEURS'!G22," ",'INFORMATIONS COMPETITEURS'!E22),"") -> Eric GIAMPRETI | H23: =IF('INFORMATIONS COMPETITEURS'!$D$59="TABLEAU DE SAISIE CONFORME",IF('INFORMATIONS COMPETITEURS'!I22="","",'INFORMATIONS COMPETITEURS'!I22),"") -> GPS Lyon Centre | K23: 78 | L23: 77 | M23: 75 | P23: =IF('INFORMATIONS COMPETITEURS'!$D$59="TABLEAU DE SAISIE NON CONFORME","",IF(E23=" ",N(0),IF(SUM(K23:O23)=0,N(0),SUM(K23:O23)))) -> 230
D24: ='INFORMATIONS COMPETITEURS'!D23 -> 15 | E24: =IF('INFORMATIONS COMPETITEURS'!$D$59="TABLEAU DE SAISIE CONFORME",CONCATENATE('INFORMATIONS COMPETITEURS'!G23," ",'INFORMATIONS COMPETITEURS'!E23),"") -> Frédéric EVENNOU | H24: =IF('INFORMATIONS COMPETITEURS'!$D$59="TABLEAU DE SAISIE CONFORME",IF('INFORMATIONS COMPETITEURS'!I23="","",'INFORMATIONS COMPETITEURS'!I23),"") -> GPS Lyon Centre | K24: 24 | L24: 24 | M24: 30 | P24: =IF('INFORMATIONS COMPETITEURS'!$D$59="TABLEAU DE SAISIE NON CONFORME","",IF(E24=" ",N(0),IF(SUM(K24:O24)=0,N(0),SUM(K24:O24)))) -> 78
D25: ='INFORMATIONS COMPETITEURS'!D24 -> 16 | E25: =IF('INFORMATIONS COMPETITEURS'!$D$59="TABLEAU DE SAISIE CONFORME",CONCATENATE('INFORMATIONS COMPETITEURS'!G24," ",'INFORMATIONS COMPETITEURS'!E24),"") -> Bernard FAIVRE | H25: =IF('INFORMATIONS COMPETITEURS'!$D$59="TABLEAU DE SAISIE CONFORME",IF('INFORMATIONS COMPETITEURS'!I24="","",'INFORMATIONS COMPETITEURS'!I24),"") -> GPS Pays d'Oc | K25: 50 | L25: 52 | M25: 48 | P25: =IF('INFORMATIONS COMPETITEURS'!$D$59="TABLEAU DE SAISIE NON CONFORME","",IF(E25=" ",N(0),IF(SUM(K25:O25)=0,N(0),SUM(K25:O25)))) -> 150
D26: ='INFORMATIONS COMPETITEURS'!D25 -> 17 | E26: =IF('INFORMATIONS COMPETITEURS'!$D$59="TABLEAU DE SAISIE CONFORME",CONCATENATE('INFORMATIONS COMPETITEURS'!G25," ",'INFORMATIONS COMPETITEURS'!E25),"") -> Bernard Rémi | H26: =IF('INFORMATIONS COMPETITEURS'!$D$59="TABLEAU DE SAISIE CONFORME",IF('INFORMATIONS COMPETITEURS'!I25="","",'INFORMATIONS COMPETITEURS'!I25),"") -> Ecole de pêche Dijon | K26: 0 | L26: 0 | M26: 0 | P26: =IF('INFORMATIONS COMPETITEURS'!$D$59="TABLEAU DE SAISIE NON CONFORME","",IF(E26=" ",N(0),IF(SUM(K26:O26)=0,N(0),SUM(K26:O26)))) -> 0
D27: ='INFORMATIONS COMPETITEURS'!D26 -> 18 | E27: =IF('INFORMATIONS COMPETITEURS'!$D$59="TABLEAU DE SAISIE CONFORME",CONCATENATE('INFORMATIONS COMPETITEURS'!G26," ",'INFORMATIONS COMPETITEURS'!E26),"") -> Denis FAUVELLIERE | H27: =IF('INFORMATIONS COMPETITEURS'!$D$59="TABLEAU DE SAISIE CONFORME",IF('INFORMATIONS COMPETITEURS'!I26="","",'INFORMATIONS COMPETITEURS'!I26),"") -> CM Plaisir | K27: 50 | L27: 54 | M27: 51 | P27: =IF('INFORMATIONS COMPETITEURS'!$D$59="TABLEAU DE SAISIE NON CONFORME","",IF(E27=" ",N(0),IF(SUM(K27:O27)=0,N(0),SUM(K27:O27)))) -> 155
D28: ='INFORMATIONS COMPETITEURS'!D27 -> 19 | E28: =IF('INFORMATIONS COMPETITEURS'!$D$59="TABLEAU DE SAISIE CONFORME",CONCATENATE('INFORMATIONS COMPETITEURS'!G27," ",'INFORMATIONS COMPETITEURS'!E27),"") -> Lionel GOMINET | H28: =IF('INFORMATIONS COMPETITEURS'!$D$59="TABLEAU DE SAISIE CONFORME",IF('INFORMATIONS COMPETITEURS'!I27="","",'INFORMATIONS COMPETITEURS'!I27),"") -> GPS Pays d'Oc | K28: 92 | L28: 91 | M28: 85 | P28: =IF('INFORMATIONS COMPETITEURS'!$D$59="TABLEAU DE SAISIE NON CONFORME","",IF(E28=" ",N(0),IF(SUM(K28:O28)=0,N(0),SUM(K28:O28)))) -> 268
D29: ='INFORMATIONS COMPETITEURS'!D28 -> 20 | E29: =IF('INFORMATIONS COMPETITEURS'!$D$59="TABLEAU DE SAISIE CONFORME",CONCATENATE('INFORMATIONS COMPETITEURS'!G28," ",'INFORMATIONS COMPETITEURS'!E28),"") -> HAMZA MAACH | H29: =IF('INFORMATIONS COMPETITEURS'!$D$59="TABLEAU DE SAISIE CONFORME",IF('INFORMATIONS COMPETITEURS'!I28="","",'INFORMATIONS COMPETITEURS'!I28),"") -> Ecole de pêche Dijon | K29: 25 | L29: 30 | M29: 30 | P29: =IF('INFORMATIONS COMPETITEURS'!$D$59="TABLEAU DE SAISIE NON CONFORME","",IF(E29=" ",N(0),IF(SUM(K29:O29)=0,N(0),SUM(K29:O29)))) -> 85
D30: ='INFORMATIONS COMPETITEURS'!D29 -> 21 | E30: =IF('INFORMATIONS COMPETITEURS'!$D$59="TABLEAU DE SAISIE CONFORME",CONCATENATE('INFORMATIONS COMPETITEURS'!G29," ",'INFORMATIONS COMPETITEURS'!E29),"") -> Dimitri DEZOTHEZ | H30: =IF('INFORMATIONS COMPETITEURS'!$D$59="TABLEAU DE SAISIE CONFORME",IF('INFORMATIONS COMPETITEURS'!I29="","",'INFORMATIONS COMPETITEURS'!I29),"") -> Club Mouche du gévaudan | K30: 55 | L30: 60 | M30: 60 | P30: =IF('INFORMATIONS COMPETITEURS'!$D$59="TABLEAU DE SAISIE NON CONFORME","",IF(E30=" ",N(0),IF(SUM(K30:O30)=0,N(0),SUM(K30:O30)))) -> 175
D31: ='INFORMATIONS COMPETITEURS'!D30 -> 22 | E31: =IF('INFORMATIONS COMPETITEURS'!$D$59="TABLEAU DE SAISIE CONFORME",CONCATENATE('INFORMATIONS COMPETITEURS'!G30," ",'INFORMATIONS COMPETITEURS'!E30),"") -> Dominique BRULEY | H31: =IF('INFORMATIONS COMPETITEURS'!$D$59="TABLEAU DE SAISIE CONFORME",IF('INFORMATIONS COMPETITEURS'!I30="","",'INFORMATIONS COMPETITEURS'!I30),"") -> GPS Val de Saone | K31: 20 | L31: 25 | M31: 33 | P31: =IF('INFORMATIONS COMPETITEURS'!$D$59="TABLEAU DE SAISIE NON CONFORME","",IF(E31=" ",N(0),IF(SUM(K31:O31)=0,N(0),SUM(K31:O31)))) -> 78
D32: ='INFORMATIONS COMPETITEURS'!D31 -> 23 | E32: =IF('INFORMATIONS COMPETITEURS'!$D$59="TABLEAU DE SAISIE CONFORME",CONCATENATE('INFORMATIONS COMPETITEURS'!G31," ",'INFORMATIONS COMPETITEURS'!E31),"") -> Christophe MARTIN | H32: =IF('INFORMATIONS COMPETITEURS'!$D$59="TABLEAU DE SAISIE CONFORME",IF('INFORMATIONS COMPETITEURS'!I31="","",'INFORMATIONS COMPETITEURS'!I31),"") -> CM Plaisir | K32: 45 | L32: 41 | M32: 40 | P32: =IF('INFORMATIONS COMPETITEURS'!$D$59="TABLEAU DE SAISIE NON CONFORME","",IF(E32=" ",N(0),IF(SUM(K32:O32)=0,N(0),SUM(K32:O32)))) -> 126
D33: ='INFORMATIONS COMPETITEURS'!D32 -> 24 | E33: =IF('INFORMATIONS COMPETITEURS'!$D$59="TABLEAU DE SAISIE CONFORME",CONCATENATE('INFORMATIONS COMPETITEURS'!G32," ",'INFORMATIONS COMPETITEURS'!E32),"") -> Gérard VILLA | H33: =IF('INFORMATIONS COMPETITEURS'!$D$59="TABLEAU DE SAISIE CONFORME",IF('INFORMATIONS COMPETITEURS'!I32="","",'INFORMATIONS COMPETITEURS'!I32),"") -> GPS Pays d'Oc | K33: 85 | L33: 87 | M33: 80 | P33: =IF('INFORMATIONS COMPETITEURS'!$D$59="TABLEAU DE SAISIE NON CONFORME","",IF(E33=" ",N(0),IF(SUM(K33:O33)=0,N(0),SUM(K33:O33)))) -> 252
D34: ='INFORMATIONS COMPETITEURS'!D33 -> 25 | E34: =IF('INFORMATIONS COMPETITEURS'!$D$59="TABLEAU DE SAISIE CONFORME",CONCATENATE('INFORMATIONS COMPETITEURS'!G33," ",'INFORMATIONS COMPETITEURS'!E33),"") -> patrick JACQUOT | H34: =IF('INFORMATIONS COMPETITEURS'!$D$59="TABLEAU DE SAISIE CONFORME",IF('INFORMATIONS COMPETITEURS'!I33="","",'INFORMATIONS COMPETITEURS'!I33),"") -> GPS Val de Saone | K34: 30 | L34: 26 | M34: 35 | P34: =IF('INFORMATIONS COMPETITEURS'!$D$59="TABLEAU DE SAISIE NON CONFORME","",IF(E34=" ",N(0),IF(SUM(K34:O34)=0,N(0),SUM(K34:O34)))) -> 91
D35: ='INFORMATIONS COMPETITEURS'!D34 -> 26 | E35: =IF('INFORMATIONS COMPETITEURS'!$D$59="TABLEAU DE SAISIE CONFORME",CONCATENATE('INFORMATIONS COMPETITEURS'!G34," ",'INFORMATIONS COMPETITEURS'!E34),"") -> Henri CALAVIA | H35: =IF('INFORMATIONS COMPETITEURS'!$D$59="TABLEAU DE SAISIE CONFORME",IF('INFORMATIONS COMPETITEURS'!I34="","",'INFORMATIONS COMPETITEURS'!I34),"") -> CMCRE | K35: 95 | L35: 95 | M35: 90 | P35: =IF('INFORMATIONS COMPETITEURS'!$D$59="TABLEAU DE SAISIE NON CONFORME","",IF(E35=" ",N(0),IF(SUM(K35:O35)=0,N(0),SUM(K35:O35)))) -> 280
D36: ='INFORMATIONS COMPETITEURS'!D35 -> 27 | E36: =IF('INFORMATIONS COMPETITEURS'!$D$59="TABLEAU DE SAISIE CONFORME",CONCATENATE('INFORMATIONS COMPETITEURS'!G35," ",'INFORMATIONS COMPETITEURS'!E35),"") -> Batiste JEANIN | H36: =IF('INFORMATIONS COMPETITEURS'!$D$59="TABLEAU DE SAISIE CONFORME",IF('INFORMATIONS COMPETITEURS'!I35="","",'INFORMATIONS COMPETITEURS'!I35),"") -> Ecole de pêche Dijon | K36: 52 | L36: 52 | M36: 51 | P36: =IF('INFORMATIONS COMPETITEURS'!$D$59="TABLEAU DE SAISIE NON CONFORME","",IF(E36=" ",N(0),IF(SUM(K36:O36)=0,N(0),SUM(K36:O36)))) -> 155
D37: ='INFORMATIONS COMPETITEURS'!D36 -> 28 | E37: =IF('INFORMATIONS COMPETITEURS'!$D$59="TABLEAU DE SAISIE CONFORME",CONCATENATE('INFORMATIONS COMPETITEURS'!G36," ",'INFORMATIONS COMPETITEURS'!E36),"") -> Règis CAZARETH | H37: =IF('INFORMATIONS COMPETITEURS'!$D$59="TABLEAU DE SAISIE CONFORME",IF('INFORMATIONS COMPETITEURS'!I36="","",'INFORMATIONS COMPETITEURS'!I36),"") -> GPS Décines | K37: 74 | L37: 77 | M37: 72 | P37: =IF('INFORMATIONS COMPETITEURS'!$D$59="TABLEAU DE SAISIE NON CONFORME","",IF(E37=" ",N(0),IF(SUM(K37:O37)=0,N(0),SUM(K37:O37)))) -> 223
D38: ='INFORMATIONS COMPETITEURS'!D37 -> 29 | E38: =IF('INFORMATIONS COMPETITEURS'!$D$59="TABLEAU DE SAISIE CONFORME",CONCATENATE('INFORMATIONS COMPETITEURS'!G37," ",'INFORMATIONS COMPETITEURS'!E37),"") -> BOUAFFIA DENIL | H38: =IF('INFORMATIONS COMPETITEURS'!$D$59="TABLEAU DE SAISIE CONFORME",IF('INFORMATIONS COMPETITEURS'!I37="","",'INFORMATIONS COMPETITEURS'!I37),"") -> GPS | K38: 0 | L38: 0 | M38: 0 | P38: =IF('INFORMATIONS COMPETITEURS'!$D$59="TABLEAU DE SAISIE NON CONFORME","",IF(E38=" ",N(0),IF(SUM(K38:O38)=0,N(0),SUM(K38:O38)))) -> 0
D39: ='INFORMATIONS COMPETITEURS'!D38 -> 30 | E39: =IF('INFORMATIONS COMPETITEURS'!$D$59="TABLEAU DE SAISIE CONFORME",CONCATENATE('INFORMATIONS COMPETITEURS'!G38," ",'INFORMATIONS COMPETITEURS'!E38),"") ->  | H39: =IF('INFORMATIONS COMPETITEURS'!$D$59="TABLEAU DE SAISIE CONFORME",IF('INFORMATIONS COMPETITEURS'!I38="","",'INFORMATIONS COMPETITEURS'!I38),"") ->  | P39: =IF('INFORMATIONS COMPETITEURS'!$D$59="TABLEAU DE SAISIE NON CONFORME","",IF(E39=" ",N(0),IF(SUM(K39:O39)=0,N(0),SUM(K39:O39)))) -> 0
D40: ='INFORMATIONS COMPETITEURS'!D39 -> 31 | E40: =IF('INFORMATIONS COMPETITEURS'!$D$59="TABLEAU DE SAISIE CONFORME",CONCATENATE('INFORMATIONS COMPETITEURS'!G39," ",'INFORMATIONS COMPETITEURS'!E39),"") ->  | H40: =IF('INFORMATIONS COMPETITEURS'!$D$59="TABLEAU DE SAISIE CONFORME",IF('INFORMATIONS COMPETITEURS'!I39="","",'INFORMATIONS COMPETITEURS'!I39),"") ->  | P40: =IF('INFORMATIONS COMPETITEURS'!$D$59="TABLEAU DE SAISIE NON CONFORME","",IF(E40=" ",N(0),IF(SUM(K40:O40)=0,N(0),SUM(K40:O40)))) -> 0
D41: ='INFORMATIONS COMPETITEURS'!D40 -> 32 | E41: =IF('INFORMATIONS COMPETITEURS'!$D$59="TABLEAU DE SAISIE CONFORME",CONCATENATE('INFORMATIONS COMPETITEURS'!G40," ",'INFORMATIONS COMPETITEURS'!E40),"") ->  | H41: =IF('INFORMATIONS COMPETITEURS'!$D$59="TABLEAU DE SAISIE CONFORME",IF('INFORMATIONS COMPETITEURS'!I40="","",'INFORMATIONS COMPETITEURS'!I40),"") ->  | P41: =IF('INFORMATIONS COMPETITEURS'!$D$59="TABLEAU DE SAISIE NON CONFORME","",IF(E41=" ",N(0),IF(SUM(K41:O41)=0,N(0),SUM(K41:O41)))) -> 0
D42: ='INFORMATIONS COMPETITEURS'!D41 -> 33 | E42: =IF('INFORMATIONS COMPETITEURS'!$D$59="TABLEAU DE SAISIE CONFORME",CONCATENATE('INFORMATIONS COMPETITEURS'!G41," ",'INFORMATIONS COMPETITEURS'!E41),"") ->  | H42: =IF('INFORMATIONS COMPETITEURS'!$D$59="TABLEAU DE SAISIE CONFORME",IF('INFORMATIONS COMPETITEURS'!I41="","",'INFORMATIONS COMPETITEURS'!I41),"") ->  | P42: =IF('INFORMATIONS COMPETITEURS'!$D$59="TABLEAU DE SAISIE NON CONFORME","",IF(E42=" ",N(0),IF(SUM(K42:O42)=0,N(0),SUM(K42:O42)))) -> 0
D43: ='INFORMATIONS COMPETITEURS'!D42 -> 34 | E43: =IF('INFORMATIONS COMPETITEURS'!$D$59="TABLEAU DE SAISIE CONFORME",CONCATENATE('INFORMATIONS COMPETITEURS'!G42," ",'INFORMATIONS COMPETITEURS'!E42),"") ->  | H43: =IF('INFORMATIONS COMPETITEURS'!$D$59="TABLEAU DE SAISIE CONFORME",IF('INFORMATIONS COMPETITEURS'!I42="","",'INFORMATIONS COMPETITEURS'!I42),"") ->  | P43: =IF('INFORMATIONS COMPETITEURS'!$D$59="TABLEAU DE SAISIE NON CONFORME","",IF(E43=" ",N(0),IF(SUM(K43:O43)=0,N(0),SUM(K43:O43)))) -> 0
D44: ='INFORMATIONS COMPETITEURS'!D43 -> 35 | E44: =IF('INFORMATIONS COMPETITEURS'!$D$59="TABLEAU DE SAISIE CONFORME",CONCATENATE('INFORMATIONS COMPETITEURS'!G43," ",'INFORMATIONS COMPETITEURS'!E43),"") ->  | H44: =IF('INFORMATIONS COMPETITEURS'!$D$59="TABLEAU DE SAISIE CONFORME",IF('INFORMATIONS COMPETITEURS'!I43="","",'INFORMATIONS COMPETITEURS'!I43),"") ->  | P44: =IF('INFORMATIONS COMPETITEURS'!$D$59="TABLEAU DE SAISIE NON CONFORME","",IF(E44=" ",N(0),IF(SUM(K44:O44)=0,N(0),SUM(K44:O44)))) -> 0
D45: ='INFORMATIONS COMPETITEURS'!D44 -> 36 | E45: =IF('INFORMATIONS COMPETITEURS'!$D$59="TABLEAU DE SAISIE CONFORME",CONCATENATE('INFORMATIONS COMPETITEURS'!G44," ",'INFORMATIONS COMPETITEURS'!E44),"") ->  | H45: =IF('INFORMATIONS COMPETITEURS'!$D$59="TABLEAU DE SAISIE CONFORME",IF('INFORMATIONS COMPETITEURS'!I44="","",'INFORMATIONS COMPETITEURS'!I44),"") ->  | P45: =IF('INFORMATIONS COMPETITEURS'!$D$59="TABLEAU DE SAISIE NON CONFORME","",IF(E45=" ",N(0),IF(SUM(K45:O45)=0,N(0),SUM(K45:O45)))) -> 0
D46: ='INFORMATIONS COMPETITEURS'!D45 -> 37 | E46: =IF('INFORMATIONS COMPETITEURS'!$D$59="TABLEAU DE SAISIE CONFORME",CONCATENATE('INFORMATIONS COMPETITEURS'!G45," ",'INFORMATIONS COMPETITEURS'!E45),"") ->  | H46: =IF('INFORMATIONS COMPETITEURS'!$D$59="TABLEAU DE SAISIE CONFORME",IF('INFORMATIONS COMPETITEURS'!I45="","",'INFORMATIONS COMPETITEURS'!I45),"") ->  | P46: =IF('INFORMATIONS COMPETITEURS'!$D$59="TABLEAU DE SAISIE NON CONFORME","",IF(E46=" ",N(0),IF(SUM(K46:O46)=0,N(0),SUM(K46:O46)))) -> 0
D47: ='INFORMATIONS COMPETITEURS'!D46 -> 38 | E47: =IF('INFORMATIONS COMPETITEURS'!$D$59="TABLEAU DE SAISIE CONFORME",CONCATENATE('INFORMATIONS COMPETITEURS'!G46," ",'INFORMATIONS COMPETITEURS'!E46),"") ->  | H47: =IF('INFORMATIONS COMPETITEURS'!$D$59="TABLEAU DE SAISIE CONFORME",IF('INFORMATIONS COMPETITEURS'!I46="","",'INFORMATIONS COMPETITEURS'!I46),"") ->  | P47: =IF('INFORMATIONS COMPETITEURS'!$D$59="TABLEAU DE SAISIE NON CONFORME","",IF(E47=" ",N(0),IF(SUM(K47:O47)=0,N(0),SUM(K47:O47)))) -> 0
D48: ='INFORMATIONS COMPETITEURS'!D47 -> 39 | E48: =IF('INFORMATIONS COMPETITEURS'!$D$59="TABLEAU DE SAISIE CONFORME",CONCATENATE('INFORMATIONS COMPETITEURS'!G47," ",'INFORMATIONS COMPETITEURS'!E47),"") ->  | H48: =IF('INFORMATIONS COMPETITEURS'!$D$59="TABLEAU DE SAISIE CONFORME",IF('INFORMATIONS COMPETITEURS'!I47="","",'INFORMATIONS COMPETITEURS'!I47),"") ->  | P48: =IF('INFORMATIONS COMPETITEURS'!$D$59="TABLEAU DE SAISIE NON CONFORME","",IF(E48=" ",N(0),IF(SUM(K48:O48)=0,N(0),SUM(K48:O48)))) -> 0
D49: ='INFORMATIONS COMPETITEURS'!D48 -> 40 | E49: =IF('INFORMATIONS COMPETITEURS'!$D$59="TABLEAU DE SAISIE CONFORME",CONCATENATE('INFORMATIONS COMPETITEURS'!G48," ",'INFORMATIONS COMPETITEURS'!E48),"") ->  | H49: =IF('INFORMATIONS COMPETITEURS'!$D$59="TABLEAU DE SAISIE CONFORME",IF('INFORMATIONS COMPETITEURS'!I48="","",'INFORMATIONS COMPETITEURS'!I48),"") ->  | P49: =IF('INFORMATIONS COMPETITEURS'!$D$59="TABLEAU DE SAISIE NON CONFORME","",IF(E49=" ",N(0),IF(SUM(K49:O49)=0,N(0),SUM(K49:O49)))) -> 0
D50: ='INFORMATIONS COMPETITEURS'!D49 -> 41 | E50: =IF('INFORMATIONS COMPETITEURS'!$D$59="TABLEAU DE SAISIE CONFORME",CONCATENATE('INFORMATIONS COMPETITEURS'!G49," ",'INFORMATIONS COMPETITEURS'!E49),"") ->  | H50: =IF('INFORMATIONS COMPETITEURS'!$D$59="TABLEAU DE SAISIE CONFORME",IF('INFORMATIONS COMPETITEURS'!I49="","",'INFORMATIONS COMPETITEURS'!I49),"") ->  | P50: =IF('INFORMATIONS COMPETITEURS'!$D$59="TABLEAU DE SAISIE NON CONFORME","",IF(E50=" ",N(0),IF(SUM(K50:O50)=0,N(0),SUM(K50:O50)))) -> 0
D51: ='INFORMATIONS COMPETITEURS'!D50 -> 42 | E51: =IF('INFORMATIONS COMPETITEURS'!$D$59="TABLEAU DE SAISIE CONFORME",CONCATENATE('INFORMATIONS COMPETITEURS'!G50," ",'INFORMATIONS COMPETITEURS'!E50),"") ->  | H51: =IF('INFORMATIONS COMPETITEURS'!$D$59="TABLEAU DE SAISIE CONFORME",IF('INFORMATIONS COMPETITEURS'!I50="","",'INFORMATIONS COMPETITEURS'!I50),"") ->  | P51: =IF('INFORMATIONS COMPETITEURS'!$D$59="TABLEAU DE SAISIE NON CONFORME","",IF(E51=" ",N(0),IF(SUM(K51:O51)=0,N(0),SUM(K51:O51)))) -> 0
D52: ='INFORMATIONS COMPETITEURS'!D51 -> 43 | E52: =IF('INFORMATIONS COMPETITEURS'!$D$59="TABLEAU DE SAISIE CONFORME",CONCATENATE('INFORMATIONS COMPETITEURS'!G51," ",'INFORMATIONS COMPETITEURS'!E51),"") ->  | H52: =IF('INFORMATIONS COMPETITEURS'!$D$59="TABLEAU DE SAISIE CONFORME",IF('INFORMATIONS COMPETITEURS'!I51="","",'INFORMATIONS COMPETITEURS'!I51),"") ->  | P52: =IF('INFORMATIONS COMPETITEURS'!$D$59="TABLEAU DE SAISIE NON CONFORME","",IF(E52=" ",N(0),IF(SUM(K52:O52)=0,N(0),SUM(K52:O52)))) -> 0
D53: ='INFORMATIONS COMPETITEURS'!D52 -> 44 | E53: =IF('INFORMATIONS COMPETITEURS'!$D$59="TABLEAU DE SAISIE CONFORME",CONCATENATE('INFORMATIONS COMPETITEURS'!G52," ",'INFORMATIONS COMPETITEURS'!E52),"") ->  | H53: =IF('INFORMATIONS COMPETITEURS'!$D$59="TABLEAU DE SAISIE CONFORME",IF('INFORMATIONS COMPETITEURS'!I52="","",'INFORMATIONS COMPETITEURS'!I52),"") ->  | P53: =IF('INFORMATIONS COMPETITEURS'!$D$59="TABLEAU DE SAISIE NON CONFORME","",IF(E53=" ",N(0),IF(SUM(K53:O53)=0,N(0),SUM(K53:O53)))) -> 0
D54: ='INFORMATIONS COMPETITEURS'!D53 -> 45 | E54: =IF('INFORMATIONS COMPETITEURS'!$D$59="TABLEAU DE SAISIE CONFORME",CONCATENATE('INFORMATIONS COMPETITEURS'!G53," ",'INFORMATIONS COMPETITEURS'!E53),"") ->  | H54: =IF('INFORMATIONS COMPETITEURS'!$D$59="TABLEAU DE SAISIE CONFORME",IF('INFORMATIONS COMPETITEURS'!I53="","",'INFORMATIONS COMPETITEURS'!I53),"") ->  | P54: =IF('INFORMATIONS COMPETITEURS'!$D$59="TABLEAU DE SAISIE NON CONFORME","",IF(E54=" ",N(0),IF(SUM(K54:O54)=0,N(0),SUM(K54:O54)))) -> 0
D55: ='INFORMATIONS COMPETITEURS'!D54 -> 46 | E55: =IF('INFORMATIONS COMPETITEURS'!$D$59="TABLEAU DE SAISIE CONFORME",CONCATENATE('INFORMATIONS COMPETITEURS'!G54," ",'INFORMATIONS COMPETITEURS'!E54),"") ->  | H55: =IF('INFORMATIONS COMPETITEURS'!$D$59="TABLEAU DE SAISIE CONFORME",IF('INFORMATIONS COMPETITEURS'!I54="","",'INFORMATIONS COMPETITEURS'!I54),"") ->  | P55: =IF('INFORMATIONS COMPETITEURS'!$D$59="TABLEAU DE SAISIE NON CONFORME","",IF(E55=" ",N(0),IF(SUM(K55:O55)=0,N(0),SUM(K55:O55)))) -> 0
D56: ='INFORMATIONS COMPETITEURS'!D55 -> 47 | E56: =IF('INFORMATIONS COMPETITEURS'!$D$59="TABLEAU DE SAISIE CONFORME",CONCATENATE('INFORMATIONS COMPETITEURS'!G55," ",'INFORMATIONS COMPETITEURS'!E55),"") ->  | H56: =IF('INFORMATIONS COMPETITEURS'!$D$59="TABLEAU DE SAISIE CONFORME",IF('INFORMATIONS COMPETITEURS'!I55="","",'INFORMATIONS COMPETITEURS'!I55),"") ->  | P56: =IF('INFORMATIONS COMPETITEURS'!$D$59="TABLEAU DE SAISIE NON CONFORME","",IF(E56=" ",N(0),IF(SUM(K56:O56)=0,N(0),SUM(K56:O56)))) -> 0
D57: ='INFORMATIONS COMPETITEURS'!D56 -> 48 | E57: =IF('INFORMATIONS COMPETITEURS'!$D$59="TABLEAU DE SAISIE CONFORME",CONCATENATE('INFORMATIONS COMPETITEURS'!G56," ",'INFORMATIONS COMPETITEURS'!E56),"") ->  | H57: =IF('INFORMATIONS COMPETITEURS'!$D$59="TABLEAU DE SAISIE CONFORME",IF('INFORMATIONS COMPETITEURS'!I56="","",'INFORMATIONS COMPETITEURS'!I56),"") ->  | P57: =IF('INFORMATIONS COMPETITEURS'!$D$59="TABLEAU DE SAISIE NON CONFORME","",IF(E57=" ",N(0),IF(SUM(K57:O57)=0,N(0),SUM(K57:O57)))) -> 0
D58: ='INFORMATIONS COMPETITEURS'!D57 -> 49 | E58: =IF('INFORMATIONS COMPETITEURS'!$D$59="TABLEAU DE SAISIE CONFORME",CONCATENATE('INFORMATIONS COMPETITEURS'!G57," ",'INFORMATIONS COMPETITEURS'!E57),"") ->  | H58: =IF('INFORMATIONS COMPETITEURS'!$D$59="TABLEAU DE SAISIE CONFORME",IF('INFORMATIONS COMPETITEURS'!I57="","",'INFORMATIONS COMPETITEURS'!I57),"") ->  | P58: =IF('INFORMATIONS COMPETITEURS'!$D$59="TABLEAU DE SAISIE NON CONFORME","",IF(E58=" ",N(0),IF(SUM(K58:O58)=0,N(0),SUM(K58:O58)))) -> 0
D59: ='INFORMATIONS COMPETITEURS'!D58 -> 50 | E59: =IF('INFORMATIONS COMPETITEURS'!$D$59="TABLEAU DE SAISIE CONFORME",CONCATENATE('INFORMATIONS COMPETITEURS'!G58," ",'INFORMATIONS COMPETITEURS'!E58),"") ->  | H59: =IF('INFORMATIONS COMPETITEURS'!$D$59="TABLEAU DE SAISIE CONFORME",IF('INFORMATIONS COMPETITEURS'!I58="","",'INFORMATIONS COMPETITEURS'!I58),"") ->  | P59: =IF('INFORMATIONS COMPETITEURS'!$D$59="TABLEAU DE SAISIE NON CONFORME","",IF(E59=" ",N(0),IF(SUM(K59:O59)=0,N(0),SUM(K59:O59)))) -> 0

Sheet MOUCHE N°3
D3: SAISIE DES RESULTATS - MOUCHE N°3
D6: N° de plaquette | E6: Compétiteur | H6: Club | K6: RESULTATS DES JUGES | P6: POINTS MOUCHES
K8: Juge N°1 | L8: Juge N°2 | M8: Juge N°3 | N8: Juge N°4 | O8: Juge N°5
D10: ='INFORMATIONS COMPETITEURS'!D9 -> 1 | E10: =IF('INFORMATIONS COMPETITEURS'!$D$59="TABLEAU DE SAISIE CONFORME",CONCATENATE('INFORMATIONS COMPETITEURS'!G9," ",'INFORMATIONS COMPETITEURS'!E9),"") -> Claude CAMPILLO | H10: =IF('INFORMATIONS COMPETITEURS'!$D$59="TABLEAU DE SAISIE CONFORME",IF('INFORMATIONS COMPETITEURS'!I9="","",'INFORMATIONS COMPETITEURS'!I9),"") -> CML | K10: 61 | L10: 58 | M10: 53 | P10: =IF('INFORMATIONS COMPETITEURS'!$D$59="TABLEAU DE SAISIE NON CONFORME","",IF(E10=" ",N(0),IF(SUM(K10:O10)=0,N(0),SUM(K10:O10)))) -> 172
D11: ='INFORMATIONS COMPETITEURS'!D10 -> 2 | E11: =IF('INFORMATIONS COMPETITEURS'!$D$59="TABLEAU DE SAISIE CONFORME",CONCATENATE('INFORMATIONS COMPETITEURS'!G10," ",'INFORMATIONS COMPETITEURS'!E10),"") -> Didier DIEGO | H11: =IF('INFORMATIONS COMPETITEURS'!$D$59="TABLEAU DE SAISIE CONFORME",IF('INFORMATIONS COMPETITEURS'!I10="","",'INFORMATIONS COMPETITEURS'!I10),"") -> GPD Pays d'Oc | K11: 75 | L11: 72 | M11: 68 | P11: =IF('INFORMATIONS COMPETITEURS'!$D$59="TABLEAU DE SAISIE NON CONFORME","",IF(E11=" ",N(0),IF(SUM(K11:O11)=0,N(0),SUM(K11:O11)))) -> 215
D12: ='INFORMATIONS COMPETITEURS'!D11 -> 3 | E12: =IF('INFORMATIONS COMPETITEURS'!$D$59="TABLEAU DE SAISIE CONFORME",CONCATENATE('INFORMATIONS COMPETITEURS'!G11," ",'INFORMATIONS COMPETITEURS'!E11),"") -> Samuel CREPILLON | H12: =IF('INFORMATIONS COMPETITEURS'!$D$59="TABLEAU DE SAISIE CONFORME",IF('INFORMATIONS COMPETITEURS'!I11="","",'INFORMATIONS COMPETITEURS'!I11),"") -> GPS Nièvre Morvan | K12: 48 | L12: 48 | M12: 46 | P12: =IF('INFORMATIONS COMPETITEURS'!$D$59="TABLEAU DE SAISIE NON CONFORME","",IF(E12=" ",N(0),IF(SUM(K12:O12)=0,N(0),SUM(K12:O12)))) -> 142
D13: ='INFORMATIONS COMPETITEURS'!D12 -> 4 | E13: =IF('INFORMATIONS COMPETITEURS'!$D$59="TABLEAU DE SAISIE CONFORME",CONCATENATE('INFORMATIONS COMPETITEURS'!G12," ",'INFORMATIONS COMPETITEURS'!E12),"") -> Valentin BIBENT | H13: =IF('INFORMATIONS COMPETITEURS'!$D$59="TABLEAU DE SAISIE CONFORME",IF('INFORMATIONS COMPETITEURS'!I12="","",'INFORMATIONS COMPETITEURS'!I12),"") -> CML | K13: 53 | L13: 50 | M13: 48 | P13: =IF('INFORMATIONS COMPETITEURS'!$D$59="TABLEAU DE SAISIE NON CONFORME","",IF(E13=" ",N(0),IF(SUM(K13:O13)=0,N(0),SUM(K13:O13)))) -> 151
D14: ='INFORMATIONS COMPETITEURS'!D13 -> 5 | E14: =IF('INFORMATIONS COMPETITEURS'!$D$59="TABLEAU DE SAISIE CONFORME",CONCATENATE('INFORMATIONS COMPETITEURS'!G13," ",'INFORMATIONS COMPETITEURS'!E13),"") -> Nathalie ALBERGE | H14: =IF('INFORMATIONS COMPETITEURS'!$D$59="TABLEAU DE SAISIE CONFORME",IF('INFORMATIONS COMPETITEURS'!I13="","",'INFORMATIONS COMPETITEURS'!I13),"") -> CM Pays d'Oc | K14: 60 | L14: 60 | M14: 57 | P14: =IF('INFORMATIONS COMPETITEURS'!$D$59="TABLEAU DE SAISIE NON CONFORME","",IF(E14=" ",N(0),IF(SUM(K14:O14)=0,N(0),SUM(K14:O14)))) -> 177
D15: ='INFORMATIONS COMPETITEURS'!D14 -> 6 | E15: =IF('INFORMATIONS COMPETITEURS'!$D$59="TABLEAU DE SAISIE CONFORME",CONCATENATE('INFORMATIONS COMPETITEURS'!G14," ",'INFORMATIONS COMPETITEURS'!E14),"") -> Jean-Luc GAULON | H15: =IF('INFORMATIONS COMPETITEURS'!$D$59="TABLEAU DE SAISIE CONFORME",IF('INFORMATIONS COMPETITEURS'!I14="","",'INFORMATIONS COMPETITEURS'!I14),"") -> CMCRE | K15: 73 | L15: 77 | M15: 72 | P15: =IF('INFORMATIONS COMPETITEURS'!$D$59="TABLEAU DE SAISIE NON CONFORME","",IF(E15=" ",N(0),IF(SUM(K15:O15)=0,N(0),SUM(K15:O15)))) -> 222
D16: ='INFORMATIONS COMPETITEURS'!D15 -> 7 | E16: =IF('INFORMATIONS COMPETITEURS'!$D$59="TABLEAU DE SAISIE CONFORME",CONCATENATE('INFORMATIONS COMPETITEURS'!G15," ",'INFORMATIONS COMPETITEURS'!E15),"") -> Jérôme VILLE | H16: =IF('INFORMATIONS COMPETITEURS'!$D$59="TABLEAU DE SAISIE CONFORME",IF('INFORMATIONS COMPETITEURS'!I15="","",'INFORMATIONS COMPETITEURS'!I15),"") -> GPS Lyon Centre | K16: 57 | L16: 52 | M16: 48 | P16: =IF('INFORMATIONS COMPETITEURS'!$D$59="TABLEAU DE SAISIE NON CONFORME","",IF(E16=" ",N(0),IF(SUM(K16:O16)=0,N(0),SUM(K16:O16)))) -> 157
D17: ='INFORMATIONS COMPETITEURS'!D16 -> 8 | E17: =IF('INFORMATIONS COMPETITEURS'!$D$59="TABLEAU DE SAISIE CONFORME",CONCATENATE('INFORMATIONS COMPETITEURS'!G16," ",'INFORMATIONS COMPETITEURS'!E16),"") -> Edgard RICHARD | H17: =IF('INFORMATIONS COMPETITEURS'!$D$59="TABLEAU DE SAISIE CONFORME",IF('INFORMATIONS COMPETITEURS'!I16="","",'INFORMATIONS COMPETITEURS'!I16),"") -> Ecole de pêche Dijon | K17: 42 | L17: 47 | M17: 43 | P17: =IF('INFORMATIONS COMPETITEURS'!$D$59="TABLEAU DE SAISIE NON CONFORME","",IF(E17=" ",N(0),IF(SUM(K17:O17)=0,N(0),SUM(K17:O17)))) -> 132
D18: ='INFORMATIONS COMPETITEURS'!D17 -> 9 | E18: =IF('INFORMATIONS COMPETITEURS'!$D$59="TABLEAU DE SAISIE CONFORME",CONCATENATE('INFORMATIONS COMPETITEURS'!G17," ",'INFORMATIONS COMPETITEURS'!E17),"") -> Solène Le Bourhis Beyer | H18: =IF('INFORMATIONS COMPETITEURS'!$D$59="TABLEAU DE SAISIE CONFORME",IF('INFORMATIONS COMPETITEURS'!I17="","",'INFORMATIONS COMPETITEURS'!I17),"") -> CM Arzano | K18: 50 | L18: 50 | M18: 46 | P18: =IF('INFORMATIONS COMPETITEURS'!$D$59="TABLEAU DE SAISIE NON CONFORME","",IF(E18=" ",N(0),IF(SUM(K18:O18)=0,N(0),SUM(K18:O18)))) -> 146
D19: ='INFORMATIONS COMPETITEURS'!D18 -> 10 | E19: =IF('INFORMATIONS COMPETITEURS'!$D$59="TABLEAU DE SAISIE CONFORME",CONCATENATE('INFORMATIONS COMPETITEURS'!G18," ",'INFORMATIONS COMPETITEURS'!E18),"") -> Guy MASSON | H19: =IF('INFORMATIONS COMPETITEURS'!$D$59="TABLEAU DE SAISIE CONFORME",IF('INFORMATIONS COMPETITEURS'!I18="","",'INFORMATIONS COMPETITEURS'!I18),"") -> GPS Lyon Centre | K19: 52 | L19: 47 | M19: 54 | P19: =IF('INFORMATIONS COMPETITEURS'!$D$59="TABLEAU DE SAISIE NON CONFORME","",IF(E19=" ",N(0),IF(SUM(K19:O19)=0,N(0),SUM(K19:O19)))) -> 153
D20: ='INFORMATIONS COMPETITEURS'!D19 -> 11 | E20: =IF('INFORMATIONS COMPETITEURS'!$D$59="TABLEAU DE SAISIE CONFORME",CONCATENATE('INFORMATIONS COMPETITEURS'!G19," ",'INFORMATIONS COMPETITEURS'!E19),"") -> Gerard COMMARET | H20: =IF('INFORMATIONS COMPETITEURS'!$D$59="TABLEAU DE SAISIE CONFORME",IF('INFORMATIONS COMPETITEURS'!I19="","",'INFORMATIONS COMPETITEURS'!I19),"") -> GPS Val de Saone | K20: 15 | L20: 20 | M20: 20 | P20: =IF('INFORMATIONS COMPETITEURS'!$D$59="TABLEAU DE SAISIE NON CONFORME","",IF(E20=" ",N(0),IF(SUM(K20:O20)=0,N(0),SUM(K20:O20)))) -> 55
D21: ='INFORMATIONS COMPETITEURS'!D20 -> 12 | E21: =IF('INFORMATIONS COMPETITEURS'!$D$59="TABLEAU DE SAISIE CONFORME",CONCATENATE('INFORMATIONS COMPETITEURS'!G20," ",'INFORMATIONS COMPETITEURS'!E20),"") -> Stéphane PONCET | H21: =IF('INFORMATIONS COMPETITEURS'!$D$59="TABLEAU DE SAISIE CONFORME",IF('INFORMATIONS COMPETITEURS'!I20="","",'INFORMATIONS COMPETITEURS'!I20),"") -> GPS Bresse Remiremont | K21: 80 | L21: 81 | M21: 77 | P21: =IF('INFORMATIONS COMPETITEURS'!$D$59="TABLEAU DE SAISIE NON CONFORME","",IF(E21=" ",N(0),IF(SUM(K21:O21)=0,N(0),SUM(K21:O21)))) -> 238
D22: ='INFORMATIONS COMPETITEURS'!D21 -> 13 | E22: =IF('INFORMATIONS COMPETITEURS'!$D$59="TABLEAU DE SAISIE CONFORME",CONCATENATE('INFORMATIONS COMPETITEURS'!G21," ",'INFORMATIONS COMPETITEURS'!E21),"") -> Didier CHETAUD | H22: =IF('INFORMATIONS COMPETITEURS'!$D$59="TABLEAU DE SAISIE CONFORME",IF('INFORMATIONS COMPETITEURS'!I21="","",'INFORMATIONS COMPETITEURS'!I21),"") -> GPS Val de Saone | K22: 97 | L22: 97 | M22: 98 | P22: =IF('INFORMATIONS COMPETITEURS'!$D$59="TABLEAU DE SAISIE NON CONFORME","",IF(E22=" ",N(0),IF(SUM(K22:O22)=0,N(0),SUM(K22:O22)))) -> 292
D23: ='INFORMATIONS COMPETITEURS'!D22 -> 14 | E23: =IF('INFORMATIONS COMPETITEURS'!$D$59="TABLEAU DE SAISIE CONFORME",CONCATENATE('INFORMATIONS COMPETITEURS'!G22," ",'INFORMATIONS COMPETITEURS'!E22),"") -> Eric GIAMPRETI | H23: =IF('INFORMATIONS COMPETITEURS'!$D$59="TABLEAU DE SAISIE CONFORME",IF('INFORMATIONS COMPETITEURS'!I22="","",'INFORMATIONS COMPETITEURS'!I22),"") -> GPS Lyon Centre | K23: 33 | L23: 35 | M23: 38 | P23: =IF('INFORMATIONS COMPETITEURS'!$D$59="TABLEAU DE SAISIE NON CONFORME","",IF(E23=" ",N(0),IF(SUM(K23:O23)=0,N(0),SUM(K23:O23)))) -> 106
D24: ='INFORMATIONS COMPETITEURS'!D23 -> 15 | E24: =IF('INFORMATIONS COMPETITEURS'!$D$59="TABLEAU DE SAISIE CONFORME",CONCATENATE('INFORMATIONS COMPETITEURS'!G23," ",'INFORMATIONS COMPETITEURS'!E23),"") -> Frédéric EVENNOU | H24: =IF('INFORMATIONS COMPETITEURS'!$D$59="TABLEAU DE SAISIE CONFORME",IF('INFORMATIONS COMPETITEURS'!I23="","",'INFORMATIONS COMPETITEURS'!I23),"") -> GPS Lyon Centre | K24: 51 | L24: 48 | M24: 44 | P24: =IF('INFORMATIONS COMPETITEURS'!$D$59="TABLEAU DE SAISIE NON CONFORME","",IF(E24=" ",N(0),IF(SUM(K24:O24)=0,N(0),SUM(K24:O24)))) -> 143
D25: ='INFORMATIONS COMPETITEURS'!D24 -> 16 | E25: =IF('INFORMATIONS COMPETITEURS'!$D$59="TABLEAU DE SAISIE CONFORME",CONCATENATE('INFORMATIONS COMPETITEURS'!G24," ",'INFORMATIONS COMPETITEURS'!E24),"") -> Bernard FAIVRE | H25: =IF('INFORMATIONS COMPETITEURS'!$D$59="TABLEAU DE SAISIE CONFORME",IF('INFORMATIONS COMPETITEURS'!I24="","",'INFORMATIONS COMPETITEURS'!I24),"") -> GPS Pays d'Oc | K25: 45 | L25: 42 | M25: 38 | P25: =IF('INFORMATIONS COMPETITEURS'!$D$59="TABLEAU DE SAISIE NON CONFORME","",IF(E25=" ",N(0),IF(SUM(K25:O25)=0,N(0),SUM(K25:O25)))) -> 125
D26: ='INFORMATIONS COMPETITEURS'!D25 -> 17 | E26: =IF('INFORMATIONS COMPETITEURS'!$D$59="TABLEAU DE SAISIE CONFORME",CONCATENATE('INFORMATIONS COMPETITEURS'!G25," ",'INFORMATIONS COMPETITEURS'!E25),"") -> Bernard Rémi | H26: =IF('INFORMATIONS COMPETITEURS'!$D$59="TABLEAU DE SAISIE CONFORME",IF('INFORMATIONS COMPETITEURS'!I25="","",'INFORMATIONS COMPETITEURS'!I25),"") -> Ecole de pêche Dijon | K26: 0 | L26: 0 | M26: 0 | P26: =IF('INFORMATIONS COMPETITEURS'!$D$59="TABLEAU DE SAISIE NON CONFORME","",IF(E26=" ",N(0),IF(SUM(K26:O26)=0,N(0),SUM(K26:O26)))) -> 0
D27: ='INFORMATIONS COMPETITEURS'!D26 -> 18 | E27: =IF('INFORMATIONS COMPETITEURS'!$D$59="TABLEAU DE SAISIE CONFORME",CONCATENATE('INFORMATIONS COMPETITEURS'!G26," ",'INFORMATIONS COMPETITEURS'!E26),"") -> Denis FAUVELLIERE | H27: =IF('INFORMATIONS COMPETITEURS'!$D$59="TABLEAU DE SAISIE CONFORME",IF('INFORMATIONS COMPETITEURS'!I26="","",'INFORMATIONS COMPETITEURS'!I26),"") -> CM Plaisir | K27: 52 | L27: 51 | M27: 49 | P27: =IF('INFORMATIONS COMPETITEURS'!$D$59="TABLEAU DE SAISIE NON CONFORME","",IF(E27=" ",N(0),IF(SUM(K27:O27)=0,N(0),SUM(K27:O27)))) -> 152
D28: ='INFORMATIONS COMPETITEURS'!D27 -> 19 | E28: =IF('INFORMATIONS COMPETITEURS'!$D$59="TABLEAU DE SAISIE CONFORME",CONCATENATE('INFORMATIONS COMPETITEURS'!G27," ",'INFORMATIONS COMPETITEURS'!E27),"") -> Lionel GOMINET | H28: =IF('INFORMATIONS COMPETITEURS'!$D$59="TABLEAU DE SAISIE CONFORME",IF('INFORMATIONS COMPETITEURS'!I27="","",'INFORMATIONS COMPETITEURS'!I27),"") -> GPS Pays d'Oc | K28: 55 | L28: 63 | M28: 57 | P28: =IF('INFORMATIONS COMPETITEURS'!$D$59="TABLEAU DE SAISIE NON CONFORME","",IF(E28=" ",N(0),IF(SUM(K28:O28)=0,N(0),SUM(K28:O28)))) -> 175
D29: ='INFORMATIONS COMPETITEURS'!D28 -> 20 | E29: =IF('INFORMATIONS COMPETITEURS'!$D$59="TABLEAU DE SAISIE CONFORME",CONCATENATE('INFORMATIONS COMPETITEURS'!G28," ",'INFORMATIONS COMPETITEURS'!E28),"") -> HAMZA MAACH | H29: =IF('INFORMATIONS COMPETITEURS'!$D$59="TABLEAU DE SAISIE CONFORME",IF('INFORMATIONS COMPETITEURS'!I28="","",'INFORMATIONS COMPETITEURS'!I28),"") -> Ecole de pêche Dijon | K29: 23 | L29: 25 | M29: 31 | P29: =IF('INFORMATIONS COMPETITEURS'!$D$59="TABLEAU DE SAISIE NON CONFORME","",IF(E29=" ",N(0),IF(SUM(K29:O29)=0,N(0),SUM(K29:O29)))) -> 79
D30: ='INFORMATIONS COMPETITEURS'!D29 -> 21 | E30: =IF('INFORMATIONS COMPETITEURS'!$D$59="TABLEAU DE SAISIE CONFORME",CONCATENATE('INFORMATIONS COMPETITEURS'!G29," ",'INFORMATIONS COMPETITEURS'!E29),"") -> Dimitri DEZOTHEZ | H30: =IF('INFORMATIONS COMPETITEURS'!$D$59="TABLEAU DE SAISIE CONFORME",IF('INFORMATIONS COMPETITEURS'!I29="","",'INFORMATIONS COMPETITEURS'!I29),"") -> Club Mouche du gévaudan | K30: 59 | L30: 58 | M30: 56 | P30: =IF('INFORMATIONS COMPETITEURS'!$D$59="TABLEAU DE SAISIE NON CONFORME","",IF(E30=" ",N(0),IF(SUM(K30:O30)=0,N(0),SUM(K30:O30)))) -> 173
D31: ='INFORMATIONS COMPETITEURS'!D30 -> 22 | E31: =IF('INFORMATIONS COMPETITEURS'!$D$59="TABLEAU DE SAISIE CONFORME",CONCATENATE('INFORMATIONS COMPETITEURS'!G30," ",'INFORMATIONS COMPETITEURS'!E30),"") -> Dominique BRULEY | H31: =IF('INFORMATIONS COMPETITEURS'!$D$59="TABLEAU DE SAISIE CONFORME",IF('INFORMATIONS COMPETITEURS'!I30="","",'INFORMATIONS COMPETITEURS'!I30),"") -> GPS Val de Saone | K31: 43 | L31: 41 | M31: 45 | P31: =IF('INFORMATIONS COMPETITEURS'!$D$59="TABLEAU DE SAISIE NON CONFORME","",IF(E31=" ",N(0),IF(SUM(K31:O31)=0,N(0),SUM(K31:O31)))) -> 129
D32: ='INFORMATIONS COMPETITEURS'!D31 -> 23 | E32: =IF('INFORMATIONS COMPETITEURS'!$D$59="TABLEAU DE SAISIE CONFORME",CONCATENATE('INFORMATIONS COMPETITEURS'!G31," ",'INFORMATIONS COMPETITEURS'!E31),"") -> Christophe MARTIN | H32: =IF('INFORMATIONS COMPETITEURS'!$D$59="TABLEAU DE SAISIE CONFORME",IF('INFORMATIONS COMPETITEURS'!I31="","",'INFORMATIONS COMPETITEURS'!I31),"") -> CM Plaisir | K32: 42 | L32: 45 | M32: 40 | P32: =IF('INFORMATIONS COMPETITEURS'!$D$59="TABLEAU DE SAISIE NON CONFORME","",IF(E32=" ",N(0),IF(SUM(K32:O32)=0,N(0),SUM(K32:O32)))) -> 127
D33: ='INFORMATIONS COMPETITEURS'!D32 -> 24 | E33: =IF('INFORMATIONS COMPETITEURS'!$D$59="TABLEAU DE SAISIE CONFORME",CONCATENATE('INFORMATIONS COMPETITEURS'!G32," ",'INFORMATIONS COMPETITEURS'!E32),"") -> Gérard VILLA | H33: =IF('INFORMATIONS COMPETITEURS'!$D$59="TABLEAU DE SAISIE CONFORME",IF('INFORMATIONS COMPETITEURS'!I32="","",'INFORMATIONS COMPETITEURS'!I32),"") -> GPS Pays d'Oc | K33: 54 | L33: 52 | M33: 51 | P33: =IF('INFORMATIONS COMPETITEURS'!$D$59="TABLEAU DE SAISIE NON CONFORME","",IF(E33=" ",N(0),IF(SUM(K33:O33)=0,N(0),SUM(K33:O33)))) -> 157
D34: ='INFORMATIONS COMPETITEURS'!D33 -> 25 | E34: =IF('INFORMATIONS COMPETITEURS'!$D$59="TABLEAU DE SAISIE CONFORME",CONCATENATE('INFORMATIONS COMPETITEURS'!G33," ",'INFORMATIONS COMPETITEURS'!E33),"") -> patrick JACQUOT | H34: =IF('INFORMATIONS COMPETITEURS'!$D$59="TABLEAU DE SAISIE CONFORME",IF('INFORMATIONS COMPETITEURS'!I33="","",'INFORMATIONS COMPETITEURS'!I33),"") -> GPS Val de Saone | K34: 48 | L34: 48 | M34: 53 | P34: =IF('INFORMATIONS COMPETITEURS'!$D$59="TABLEAU DE SAISIE NON CONFORME","",IF(E34=" ",N(0),IF(SUM(K34:O34)=0,N(0),SUM(K34:O34)))) -> 149
D35: ='INFORMATIONS COMPETITEURS'!D34 -> 26 | E35: =IF('INFORMATIONS COMPETITEURS'!$D$59="TABLEAU DE SAISIE CONFORME",CONCATENATE('INFORMATIONS COMPETITEURS'!G34," ",'INFORMATIONS COMPETITEURS'!E34),"") -> Henri CALAVIA | H35: =IF('INFORMATIONS COMPETITEURS'!$D$59="TABLEAU DE SAISIE CONFORME",IF('INFORMATIONS COMPETITEURS'!I34="","",'INFORMATIONS COMPETITEURS'!I34),"") -> CMCRE | K35: 92 | L35: 93 | M35: 93 | P35: =IF('INFORMATIONS COMPETITEURS'!$D$59="TABLEAU DE SAISIE NON CONFORME","",IF(E35=" ",N(0),IF(SUM(K35:O35)=0,N(0),SUM(K35:O35)))) -> 278
D36: ='INFORMATIONS COMPETITEURS'!D35 -> 27 | E36: =IF('INFORMATIONS COMPETITEURS'!$D$59="TABLEAU DE SAISIE CONFORME",CONCATENATE('INFORMATIONS COMPETITEURS'!G35," ",'INFORMATIONS COMPETITEURS'!E35),"") -> Batiste JEANIN | H36: =IF('INFORMATIONS COMPETITEURS'!$D$59="TABLEAU DE SAISIE CONFORME",IF('INFORMATIONS COMPETITEURS'!I35="","",'INFORMATIONS COMPETITEURS'!I35),"") -> Ecole de pêche Dijon | K36: 38 | L36: 38 | M36: 30 | P36: =IF('INFORMATIONS COMPETITEURS'!$D$59="TABLEAU DE SAISIE NON CONFORME","",IF(E36=" ",N(0),IF(SUM(K36:O36)=0,N(0),SUM(K36:O36)))) -> 106
D37: ='INFORMATIONS COMPETITEURS'!D36 -> 28 | E37: =IF('INFORMATIONS COMPETITEURS'!$D$59="TABLEAU DE SAISIE CONFORME",CONCATENATE('INFORMATIONS COMPETITEURS'!G36," ",'INFORMATIONS COMPETITEURS'!E36),"") -> Règis CAZARETH | H37: =IF('INFORMATIONS COMPETITEURS'!$D$59="TABLEAU DE SAISIE CONFORME",IF('INFORMATIONS COMPETITEURS'!I36="","",'INFORMATIONS COMPETITEURS'!I36),"") -> GPS Décines | K37: 52 | L37: 44 | M37: 42 | P37: =IF('INFORMATIONS COMPETITEURS'!$D$59="TABLEAU DE SAISIE NON CONFORME","",IF(E37=" ",N(0),IF(SUM(K37:O37)=0,N(0),SUM(K37:O37)))) -> 138
D38: ='INFORMATIONS COMPETITEURS'!D37 -> 29 | E38: =IF('INFORMATIONS COMPETITEURS'!$D$59="TABLEAU DE SAISIE CONFORME",CONCATENATE('INFORMATIONS COMPETITEURS'!G37," ",'INFORMATIONS COMPETITEURS'!E37),"") -> BOUAFFIA DENIL | H38: =IF('INFORMATIONS COMPETITEURS'!$D$59="TABLEAU DE SAISIE CONFORME",IF('INFORMATIONS COMPETITEURS'!I37="","",'INFORMATIONS COMPETITEURS'!I37),"") -> GPS | K38: 0 | L38: 0 | M38: 0 | P38: =IF('INFORMATIONS COMPETITEURS'!$D$59="TABLEAU DE SAISIE NON CONFORME","",IF(E38=" ",N(0),IF(SUM(K38:O38)=0,N(0),SUM(K38:O38)))) -> 0
D39: ='INFORMATIONS COMPETITEURS'!D38 -> 30 | E39: =IF('INFORMATIONS COMPETITEURS'!$D$59="TABLEAU DE SAISIE CONFORME",CONCATENATE('INFORMATIONS COMPETITEURS'!G38," ",'INFORMATIONS COMPETITEURS'!E38),"") ->  | H39: =IF('INFORMATIONS COMPETITEURS'!$D$59="TABLEAU DE SAISIE CONFORME",IF('INFORMATIONS COMPETITEURS'!I38="","",'INFORMATIONS COMPETITEURS'!I38),"") ->  | P39: =IF('INFORMATIONS COMPETITEURS'!$D$59="TABLEAU DE SAISIE NON CONFORME","",IF(E39=" ",N(0),IF(SUM(K39:O39)=0,N(0),SUM(K39:O39)))) -> 0
D40: ='INFORMATIONS COMPETITEURS'!D39 -> 31 | E40: =IF('INFORMATIONS COMPETITEURS'!$D$59="TABLEAU DE SAISIE CONFORME",CONCATENATE('INFORMATIONS COMPETITEURS'!G39," ",'INFORMATIONS COMPETITEURS'!E39),"") ->  | H40: =IF('INFORMATIONS COMPETITEURS'!$D$59="TABLEAU DE SAISIE CONFORME",IF('INFORMATIONS COMPETITEURS'!I39="","",'INFORMATIONS COMPETITEURS'!I39),"") ->  | P40: =IF('INFORMATIONS COMPETITEURS'!$D$59="TABLEAU DE SAISIE NON CONFORME","",IF(E40=" ",N(0),IF(SUM(K40:O40)=0,N(0),SUM(K40:O40)))) -> 0
D41: ='INFORMATIONS COMPETITEURS'!D40 -> 32 | E41: =IF('INFORMATIONS COMPETITEURS'!$D$59="TABLEAU DE SAISIE CONFORME",CONCATENATE('INFORMATIONS COMPETITEURS'!G40," ",'INFORMATIONS COMPETITEURS'!E40),"") ->  | H41: =IF('INFORMATIONS COMPETITEURS'!$D$59="TABLEAU DE SAISIE CONFORME",IF('INFORMATIONS COMPETITEURS'!I40="","",'INFORMATIONS COMPETITEURS'!I40),"") ->  | P41: =IF('INFORMATIONS COMPETITEURS'!$D$59="TABLEAU DE SAISIE NON CONFORME","",IF(E41=" ",N(0),IF(SUM(K41:O41)=0,N(0),SUM(K41:O41)))) -> 0
D42: ='INFORMATIONS COMPETITEURS'!D41 -> 33 | E42: =IF('INFORMATIONS COMPETITEURS'!$D$59="TABLEAU DE SAISIE CONFORME",CONCATENATE('INFORMATIONS COMPETITEURS'!G41," ",'INFORMATIONS COMPETITEURS'!E41),"") ->  | H42: =IF('INFORMATIONS COMPETITEURS'!$D$59="TABLEAU DE SAISIE CONFORME",IF('INFORMATIONS COMPETITEURS'!I41="","",'INFORMATIONS COMPETITEURS'!I41),"") ->  | P42: =IF('INFORMATIONS COMPETITEURS'!$D$59="TABLEAU DE SAISIE NON CONFORME","",IF(E42=" ",N(0),IF(SUM(K42:O42)=0,N(0),SUM(K42:O42)))) -> 0
D43: ='INFORMATIONS COMPETITEURS'!D42 -> 34 | E43: =IF('INFORMATIONS COMPETITEURS'!$D$59="TABLEAU DE SAISIE CONFORME",CONCATENATE('INFORMATIONS COMPETITEURS'!G42," ",'INFORMATIONS COMPETITEURS'!E42),"") ->  | H43: =IF('INFORMATIONS COMPETITEURS'!$D$59="TABLEAU DE SAISIE CONFORME",IF('INFORMATIONS COMPETITEURS'!I42="","",'INFORMATIONS COMPETITEURS'!I42),"") ->  | P43: =IF('INFORMATIONS COMPETITEURS'!$D$59="TABLEAU DE SAISIE NON CONFORME","",IF(E43=" ",N(0),IF(SUM(K43:O43)=0,N(0),SUM(K43:O43)))) -> 0
D44: ='INFORMATIONS COMPETITEURS'!D43 -> 35 | E44: =IF('INFORMATIONS COMPETITEURS'!$D$59="TABLEAU DE SAISIE CONFORME",CONCATENATE('INFORMATIONS COMPETITEURS'!G43," ",'INFORMATIONS COMPETITEURS'!E43),"") ->  | H44: =IF('INFORMATIONS COMPETITEURS'!$D$59="TABLEAU DE SAISIE CONFORME",IF('INFORMATIONS COMPETITEURS'!I43="","",'INFORMATIONS COMPETITEURS'!I43),"") ->  | P44: =IF('INFORMATIONS COMPETITEURS'!$D$59="TABLEAU DE SAISIE NON CONFORME","",IF(E44=" ",N(0),IF(SUM(K44:O44)=0,N(0),SUM(K44:O44)))) -> 0
D45: ='INFORMATIONS COMPETITEURS'!D44 -> 36 | E45: =IF('INFORMATIONS COMPETITEURS'!$D$59="TABLEAU DE SAISIE CONFORME",CONCATENATE('INFORMATIONS COMPETITEURS'!G44," ",'INFORMATIONS COMPETITEURS'!E44),"") ->  | H45: =IF('INFORMATIONS COMPETITEURS'!$D$59="TABLEAU DE SAISIE CONFORME",IF('INFORMATIONS COMPETITEURS'!I44="","",'INFORMATIONS COMPETITEURS'!I44),"") ->  | P45: =IF('INFORMATIONS COMPETITEURS'!$D$59="TABLEAU DE SAISIE NON CONFORME","",IF(E45=" ",N(0),IF(SUM(K45:O45)=0,N(0),SUM(K45:O45)))) -> 0
D46: ='INFORMATIONS COMPETITEURS'!D45 -> 37 | E46: =IF('INFORMATIONS COMPETITEURS'!$D$59="TABLEAU DE SAISIE CONFORME",CONCATENATE('INFORMATIONS COMPETITEURS'!G45," ",'INFORMATIONS COMPETITEURS'!E45),"") ->  | H46: =IF('INFORMATIONS COMPETITEURS'!$D$59="TABLEAU DE SAISIE CONFORME",IF('INFORMATIONS COMPETITEURS'!I45="","",'INFORMATIONS COMPETITEURS'!I45),"") ->  | P46: =IF('INFORMATIONS COMPETITEURS'!$D$59="TABLEAU DE SAISIE NON CONFORME","",IF(E46=" ",N(0),IF(SUM(K46:O46)=0,N(0),SUM(K46:O46)))) -> 0
D47: ='INFORMATIONS COMPETITEURS'!D46 -> 38 | E47: =IF('INFORMATIONS COMPETITEURS'!$D$59="TABLEAU DE SAISIE CONFORME",CONCATENATE('INFORMATIONS COMPETITEURS'!G46," ",'INFORMATIONS COMPETITEURS'!E46),"") ->  | H47: =IF('INFORMATIONS COMPETITEURS'!$D$59="TABLEAU DE SAISIE CONFORME",IF('INFORMATIONS COMPETITEURS'!I46="","",'INFORMATIONS COMPETITEURS'!I46),"") ->  | P47: =IF('INFORMATIONS COMPETITEURS'!$D$59="TABLEAU DE SAISIE NON CONFORME","",IF(E47=" ",N(0),IF(SUM(K47:O47)=0,N(0),SUM(K47:O47)))) -> 0
D48: ='INFORMATIONS COMPETITEURS'!D47 -> 39 | E48: =IF('INFORMATIONS COMPETITEURS'!$D$59="TABLEAU DE SAISIE CONFORME",CONCATENATE('INFORMATIONS COMPETITEURS'!G47," ",'INFORMATIONS COMPETITEURS'!E47),"") ->  | H48: =IF('INFORMATIONS COMPETITEURS'!$D$59="TABLEAU DE SAISIE CONFORME",IF('INFORMATIONS COMPETITEURS'!I47="","",'INFORMATIONS COMPETITEURS'!I47),"") ->  | P48: =IF('INFORMATIONS COMPETITEURS'!$D$59="TABLEAU DE SAISIE NON CONFORME","",IF(E48=" ",N(0),IF(SUM(K48:O48)=0,N(0),SUM(K48:O48)))) -> 0
D49: ='INFORMATIONS COMPETITEURS'!D48 -> 40 | E49: =IF('INFORMATIONS COMPETITEURS'!$D$59="TABLEAU DE SAISIE CONFORME",CONCATENATE('INFORMATIONS COMPETITEURS'!G48," ",'INFORMATIONS COMPETITEURS'!E48),"") ->  | H49: =IF('INFORMATIONS COMPETITEURS'!$D$59="TABLEAU DE SAISIE CONFORME",IF('INFORMATIONS COMPETITEURS'!I48="","",'INFORMATIONS COMPETITEURS'!I48),"") ->  | P49: =IF('INFORMATIONS COMPETITEURS'!$D$59="TABLEAU DE SAISIE NON CONFORME","",IF(E49=" ",N(0),IF(SUM(K49:O49)=0,N(0),SUM(K49:O49)))) -> 0
D50: ='INFORMATIONS COMPETITEURS'!D49 -> 41 | E50: =IF('INFORMATIONS COMPETITEURS'!$D$59="TABLEAU DE SAISIE CONFORME",CONCATENATE('INFORMATIONS COMPETITEURS'!G49," ",'INFORMATIONS COMPETITEURS'!E49),"") ->  | H50: =IF('INFORMATIONS COMPETITEURS'!$D$59="TABLEAU DE SAISIE CONFORME",IF('INFORMATIONS COMPETITEURS'!I49="","",'INFORMATIONS COMPETITEURS'!I49),"") ->  | P50: =IF('INFORMATIONS COMPETITEURS'!$D$59="TABLEAU DE SAISIE NON CONFORME","",IF(E50=" ",N(0),IF(SUM(K50:O50)=0,N(0),SUM(K50:O50)))) -> 0
D51: ='INFORMATIONS COMPETITEURS'!D50 -> 42 | E51: =IF('INFORMATIONS COMPETITEURS'!$D$59="TABLEAU DE SAISIE CONFORME",CONCATENATE('INFORMATIONS COMPETITEURS'!G50," ",'INFORMATIONS COMPETITEURS'!E50),"") ->  | H51: =IF('INFORMATIONS COMPETITEURS'!$D$59="TABLEAU DE SAISIE CONFORME",IF('INFORMATIONS COMPETITEURS'!I50="","",'INFORMATIONS COMPETITEURS'!I50),"") ->  | P51: =IF('INFORMATIONS COMPETITEURS'!$D$59="TABLEAU DE SAISIE NON CONFORME","",IF(E51=" ",N(0),IF(SUM(K51:O51)=0,N(0),SUM(K51:O51)))) -> 0
D52: ='INFORMATIONS COMPETITEURS'!D51 -> 43 | E52: =IF('INFORMATIONS COMPETITEURS'!$D$59="TABLEAU DE SAISIE CONFORME",CONCATENATE('INFORMATIONS COMPETITEURS'!G51," ",'INFORMATIONS COMPETITEURS'!E51),"") ->  | H52: =IF('INFORMATIONS COMPETITEURS'!$D$59="TABLEAU DE SAISIE CONFORME",IF('INFORMATIONS COMPETITEURS'!I51="","",'INFORMATIONS COMPETITEURS'!I51),"") ->  | P52: =IF('INFORMATIONS COMPETITEURS'!$D$59="TABLEAU DE SAISIE NON CONFORME","",IF(E52=" ",N(0),IF(SUM(K52:O52)=0,N(0),SUM(K52:O52)))) -> 0
D53: ='INFORMATIONS COMPETITEURS'!D52 -> 44 | E53: =IF('INFORMATIONS COMPETITEURS'!$D$59="TABLEAU DE SAISIE CONFORME",CONCATENATE('INFORMATIONS COMPETITEURS'!G52," ",'INFORMATIONS COMPETITEURS'!E52),"") ->  | H53: =IF('INFORMATIONS COMPETITEURS'!$D$59="TABLEAU DE SAISIE CONFORME",IF('INFORMATIONS COMPETITEURS'!I52="","",'INFORMATIONS COMPETITEURS'!I52),"") ->  | P53: =IF('INFORMATIONS COMPETITEURS'!$D$59="TABLEAU DE SAISIE NON CONFORME","",IF(E53=" ",N(0),IF(SUM(K53:O53)=0,N(0),SUM(K53:O53)))) -> 0
D54: ='INFORMATIONS COMPETITEURS'!D53 -> 45 | E54: =IF('INFORMATIONS COMPETITEURS'!$D$59="TABLEAU DE SAISIE CONFORME",CONCATENATE('INFORMATIONS COMPETITEURS'!G53," ",'INFORMATIONS COMPETITEURS'!E53),"") ->  | H54: =IF('INFORMATIONS COMPETITEURS'!$D$59="TABLEAU DE SAISIE CONFORME",IF('INFORMATIONS COMPETITEURS'!I53="","",'INFORMATIONS COMPETITEURS'!I53),"") ->  | P54: =IF('INFORMATIONS COMPETITEURS'!$D$59="TABLEAU DE SAISIE NON CONFORME","",IF(E54=" ",N(0),IF(SUM(K54:O54)=0,N(0),SUM(K54:O54)))) -> 0
D55: ='INFORMATIONS COMPETITEURS'!D54 -> 46 | E55: =IF('INFORMATIONS COMPETITEURS'!$D$59="TABLEAU DE SAISIE CONFORME",CONCATENATE('INFORMATIONS COMPETITEURS'!G54," ",'INFORMATIONS COMPETITEURS'!E54),"") ->  | H55: =IF('INFORMATIONS COMPETITEURS'!$D$59="TABLEAU DE SAISIE CONFORME",IF('INFORMATIONS COMPETITEURS'!I54="","",'INFORMATIONS COMPETITEURS'!I54),"") ->  | P55: =IF('INFORMATIONS COMPETITEURS'!$D$59="TABLEAU DE SAISIE NON CONFORME","",IF(E55=" ",N(0),IF(SUM(K55:O55)=0,N(0),SUM(K55:O55)))) -> 0
D56: ='INFORMATIONS COMPETITEURS'!D55 -> 47 | E56: =IF('INFORMATIONS COMPETITEURS'!$D$59="TABLEAU DE SAISIE CONFORME",CONCATENATE('INFORMATIONS COMPETITEURS'!G55," ",'INFORMATIONS COMPETITEURS'!E55),"") ->  | H56: =IF('INFORMATIONS COMPETITEURS'!$D$59="TABLEAU DE SAISIE CONFORME",IF('INFORMATIONS COMPETITEURS'!I55="","",'INFORMATIONS COMPETITEURS'!I55),"") ->  | P56: =IF('INFORMATIONS COMPETITEURS'!$D$59="TABLEAU DE SAISIE NON CONFORME","",IF(E56=" ",N(0),IF(SUM(K56:O56)=0,N(0),SUM(K56:O56)))) -> 0
D57: ='INFORMATIONS COMPETITEURS'!D56 -> 48 | E57: =IF('INFORMATIONS COMPETITEURS'!$D$59="TABLEAU DE SAISIE CONFORME",CONCATENATE('INFORMATIONS COMPETITEURS'!G56," ",'INFORMATIONS COMPETITEURS'!E56),"") ->  | H57: =IF('INFORMATIONS COMPETITEURS'!$D$59="TABLEAU DE SAISIE CONFORME",IF('INFORMATIONS COMPETITEURS'!I56="","",'INFORMATIONS COMPETITEURS'!I56),"") ->  | P57: =IF('INFORMATIONS COMPETITEURS'!$D$59="TABLEAU DE SAISIE NON CONFORME","",IF(E57=" ",N(0),IF(SUM(K57:O57)=0,N(0),SUM(K57:O57)))) -> 0
D58: ='INFORMATIONS COMPETITEURS'!D57 -> 49 | E58: =IF('INFORMATIONS COMPETITEURS'!$D$59="TABLEAU DE SAISIE CONFORME",CONCATENATE('INFORMATIONS COMPETITEURS'!G57," ",'INFORMATIONS COMPETITEURS'!E57),"") ->  | H58: =IF('INFORMATIONS COMPETITEURS'!$D$59="TABLEAU DE SAISIE CONFORME",IF('INFORMATIONS COMPETITEURS'!I57="","",'INFORMATIONS COMPETITEURS'!I57),"") ->  | P58: =IF('INFORMATIONS COMPETITEURS'!$D$59="TABLEAU DE SAISIE NON CONFORME","",IF(E58=" ",N(0),IF(SUM(K58:O58)=0,N(0),SUM(K58:O58)))) -> 0
D59: ='INFORMATIONS COMPETITEURS'!D58 -> 50 | E59: =IF('INFORMATIONS COMPETITEURS'!$D$59="TABLEAU DE SAISIE CONFORME",CONCATENATE('INFORMATIONS COMPETITEURS'!G58," ",'INFORMATIONS COMPETITEURS'!E58),"") ->  | H59: =IF('INFORMATIONS COMPETITEURS'!$D$59="TABLEAU DE SAISIE CONFORME",IF('INFORMATIONS COMPETITEURS'!I58="","",'INFORMATIONS COMPETITEURS'!I58),"") ->  | P59: =IF('INFORMATIONS COMPETITEURS'!$D$59="TABLEAU DE SAISIE NON CONFORME","",IF(E59=" ",N(0),IF(SUM(K59:O59)=0,N(0),SUM(K59:O59)))) -> 0

Sheet MOUCHE N°4
D3: SAISIE DES RESULTATS - MOUCHE N°4
D6: N° de plaquette | E6: Compétiteur | H6: Club | K6: RESULTATS DES JUGES | P6: POINTS MOUCHES
K8: Juge N°1 | L8: Juge N°2 | M8: Juge N°3 | N8: Juge N°4 | O8: Juge N°5
D10: ='INFORMATIONS COMPETITEURS'!D9 -> 1 | E10: =IF('INFORMATIONS COMPETITEURS'!$D$59="TABLEAU DE SAISIE CONFORME",CONCATENATE('INFORMATIONS COMPETITEURS'!G9," ",'INFORMATIONS COMPETITEURS'!E9),"") -> Claude CAMPILLO | H10: =IF('INFORMATIONS COMPETITEURS'!$D$59="TABLEAU DE SAISIE CONFORME",IF('INFORMATIONS COMPETITEURS'!I9="","",'INFORMATIONS COMPETITEURS'!I9),"") -> CML | K10: 70 | L10: 65 | M10: 58 | P10: =IF('INFORMATIONS COMPETITEURS'!$D$59="TABLEAU DE SAISIE NON CONFORME","",IF(E10=" ",N(0),IF(SUM(K10:O10)=0,N(0),SUM(K10:O10)))) -> 193
D11: ='INFORMATIONS COMPETITEURS'!D10 -> 2 | E11: =IF('INFORMATIONS COMPETITEURS'!$D$59="TABLEAU DE SAISIE CONFORME",CONCATENATE('INFORMATIONS COMPETITEURS'!G10," ",'INFORMATIONS COMPETITEURS'!E10),"") -> Didier DIEGO | H11: =IF('INFORMATIONS COMPETITEURS'!$D$59="TABLEAU DE SAISIE CONFORME",IF('INFORMATIONS COMPETITEURS'!I10="","",'INFORMATIONS COMPETITEURS'!I10),"") -> GPD Pays d'Oc | K11: 60 | L11: 55 | M11: 55 | P11: =IF('INFORMATIONS COMPETITEURS'!$D$59="TABLEAU DE SAISIE NON CONFORME","",IF(E11=" ",N(0),IF(SUM(K11:O11)=0,N(0),SUM(K11:O11)))) -> 170
D12: ='INFORMATIONS COMPETITEURS'!D11 -> 3 | E12: =IF('INFORMATIONS COMPETITEURS'!$D$59="TABLEAU DE SAISIE CONFORME",CONCATENATE('INFORMATIONS COMPETITEURS'!G11," ",'INFORMATIONS COMPETITEURS'!E11),"") -> Samuel CREPILLON | H12: =IF('INFORMATIONS COMPETITEURS'!$D$59="TABLEAU DE SAISIE CONFORME",IF('INFORMATIONS COMPETITEURS'!I11="","",'INFORMATIONS COMPETITEURS'!I11),"") -> GPS Nièvre Morvan | K12: 92 | L12: 91 | M12: 87 | P12: =IF('INFORMATIONS COMPETITEURS'!$D$59="TABLEAU DE SAISIE NON CONFORME","",IF(E12=" ",N(0),IF(SUM(K12:O12)=0,N(0),SUM(K12:O12)))) -> 270
D13: ='INFORMATIONS COMPETITEURS'!D12 -> 4 | E13: =IF('INFORMATIONS COMPETITEURS'!$D$59="TABLEAU DE SAISIE CONFORME",CONCATENATE('INFORMATIONS COMPETITEURS'!G12," ",'INFORMATIONS COMPETITEURS'!E12),"") -> Valentin BIBENT | H13: =IF('INFORMATIONS COMPETITEURS'!$D$59="TABLEAU DE SAISIE CONFORME",IF('INFORMATIONS COMPETITEURS'!I12="","",'INFORMATIONS COMPETITEURS'!I12),"") -> CML | K13: 41 | L13: 42 | M13: 41 | P13: =IF('INFORMATIONS COMPETITEURS'!$D$59="TABLEAU DE SAISIE NON CONFORME","",IF(E13=" ",N(0),IF(SUM(K13:O13)=0,N(0),SUM(K13:O13)))) -> 124
D14: ='INFORMATIONS COMPETITEURS'!D13 -> 5 | E14: =IF('INFORMATIONS COMPETITEURS'!$D$59="TABLEAU DE SAISIE CONFORME",CONCATENATE('INFORMATIONS COMPETITEURS'!G13," ",'INFORMATIONS COMPETITEURS'!E13),"") -> Nathalie ALBERGE | H14: =IF('INFORMATIONS COMPETITEURS'!$D$59="TABLEAU DE SAISIE CONFORME",IF('INFORMATIONS COMPETITEURS'!I13="","",'INFORMATIONS COMPETITEURS'!I13),"") -> CM Pays d'Oc | K14: 30 | L14: 45 | M14: 48 | P14: =IF('INFORMATIONS COMPETITEURS'!$D$59="TABLEAU DE SAISIE NON CONFORME","",IF(E14=" ",N(0),IF(SUM(K14:O14)=0,N(0),SUM(K14:O14)))) -> 123
D15: ='INFORMATIONS COMPETITEURS'!D14 -> 6 | E15: =IF('INFORMATIONS COMPETITEURS'!$D$59="TABLEAU DE SAISIE CONFORME",CONCATENATE('INFORMATIONS COMPETITEURS'!G14," ",'INFORMATIONS COMPETITEURS'!E14),"") -> Jean-Luc GAULON | H15: =IF('INFORMATIONS COMPETITEURS'!$D$59="TABLEAU DE SAISIE CONFORME",IF('INFORMATIONS COMPETITEURS'!I14="","",'INFORMATIONS COMPETITEURS'!I14),"") -> CMCRE | K15: 80 | L15: 81 | M15: 75 | P15: =IF('INFORMATIONS COMPETITEURS'!$D$59="TABLEAU DE SAISIE NON CONFORME","",IF(E15=" ",N(0),IF(SUM(K15:O15)=0,N(0),SUM(K15:O15)))) -> 236
D16: ='INFORMATIONS COMPETITEURS'!D15 -> 7 | E16: =IF('INFORMATIONS COMPETITEURS'!$D$59="TABLEAU DE SAISIE CONFORME",CONCATENATE('INFORMATIONS COMPETITEURS'!G15," ",'INFORMATIONS COMPETITEURS'!E15),"") -> Jérôme VILLE | H16: =IF('INFORMATIONS COMPETITEURS'!$D$59="TABLEAU DE SAISIE CONFORME",IF('INFORMATIONS COMPETITEURS'!I15="","",'INFORMATIONS COMPETITEURS'!I15),"") -> GPS Lyon Centre | K16: 71 | L16: 75 | M16: 71 | P16: =IF('INFORMATIONS COMPETITEURS'!$D$59="TABLEAU DE SAISIE NON CONFORME","",IF(E16=" ",N(0),IF(SUM(K16:O16)=0,N(0),SUM(K16:O16)))) -> 217
D17: ='INFORMATIONS COMPETITEURS'!D16 -> 8 | E17: =IF('INFORMATIONS COMPETITEURS'!$D$59="TABLEAU DE SAISIE CONFORME",CONCATENATE('INFORMATIONS COMPETITEURS'!G16," ",'INFORMATIONS COMPETITEURS'!E16),"") -> Edgard RICHARD | H17: =IF('INFORMATIONS COMPETITEURS'!$D$59="TABLEAU DE SAISIE CONFORME",IF('INFORMATIONS COMPETITEURS'!I16="","",'INFORMATIONS COMPETITEURS'!I16),"") -> Ecole de pêche Dijon | K17: 40 | L17: 45 | M17: 45 | P17: =IF('INFORMATIONS COMPETITEURS'!$D$59="TABLEAU DE SAISIE NON CONFORME","",IF(E17=" ",N(0),IF(SUM(K17:O17)=0,N(0),SUM(K17:O17)))) -> 130
D18: ='INFORMATIONS COMPETITEURS'!D17 -> 9 | E18: =IF('INFORMATIONS COMPETITEURS'!$D$59="TABLEAU DE SAISIE CONFORME",CONCATENATE('INFORMATIONS COMPETITEURS'!G17," ",'INFORMATIONS COMPETITEURS'!E17),"") -> Solène Le Bourhis Beyer | H18: =IF('INFORMATIONS COMPETITEURS'!$D$59="TABLEAU DE SAISIE CONFORME",IF('INFORMATIONS COMPETITEURS'!I17="","",'INFORMATIONS COMPETITEURS'!I17),"") -> CM Arzano | K18: 54 | L18: 51 | M18: 48 | P18: =IF('INFORMATIONS COMPETITEURS'!$D$59="TABLEAU DE SAISIE NON CONFORME","",IF(E18=" ",N(0),IF(SUM(K18:O18)=0,N(0),SUM(K18:O18)))) -> 153
D19: ='INFORMATIONS COMPETITEURS'!D18 -> 10 | E19: =IF('INFORMATIONS COMPETITEURS'!$D$59="TABLEAU DE SAISIE CONFORME",CONCATENATE('INFORMATIONS COMPETITEURS'!G18," ",'INFORMATIONS COMPETITEURS'!E18),"") -> Guy MASSON | H19: =IF('INFORMATIONS COMPETITEURS'!$D$59="TABLEAU DE SAISIE CONFORME",IF('INFORMATIONS COMPETITEURS'!I18="","",'INFORMATIONS COMPETITEURS'!I18),"") -> GPS Lyon Centre | K19: 63 | L19: 65 | M19: 63 | P19: =IF('INFORMATIONS COMPETITEURS'!$D$59="TABLEAU DE SAISIE NON CONFORME","",IF(E19=" ",N(0),IF(SUM(K19:O19)=0,N(0),SUM(K19:O19)))) -> 191
D20: ='INFORMATIONS COMPETITEURS'!D19 -> 11 | E20: =IF('INFORMATIONS COMPETITEURS'!$D$59="TABLEAU DE SAISIE CONFORME",CONCATENATE('INFORMATIONS COMPETITEURS'!G19," ",'INFORMATIONS COMPETITEURS'!E19),"") -> Gerard COMMARET | H20: =IF('INFORMATIONS COMPETITEURS'!$D$59="TABLEAU DE SAISIE CONFORME",IF('INFORMATIONS COMPETITEURS'!I19="","",'INFORMATIONS COMPETITEURS'!I19),"") -> GPS Val de Saone | K20: 25 | L20: 30 | M20: 30 | P20: =IF('INFORMATIONS COMPETITEURS'!$D$59="TABLEAU DE SAISIE NON CONFORME","",IF(E20=" ",N(0),IF(SUM(K20:O20)=0,N(0),SUM(K20:O20)))) -> 85
D21: ='INFORMATIONS COMPETITEURS'!D20 -> 12 | E21: =IF('INFORMATIONS COMPETITEURS'!$D$59="TABLEAU DE SAISIE CONFORME",CONCATENATE('INFORMATIONS COMPETITEURS'!G20," ",'INFORMATIONS COMPETITEURS'!E20),"") -> Stéphane PONCET | H21: =IF('INFORMATIONS COMPETITEURS'!$D$59="TABLEAU DE SAISIE CONFORME",IF('INFORMATIONS COMPETITEURS'!I20="","",'INFORMATIONS COMPETITEURS'!I20),"") -> GPS Bresse Remiremont | K21: 61 | L21: 62 | M21: 59 | P21: =IF('INFORMATIONS COMPETITEURS'!$D$59="TABLEAU DE SAISIE NON CONFORME","",IF(E21=" ",N(0),IF(SUM(K21:O21)=0,N(0),SUM(K21:O21)))) -> 182
D22: ='INFORMATIONS COMPETITEURS'!D21 -> 13 | E22: =IF('INFORMATIONS COMPETITEURS'!$D$59="TABLEAU DE SAISIE CONFORME",CONCATENATE('INFORMATIONS COMPETITEURS'!G21," ",'INFORMATIONS COMPETITEURS'!E21),"") -> Didier CHETAUD | H22: =IF('INFORMATIONS COMPETITEURS'!$D$59="TABLEAU DE SAISIE CONFORME",IF('INFORMATIONS COMPETITEURS'!I21="","",'INFORMATIONS COMPETITEURS'!I21),"") -> GPS Val de Saone | K22: 98 | L22: 98 | M22: 98 | P22: =IF('INFORMATIONS COMPETITEURS'!$D$59="TABLEAU DE SAISIE NON CONFORME","",IF(E22=" ",N(0),IF(SUM(K22:O22)=0,N(0),SUM(K22:O22)))) -> 294
D23: ='INFORMATIONS COMPETITEURS'!D22 -> 14 | E23: =IF('INFORMATIONS COMPETITEURS'!$D$59="TABLEAU DE SAISIE CONFORME",CONCATENATE('INFORMATIONS COMPETITEURS'!G22," ",'INFORMATIONS COMPETITEURS'!E22),"") -> Eric GIAMPRETI | H23: =IF('INFORMATIONS COMPETITEURS'!$D$59="TABLEAU DE SAISIE CONFORME",IF('INFORMATIONS COMPETITEURS'!I22="","",'INFORMATIONS COMPETITEURS'!I22),"") -> GPS Lyon Centre | K23: 92 | L23: 92 | M23: 88 | P23: =IF('INFORMATIONS COMPETITEURS'!$D$59="TABLEAU DE SAISIE NON CONFORME","",IF(E23=" ",N(0),IF(SUM(K23:O23)=0,N(0),SUM(K23:O23)))) -> 272
D24: ='INFORMATIONS COMPETITEURS'!D23 -> 15 | E24: =IF('INFORMATIONS COMPETITEURS'!$D$59="TABLEAU DE SAISIE CONFORME",CONCATENATE('INFORMATIONS COMPETITEURS'!G23," ",'INFORMATIONS COMPETITEURS'!E23),"") -> Frédéric EVENNOU | H24: =IF('INFORMATIONS COMPETITEURS'!$D$59="TABLEAU DE SAISIE CONFORME",IF('INFORMATIONS COMPETITEURS'!I23="","",'INFORMATIONS COMPETITEURS'!I23),"") -> GPS Lyon Centre | K24: 77 | L24: 77 | M24: 72 | P24: =IF('INFORMATIONS COMPETITEURS'!$D$59="TABLEAU DE SAISIE NON CONFORME","",IF(E24=" ",N(0),IF(SUM(K24:O24)=0,N(0),SUM(K24:O24)))) -> 226
D25: ='INFORMATIONS COMPETITEURS'!D24 -> 16 | E25: =IF('INFORMATIONS COMPETITEURS'!$D$59="TABLEAU DE SAISIE CONFORME",CONCATENATE('INFORMATIONS COMPETITEURS'!G24," ",'INFORMATIONS COMPETITEURS'!E24),"") -> Bernard FAIVRE | H25: =IF('INFORMATIONS COMPETITEURS'!$D$59="TABLEAU DE SAISIE CONFORME",IF('INFORMATIONS COMPETITEURS'!I24="","",'INFORMATIONS COMPETITEURS'!I24),"") -> GPS Pays d'Oc | K25: 84 | L25: 84 | M25: 78 | P25: =IF('INFORMATIONS COMPETITEURS'!$D$59="TABLEAU DE SAISIE NON CONFORME","",IF(E25=" ",N(0),IF(SUM(K25:O25)=0,N(0),SUM(K25:O25)))) -> 246
D26: ='INFORMATIONS COMPETITEURS'!D25 -> 17 | E26: =IF('INFORMATIONS COMPETITEURS'!$D$59="TABLEAU DE SAISIE CONFORME",CONCATENATE('INFORMATIONS COMPETITEURS'!G25," ",'INFORMATIONS COMPETITEURS'!E25),"") -> Bernard Rémi | H26: =IF('INFORMATIONS COMPETITEURS'!$D$59="TABLEAU DE SAISIE CONFORME",IF('INFORMATIONS COMPETITEURS'!I25="","",'INFORMATIONS COMPETITEURS'!I25),"") -> Ecole de pêche Dijon | K26: 0 | L26: 0 | M26: 0 | P26: =IF('INFORMATIONS COMPETITEURS'!$D$59="TABLEAU DE SAISIE NON CONFORME","",IF(E26=" ",N(0),IF(SUM(K26:O26)=0,N(0),SUM(K26:O26)))) -> 0
D27: ='INFORMATIONS COMPETITEURS'!D26 -> 18 | E27: =IF('INFORMATIONS COMPETITEURS'!$D$59="TABLEAU DE SAISIE CONFORME",CONCATENATE('INFORMATIONS COMPETITEURS'!G26," ",'INFORMATIONS COMPETITEURS'!E26),"") -> Denis FAUVELLIERE | H27: =IF('INFORMATIONS COMPETITEURS'!$D$59="TABLEAU DE SAISIE CONFORME",IF('INFORMATIONS COMPETITEURS'!I26="","",'INFORMATIONS COMPETITEURS'!I26),"") -> CM Plaisir | K27: 41 | L27: 47 | M27: 40 | P27: =IF('INFORMATIONS COMPETITEURS'!$D$59="TABLEAU DE SAISIE NON CONFORME","",IF(E27=" ",N(0),IF(SUM(K27:O27)=0,N(0),SUM(K27:O27)))) -> 128
D28: ='INFORMATIONS COMPETITEURS'!D27 -> 19 | E28: =IF('INFORMATIONS COMPETITEURS'!$D$59="TABLEAU DE SAISIE CONFORME",CONCATENATE('INFORMATIONS COMPETITEURS'!G27," ",'INFORMATIONS COMPETITEURS'!E27),"") -> Lionel GOMINET | H28: =IF('INFORMATIONS COMPETITEURS'!$D$59="TABLEAU DE SAISIE CONFORME",IF('INFORMATIONS COMPETITEURS'!I27="","",'INFORMATIONS COMPETITEURS'!I27),"") -> GPS Pays d'Oc | K28: 42 | L28: 35 | M28: 37 | P28: =IF('INFORMATIONS COMPETITEURS'!$D$59="TABLEAU DE SAISIE NON CONFORME","",IF(E28=" ",N(0),IF(SUM(K28:O28)=0,N(0),SUM(K28:O28)))) -> 114
D29: ='INFORMATIONS COMPETITEURS'!D28 -> 20 | E29: =IF('INFORMATIONS COMPETITEURS'!$D$59="TABLEAU DE SAISIE CONFORME",CONCATENATE('INFORMATIONS COMPETITEURS'!G28," ",'INFORMATIONS COMPETITEURS'!E28),"") -> HAMZA MAACH | H29: =IF('INFORMATIONS COMPETITEURS'!$D$59="TABLEAU DE SAISIE CONFORME",IF('INFORMATIONS COMPETITEURS'!I28="","",'INFORMATIONS COMPETITEURS'!I28),"") -> Ecole de pêche Dijon | K29: 50 | L29: 50 | M29: 50 | P29: =IF('INFORMATIONS COMPETITEURS'!$D$59="TABLEAU DE SAISIE NON CONFORME","",IF(E29=" ",N(0),IF(SUM(K29:O29)=0,N(0),SUM(K29:O29)))) -> 150
D30: ='INFORMATIONS COMPETITEURS'!D29 -> 21 | E30: =IF('INFORMATIONS COMPETITEURS'!$D$59="TABLEAU DE SAISIE CONFORME",CONCATENATE('INFORMATIONS COMPETITEURS'!G29," ",'INFORMATIONS COMPETITEURS'!E29),"") -> Dimitri DEZOTHEZ | H30: =IF('INFORMATIONS COMPETITEURS'!$D$59="TABLEAU DE SAISIE CONFORME",IF('INFORMATIONS COMPETITEURS'!I29="","",'INFORMATIONS COMPETITEURS'!I29),"") -> Club Mouche du gévaudan | K30: 62 | L30: 58 | M30: 53 | P30: =IF('INFORMATIONS COMPETITEURS'!$D$59="TABLEAU DE SAISIE NON CONFORME","",IF(E30=" ",N(0),IF(SUM(K30:O30)=0,N(0),SUM(K30:O30)))) -> 173
D31: ='INFORMATIONS COMPETITEURS'!D30 -> 22 | E31: =IF('INFORMATIONS COMPETITEURS'!$D$59="TABLEAU DE SAISIE CONFORME",CONCATENATE('INFORMATIONS COMPETITEURS'!G30," ",'INFORMATIONS COMPETITEURS'!E30),"") -> Dominique BRULEY | H31: =IF('INFORMATIONS COMPETITEURS'!$D$59="TABLEAU DE SAISIE CONFORME",IF('INFORMATIONS COMPETITEURS'!I30="","",'INFORMATIONS COMPETITEURS'!I30),"") -> GPS Val de Saone | K31: 52 | L31: 52 | M31: 57 | P31: =IF('INFORMATIONS COMPETITEURS'!$D$59="TABLEAU DE SAISIE NON CONFORME","",IF(E31=" ",N(0),IF(SUM(K31:O31)=0,N(0),SUM(K31:O31)))) -> 161
D32: ='INFORMATIONS COMPETITEURS'!D31 -> 23 | E32: =IF('INFORMATIONS COMPETITEURS'!$D$59="TABLEAU DE SAISIE CONFORME",CONCATENATE('INFORMATIONS COMPETITEURS'!G31," ",'INFORMATIONS COMPETITEURS'!E31),"") -> Christophe MARTIN | H32: =IF('INFORMATIONS COMPETITEURS'!$D$59="TABLEAU DE SAISIE CONFORME",IF('INFORMATIONS COMPETITEURS'!I31="","",'INFORMATIONS COMPETITEURS'!I31),"") -> CM Plaisir | K32: 55 | L32: 55 | M32: 50 | P32: =IF('INFORMATIONS COMPETITEURS'!$D$59="TABLEAU DE SAISIE NON CONFORME","",IF(E32=" ",N(0),IF(SUM(K32:O32)=0,N(0),SUM(K32:O32)))) -> 160
D33: ='INFORMATIONS COMPETITEURS'!D32 -> 24 | E33: =IF('INFORMATIONS COMPETITEURS'!$D$59="TABLEAU DE SAISIE CONFORME",CONCATENATE('INFORMATIONS COMPETITEURS'!G32," ",'INFORMATIONS COMPETITEURS'!E32),"") -> Gérard VILLA | H33: =IF('INFORMATIONS COMPETITEURS'!$D$59="TABLEAU DE SAISIE CONFORME",IF('INFORMATIONS COMPETITEURS'!I32="","",'INFORMATIONS COMPETITEURS'!I32),"") -> GPS Pays d'Oc | K33: 56 | L33: 59 | M33: 55 | P33: =IF('INFORMATIONS COMPETITEURS'!$D$59="TABLEAU DE SAISIE NON CONFORME","",IF(E33=" ",N(0),IF(SUM(K33:O33)=0,N(0),SUM(K33:O33)))) -> 170
D34: ='INFORMATIONS COMPETITEURS'!D33 -> 25 | E34: =IF('INFORMATIONS COMPETITEURS'!$D$59="TABLEAU DE SAISIE CONFORME",CONCATENATE('INFORMATIONS COMPETITEURS'!G33," ",'INFORMATIONS COMPETITEURS'!E33),"") -> patrick JACQUOT | H34: =IF('INFORMATIONS COMPETITEURS'!$D$59="TABLEAU DE SAISIE CONFORME",IF('INFORMATIONS COMPETITEURS'!I33="","",'INFORMATIONS COMPETITEURS'!I33),"") -> GPS Val de Saone | K34: 94 | L34: 96 | M34: 96 | P34: =IF('INFORMATIONS COMPETITEURS'!$D$59="TABLEAU DE SAISIE NON CONFORME","",IF(E34=" ",N(0),IF(SUM(K34:O34)=0,N(0),SUM(K34:O34)))) -> 286
D35: ='INFORMATIONS COMPETITEURS'!D34 -> 26 | E35: =IF('INFORMATIONS COMPETITEURS'!$D$59="TABLEAU DE SAISIE CONFORME",CONCATENATE('INFORMATIONS COMPETITEURS'!G34," ",'INFORMATIONS COMPETITEURS'!E34),"") -> Henri CALAVIA | H35: =IF('INFORMATIONS COMPETITEURS'!$D$59="TABLEAU DE SAISIE CONFORME",IF('INFORMATIONS COMPETITEURS'!I34="","",'INFORMATIONS COMPETITEURS'!I34),"") -> CMCRE | K35: 98 | L35: 98 | M35: 98 | P35: =IF('INFORMATIONS COMPETITEURS'!$D$59="TABLEAU DE SAISIE NON CONFORME","",IF(E35=" ",N(0),IF(SUM(K35:O35)=0,N(0),SUM(K35:O35)))) -> 294
D36: ='INFORMATIONS COMPETITEURS'!D35 -> 27 | E36: =IF('INFORMATIONS COMPETITEURS'!$D$59="TABLEAU DE SAISIE CONFORME",CONCATENATE('INFORMATIONS COMPETITEURS'!G35," ",'INFORMATIONS COMPETITEURS'!E35),"") -> Batiste JEANIN | H36: =IF('INFORMATIONS COMPETITEURS'!$D$59="TABLEAU DE SAISIE CONFORME",IF('INFORMATIONS COMPETITEURS'!I35="","",'INFORMATIONS COMPETITEURS'!I35),"") -> Ecole de pêche Dijon | K36: 42 | L36: 48 | M36: 45 | P36: =IF('INFORMATIONS COMPETITEURS'!$D$59="TABLEAU DE SAISIE NON CONFORME","",IF(E36=" ",N(0),IF(SUM(K36:O36)=0,N(0),SUM(K36:O36)))) -> 135
D37: ='INFORMATIONS COMPETITEURS'!D36 -> 28 | E37: =IF('INFORMATIONS COMPETITEURS'!$D$59="TABLEAU DE SAISIE CONFORME",CONCATENATE('INFORMATIONS COMPETITEURS'!G36," ",'INFORMATIONS COMPETITEURS'!E36),"") -> Règis CAZARETH | H37: =IF('INFORMATIONS COMPETITEURS'!$D$59="TABLEAU DE SAISIE CONFORME",IF('INFORMATIONS COMPETITEURS'!I36="","",'INFORMATIONS COMPETITEURS'!I36),"") -> GPS Décines | K37: 94 | L37: 95 | M37: 91 | P37: =IF('INFORMATIONS COMPETITEURS'!$D$59="TABLEAU DE SAISIE NON CONFORME","",IF(E37=" ",N(0),IF(SUM(K37:O37)=0,N(0),SUM(K37:O37)))) -> 280
D38: ='INFORMATIONS COMPETITEURS'!D37 -> 29 | E38: =IF('INFORMATIONS COMPETITEURS'!$D$59="TABLEAU DE SAISIE CONFORME",CONCATENATE('INFORMATIONS COMPETITEURS'!G37," ",'INFORMATIONS COMPETITEURS'!E37),"") -> BOUAFFIA DENIL | H38: =IF('INFORMATIONS COMPETITEURS'!$D$59="TABLEAU DE SAISIE CONFORME",IF('INFORMATIONS COMPETITEURS'!I37="","",'INFORMATIONS COMPETITEURS'!I37),"") -> GPS | K38: 0 | L38: 0 | M38: 0 | P38: =IF('INFORMATIONS COMPETITEURS'!$D$59="TABLEAU DE SAISIE NON CONFORME","",IF(E38=" ",N(0),IF(SUM(K38:O38)=0,N(0),SUM(K38:O38)))) -> 0
D39: ='INFORMATIONS COMPETITEURS'!D38 -> 30 | E39: =IF('INFORMATIONS COMPETITEURS'!$D$59="TABLEAU DE SAISIE CONFORME",CONCATENATE('INFORMATIONS COMPETITEURS'!G38," ",'INFORMATIONS COMPETITEURS'!E38),"") ->  | H39: =IF('INFORMATIONS COMPETITEURS'!$D$59="TABLEAU DE SAISIE CONFORME",IF('INFORMATIONS COMPETITEURS'!I38="","",'INFORMATIONS COMPETITEURS'!I38),"") ->  | P39: =IF('INFORMATIONS COMPETITEURS'!$D$59="TABLEAU DE SAISIE NON CONFORME","",IF(E39=" ",N(0),IF(SUM(K39:O39)=0,N(0),SUM(K39:O39)))) -> 0
D40: ='INFORMATIONS COMPETITEURS'!D39 -> 31 | E40: =IF('INFORMATIONS COMPETITEURS'!$D$59="TABLEAU DE SAISIE CONFORME",CONCATENATE('INFORMATIONS COMPETITEURS'!G39," ",'INFORMATIONS COMPETITEURS'!E39),"") ->  | H40: =IF('INFORMATIONS COMPETITEURS'!$D$59="TABLEAU DE SAISIE CONFORME",IF('INFORMATIONS COMPETITEURS'!I39="","",'INFORMATIONS COMPETITEURS'!I39),"") ->  | P40: =IF('INFORMATIONS COMPETITEURS'!$D$59="TABLEAU DE SAISIE NON CONFORME","",IF(E40=" ",N(0),IF(SUM(K40:O40)=0,N(0),SUM(K40:O40)))) -> 0
D41: ='INFORMATIONS COMPETITEURS'!D40 -> 32 | E41: =IF('INFORMATIONS COMPETITEURS'!$D$59="TABLEAU DE SAISIE CONFORME",CONCATENATE('INFORMATIONS COMPETITEURS'!G40," ",'INFORMATIONS COMPETITEURS'!E40),"") ->  | H41: =IF('INFORMATIONS COMPETITEURS'!$D$59="TABLEAU DE SAISIE CONFORME",IF('INFORMATIONS COMPETITEURS'!I40="","",'INFORMATIONS COMPETITEURS'!I40),"") ->  | P41: =IF('INFORMATIONS COMPETITEURS'!$D$59="TABLEAU DE SAISIE NON CONFORME","",IF(E41=" ",N(0),IF(SUM(K41:O41)=0,N(0),SUM(K41:O41)))) -> 0
D42: ='INFORMATIONS COMPETITEURS'!D41 -> 33 | E42: =IF('INFORMATIONS COMPETITEURS'!$D$59="TABLEAU DE SAISIE CONFORME",CONCATENATE('INFORMATIONS COMPETITEURS'!G41," ",'INFORMATIONS COMPETITEURS'!E41),"") ->  | H42: =IF('INFORMATIONS COMPETITEURS'!$D$59="TABLEAU DE SAISIE CONFORME",IF('INFORMATIONS COMPETITEURS'!I41="","",'INFORMATIONS COMPETITEURS'!I41),"") ->  | P42: =IF('INFORMATIONS COMPETITEURS'!$D$59="TABLEAU DE SAISIE NON CONFORME","",IF(E42=" ",N(0),IF(SUM(K42:O42)=0,N(0),SUM(K42:O42)))) -> 0
D43: ='INFORMATIONS COMPETITEURS'!D42 -> 34 | E43: =IF('INFORMATIONS COMPETITEURS'!$D$59="TABLEAU DE SAISIE CONFORME",CONCATENATE('INFORMATIONS COMPETITEURS'!G42," ",'INFORMATIONS COMPETITEURS'!E42),"") ->  | H43: =IF('INFORMATIONS COMPETITEURS'!$D$59="TABLEAU DE SAISIE CONFORME",IF('INFORMATIONS COMPETITEURS'!I42="","",'INFORMATIONS COMPETITEURS'!I42),"") ->  | P43: =IF('INFORMATIONS COMPETITEURS'!$D$59="TABLEAU DE SAISIE NON CONFORME","",IF(E43=" ",N(0),IF(SUM(K43:O43)=0,N(0),SUM(K43:O43)))) -> 0
D44: ='INFORMATIONS COMPETITEURS'!D43 -> 35 | E44: =IF('INFORMATIONS COMPETITEURS'!$D$59="TABLEAU DE SAISIE CONFORME",CONCATENATE('INFORMATIONS COMPETITEURS'!G43," ",'INFORMATIONS COMPETITEURS'!E43),"") ->  | H44: =IF('INFORMATIONS COMPETITEURS'!$D$59="TABLEAU DE SAISIE CONFORME",IF('INFORMATIONS COMPETITEURS'!I43="","",'INFORMATIONS COMPETITEURS'!I43),"") ->  | P44: =IF('INFORMATIONS COMPETITEURS'!$D$59="TABLEAU DE SAISIE NON CONFORME","",IF(E44=" ",N(0),IF(SUM(K44:O44)=0,N(0),SUM(K44:O44)))) -> 0
D45: ='INFORMATIONS COMPETITEURS'!D44 -> 36 | E45: =IF('INFORMATIONS COMPETITEURS'!$D$59="TABLEAU DE SAISIE CONFORME",CONCATENATE('INFORMATIONS COMPETITEURS'!G44," ",'INFORMATIONS COMPETITEURS'!E44),"") ->  | H45: =IF('INFORMATIONS COMPETITEURS'!$D$59="TABLEAU DE SAISIE CONFORME",IF('INFORMATIONS COMPETITEURS'!I44="","",'INFORMATIONS COMPETITEURS'!I44),"") ->  | P45: =IF('INFORMATIONS COMPETITEURS'!$D$59="TABLEAU DE SAISIE NON CONFORME","",IF(E45=" ",N(0),IF(SUM(K45:O45)=0,N(0),SUM(K45:O45)))) -> 0
D46: ='INFORMATIONS COMPETITEURS'!D45 -> 37 | E46: =IF('INFORMATIONS COMPETITEURS'!$D$59="TABLEAU DE SAISIE CONFORME",CONCATENATE('INFORMATIONS COMPETITEURS'!G45," ",'INFORMATIONS COMPETITEURS'!E45),"") ->  | H46: =IF('INFORMATIONS COMPETITEURS'!$D$59="TABLEAU DE SAISIE CONFORME",IF('INFORMATIONS COMPETITEURS'!I45="","",'INFORMATIONS COMPETITEURS'!I45),"") ->  | P46: =IF('INFORMATIONS COMPETITEURS'!$D$59="TABLEAU DE SAISIE NON CONFORME","",IF(E46=" ",N(0),IF(SUM(K46:O46)=0,N(0),SUM(K46:O46)))) -> 0
D47: ='INFORMATIONS COMPETITEURS'!D46 -> 38 | E47: =IF('INFORMATIONS COMPETITEURS'!$D$59="TABLEAU DE SAISIE CONFORME",CONCATENATE('INFORMATIONS COMPETITEURS'!G46," ",'INFORMATIONS COMPETITEURS'!E46),"") ->  | H47: =IF('INFORMATIONS COMPETITEURS'!$D$59="TABLEAU DE SAISIE CONFORME",IF('INFORMATIONS COMPETITEURS'!I46="","",'INFORMATIONS COMPETITEURS'!I46),"") ->  | P47: =IF('INFORMATIONS COMPETITEURS'!$D$59="TABLEAU DE SAISIE NON CONFORME","",IF(E47=" ",N(0),IF(SUM(K47:O47)=0,N(0),SUM(K47:O47)))) -> 0
D48: ='INFORMATIONS COMPETITEURS'!D47 -> 39 | E48: =IF('INFORMATIONS COMPETITEURS'!$D$59="TABLEAU DE SAISIE CONFORME",CONCATENATE('INFORMATIONS COMPETITEURS'!G47," ",'INFORMATIONS COMPETITEURS'!E47),"") ->  | H48: =IF('INFORMATIONS COMPETITEURS'!$D$59="TABLEAU DE SAISIE CONFORME",IF('INFORMATIONS COMPETITEURS'!I47="","",'INFORMATIONS COMPETITEURS'!I47),"") ->  | P48: =IF('INFORMATIONS COMPETITEURS'!$D$59="TABLEAU DE SAISIE NON CONFORME","",IF(E48=" ",N(0),IF(SUM(K48:O48)=0,N(0),SUM(K48:O48)))) -> 0
D49: ='INFORMATIONS COMPETITEURS'!D48 -> 40 | E49: =IF('INFORMATIONS COMPETITEURS'!$D$59="TABLEAU DE SAISIE CONFORME",CONCATENATE('INFORMATIONS COMPETITEURS'!G48," ",'INFORMATIONS COMPETITEURS'!E48),"") ->  | H49: =IF('INFORMATIONS COMPETITEURS'!$D$59="TABLEAU DE SAISIE CONFORME",IF('INFORMATIONS COMPETITEURS'!I48="","",'INFORMATIONS COMPETITEURS'!I48),"") ->  | P49: =IF('INFORMATIONS COMPETITEURS'!$D$59="TABLEAU DE SAISIE NON CONFORME","",IF(E49=" ",N(0),IF(SUM(K49:O49)=0,N(0),SUM(K49:O49)))) -> 0
D50: ='INFORMATIONS COMPETITEURS'!D49 -> 41 | E50: =IF('INFORMATIONS COMPETITEURS'!$D$59="TABLEAU DE SAISIE CONFORME",CONCATENATE('INFORMATIONS COMPETITEURS'!G49," ",'INFORMATIONS COMPETITEURS'!E49),"") ->  | H50: =IF('INFORMATIONS COMPETITEURS'!$D$59="TABLEAU DE SAISIE CONFORME",IF('INFORMATIONS COMPETITEURS'!I49="","",'INFORMATIONS COMPETITEURS'!I49),"") ->  | P50: =IF('INFORMATIONS COMPETITEURS'!$D$59="TABLEAU DE SAISIE NON CONFORME","",IF(E50=" ",N(0),IF(SUM(K50:O50)=0,N(0),SUM(K50:O50)))) -> 0
D51: ='INFORMATIONS COMPETITEURS'!D50 -> 42 | E51: =IF('INFORMATIONS COMPETITEURS'!$D$59="TABLEAU DE SAISIE CONFORME",CONCATENATE('INFORMATIONS COMPETITEURS'!G50," ",'INFORMATIONS COMPETITEURS'!E50),"") ->  | H51: =IF('INFORMATIONS COMPETITEURS'!$D$59="TABLEAU DE SAISIE CONFORME",IF('INFORMATIONS COMPETITEURS'!I50="","",'INFORMATIONS COMPETITEURS'!I50),"") ->  | P51: =IF('INFORMATIONS COMPETITEURS'!$D$59="TABLEAU DE SAISIE NON CONFORME","",IF(E51=" ",N(0),IF(SUM(K51:O51)=0,N(0),SUM(K51:O51)))) -> 0
D52: ='INFORMATIONS COMPETITEURS'!D51 -> 43 | E52: =IF('INFORMATIONS COMPETITEURS'!$D$59="TABLEAU DE SAISIE CONFORME",CONCATENATE('INFORMATIONS COMPETITEURS'!G51," ",'INFORMATIONS COMPETITEURS'!E51),"") ->  | H52: =IF('INFORMATIONS COMPETITEURS'!$D$59="TABLEAU DE SAISIE CONFORME",IF('INFORMATIONS COMPETITEURS'!I51="","",'INFORMATIONS COMPETITEURS'!I51),"") ->  | P52: =IF('INFORMATIONS COMPETITEURS'!$D$59="TABLEAU DE SAISIE NON CONFORME","",IF(E52=" ",N(0),IF(SUM(K52:O52)=0,N(0),SUM(K52:O52)))) -> 0
D53: ='INFORMATIONS COMPETITEURS'!D52 -> 44 | E53: =IF('INFORMATIONS COMPETITEURS'!$D$59="TABLEAU DE SAISIE CONFORME",CONCATENATE('INFORMATIONS COMPETITEURS'!G52," ",'INFORMATIONS COMPETITEURS'!E52),"") ->  | H53: =IF('INFORMATIONS COMPETITEURS'!$D$59="TABLEAU DE SAISIE CONFORME",IF('INFORMATIONS COMPETITEURS'!I52="","",'INFORMATIONS COMPETITEURS'!I52),"") ->  | P53: =IF('INFORMATIONS COMPETITEURS'!$D$59="TABLEAU DE SAISIE NON CONFORME","",IF(E53=" ",N(0),IF(SUM(K53:O53)=0,N(0),SUM(K53:O53)))) -> 0
D54: ='INFORMATIONS COMPETITEURS'!D53 -> 45 | E54: =IF('INFORMATIONS COMPETITEURS'!$D$59="TABLEAU DE SAISIE CONFORME",CONCATENATE('INFORMATIONS COMPETITEURS'!G53," ",'INFORMATIONS COMPETITEURS'!E53),"") ->  | H54: =IF('INFORMATIONS COMPETITEURS'!$D$59="TABLEAU DE SAISIE CONFORME",IF('INFORMATIONS COMPETITEURS'!I53="","",'INFORMATIONS COMPETITEURS'!I53),"") ->  | P54: =IF('INFORMATIONS COMPETITEURS'!$D$59="TABLEAU DE SAISIE NON CONFORME","",IF(E54=" ",N(0),IF(SUM(K54:O54)=0,N(0),SUM(K54:O54)))) -> 0
D55: ='INFORMATIONS COMPETITEURS'!D54 -> 46 | E55: =IF('INFORMATIONS COMPETITEURS'!$D$59="TABLEAU DE SAISIE CONFORME",CONCATENATE('INFORMATIONS COMPETITEURS'!G54," ",'INFORMATIONS COMPETITEURS'!E54),"") ->  | H55: =IF('INFORMATIONS COMPETITEURS'!$D$59="TABLEAU DE SAISIE CONFORME",IF('INFORMATIONS COMPETITEURS'!I54="","",'INFORMATIONS COMPETITEURS'!I54),"") ->  | P55: =IF('INFORMATIONS COMPETITEURS'!$D$59="TABLEAU DE SAISIE NON CONFORME","",IF(E55=" ",N(0),IF(SUM(K55:O55)=0,N(0),SUM(K55:O55)))) -> 0
D56: ='INFORMATIONS COMPETITEURS'!D55 -> 47 | E56: =IF('INFORMATIONS COMPETITEURS'!$D$59="TABLEAU DE SAISIE CONFORME",CONCATENATE('INFORMATIONS COMPETITEURS'!G55," ",'INFORMATIONS COMPETITEURS'!E55),"") ->  | H56: =IF('INFORMATIONS COMPETITEURS'!$D$59="TABLEAU DE SAISIE CONFORME",IF('INFORMATIONS COMPETITEURS'!I55="","",'INFORMATIONS COMPETITEURS'!I55),"") ->  | P56: =IF('INFORMATIONS COMPETITEURS'!$D$59="TABLEAU DE SAISIE NON CONFORME","",IF(E56=" ",N(0),IF(SUM(K56:O56)=0,N(0),SUM(K56:O56)))) -> 0
D57: ='INFORMATIONS COMPETITEURS'!D56 -> 48 | E57: =IF('INFORMATIONS COMPETITEURS'!$D$59="TABLEAU DE SAISIE CONFORME",CONCATENATE('INFORMATIONS COMPETITEURS'!G56," ",'INFORMATIONS COMPETITEURS'!E56),"") ->  | H57: =IF('INFORMATIONS COMPETITEURS'!$D$59="TABLEAU DE SAISIE CONFORME",IF('INFORMATIONS COMPETITEURS'!I56="","",'INFORMATIONS COMPETITEURS'!I56),"") ->  | P57: =IF('INFORMATIONS COMPETITEURS'!$D$59="TABLEAU DE SAISIE NON CONFORME","",IF(E57=" ",N(0),IF(SUM(K57:O57)=0,N(0),SUM(K57:O57)))) -> 0
D58: ='INFORMATIONS COMPETITEURS'!D57 -> 49 | E58: =IF('INFORMATIONS COMPETITEURS'!$D$59="TABLEAU DE SAISIE CONFORME",CONCATENATE('INFORMATIONS COMPETITEURS'!G57," ",'INFORMATIONS COMPETITEURS'!E57),"") ->  | H58: =IF('INFORMATIONS COMPETITEURS'!$D$59="TABLEAU DE SAISIE CONFORME",IF('INFORMATIONS COMPETITEURS'!I57="","",'INFORMATIONS COMPETITEURS'!I57),"") ->  | P58: =IF('INFORMATIONS COMPETITEURS'!$D$59="TABLEAU DE SAISIE NON CONFORME","",IF(E58=" ",N(0),IF(SUM(K58:O58)=0,N(0),SUM(K58:O58)))) -> 0
D59: ='INFORMATIONS COMPETITEURS'!D58 -> 50 | E59: =IF('INFORMATIONS COMPETITEURS'!$D$59="TABLEAU DE SAISIE CONFORME",CONCATENATE('INFORMATIONS COMPETITEURS'!G58," ",'INFORMATIONS COMPETITEURS'!E58),"") ->  | H59: =IF('INFORMATIONS COMPETITEURS'!$D$59="TABLEAU DE SAISIE CONFORME",IF('INFORMATIONS COMPETITEURS'!I58="","",'INFORMATIONS COMPETITEURS'!I58),"") ->  | P59: =IF('INFORMATIONS COMPETITEURS'!$D$59="TABLEAU DE SAISIE NON CONFORME","",IF(E59=" ",N(0),IF(SUM(K59:O59)=0,N(0),SUM(K59:O59)))) -> 0

Sheet RESULTATS
D4: =IF(F4="","","Club organisateur :") -> Club organisateur : | F4: =IF('INFORMATIONS GENERALES'!G16="","",'INFORMATIONS GENERALES'!G16) -> Commission Mouche FFPS | H4: SYNTHESE DES RESULTATS | Y4: =IF(AA4="","","Club organisateur :") -> Club organisateur : | AA4: =IF('INFORMATIONS GENERALES'!G16="","",'INFORMATIONS GENERALES'!G16) -> Commission Mouche FFPS | AC4: CLASSEMENT GENERAL TOUTES CATEGORIES | AT4: =IF(AV4="","","Club organisateur :") -> Club organisateur : | AV4: =IF('INFORMATIONS GENERALES'!G16="","",'INFORMATIONS GENERALES'!G16) -> Commission Mouche FFPS | AX4: CLASSEMENT CATEGORIE SENIOR | BO4: =IF(BQ4="","","Club organisateur :") -> Club organisateur : | BQ4: =IF('INFORMATIONS GENERALES'!G16="","",'INFORMATIONS GENERALES'!G16) -> Commission Mouche FFPS | BS4: CLASSEMENT CATEGORIE JUNIOR | CJ4: =IF(BQ4="","","Club organisateur :") -> Club organisateur : | CL4: =IF('INFORMATIONS GENERALES'!G16="","",'INFORMATIONS GENERALES'!G16) -> Commission Mouche FFPS | CN4: CLASSEMENT CATEGORIE CADET | DE4: =IF(BQ4="","","Club organisateur :") -> Club organisateur : | DG4: =IF('INFORMATIONS GENERALES'!G16="","",'INFORMATIONS GENERALES'!G16) -> Commission Mouche FFPS | DI4: CLASSEMENT CATEGORIE MINIME | DZ4: =IF(BQ4="","","Club organisateur :") -> Club organisateur : | EB4: =IF('INFORMATIONS GENERALES'!G16="","",'INFORMATIONS GENERALES'!G16) -> Commission Mouche FFPS | ED4: CLASSEMENT CATEGORIE BENJAMIN | EU4: =IF(BQ4="","","Club organisateur :") -> Club organisateur : | EW4: =IF('INFORMATIONS GENERALES'!G16="","",'INFORMATIONS GENERALES'!G16) -> Commission Mouche FFPS | EY4: CLASSEMENT CATEGORIE DECOUVERTE | FP4: =IF(BQ4="","","Club organisateur :") -> Club organisateur : | FR4: =IF('INFORMATIONS GENERALES'!G16="","",'INFORMATIONS GENERALES'!G16) -> Commission Mouche FFPS | FT4: CLASSEMENT CATEGORIE HANDISPORT | GK4: =IF(GM4="","","Club organisateur :") -> Club organisateur : | GM4: =IF('INFORMATIONS GENERALES'!G16="","",'INFORMATIONS GENERALES'!G16) -> Commission Mouche FFPS | GO4: CLASSEMENT CATEGORIE FEMININE
D5: =IF(F5="","","Type d'épreuve :") -> Type d'épreuve : | F5: =IF('INFORMATIONS GENERALES'!G19="","",'INFORMATIONS GENERALES'!G19) -> Finale CDF 2016 | Y5: =IF(AA5="","","Type d'épreuve :") -> Type d'épreuve : | AA5: =IF('INFORMATIONS GENERALES'!G19="","",'INFORMATIONS GENERALES'!G19) -> Finale CDF 2016 | AT5: =IF(AV5="","","Type d'épreuve :") -> Type d'épreuve : | AV5: =IF('INFORMATIONS GENERALES'!G19="","",'INFORMATIONS GENERALES'!G19) -> Finale CDF 2016 | BO5: =IF(BQ5="","","Type d'épreuve :") -> Type d'épreuve : | BQ5: =IF('INFORMATIONS GENERALES'!G19="","",'INFORMATIONS GENERALES'!G19) -> Finale CDF 2016 | CJ5: =IF(BQ5="","","Type d'épreuve :") -> Type d'épreuve : | CL5: =IF('INFORMATIONS GENERALES'!G19="","",'INFORMATIONS GENERALES'!G19) -> Finale CDF 2016 | DE5: =IF(BQ5="","","Type d'épreuve :") -> Type d'épreuve : | DG5: =IF('INFORMATIONS GENERALES'!G19="","",'INFORMATIONS GENERALES'!G19) -> Finale CDF 2016 | DZ5: =IF(BQ5="","","Type d'épreuve :") -> Type d'épreuve : | EB5: =IF('INFORMATIONS GENERALES'!G19="","",'INFORMATIONS GENERALES'!G19) -> Finale CDF 2016 | EU5: =IF(BQ5="","","Type d'épreuve :") -> Type d'épreuve : | EW5: =IF('INFORMATIONS GENERALES'!G19="","",'INFORMATIONS GENERALES'!G19) -> Finale CDF 2016 | FP5: =IF(BQ5="","","Type d'épreuve :") -> Type d'épreuve : | FR5: =IF('INFORMATIONS GENERALES'!G19="","",'INFORMATIONS GENERALES'!G19) -> Finale CDF 2016 | GK5: =IF(GM5="","","Type d'épreuve :") -> Type d'épreuve : | GM5: =IF('INFORMATIONS GENERALES'!G19="","",'INFORMATIONS GENERALES'!G19) -> Finale CDF 2016
D6: =IF(F6="","","Lieu :") -> Lieu : | F6: =IF('INFORMATIONS GENERALES'!Q16="","",'INFORMATIONS GENERALES'!Q16) -> 28ème CNPL Clermont Ferrand | Y6: =IF(AA6="","","Lieu :") -> Lieu : | AA6: =IF('INFORMATIONS GENERALES'!Q16="","",'INFORMATIONS GENERALES'!Q16) -> 28ème CNPL Clermont Ferrand | AT6: =IF(AV6="","","Lieu :") -> Lieu : | AV6: =IF('INFORMATIONS GENERALES'!Q16="","",'INFORMATIONS GENERALES'!Q16) -> 28ème CNPL Clermont Ferrand | BO6: =IF(BQ6="","","Lieu :") -> Lieu : | BQ6: =IF('INFORMATIONS GENERALES'!Q16="","",'INFORMATIONS GENERALES'!Q16) -> 28ème CNPL Clermont Ferrand | CJ6: =IF(BQ6="","","Lieu :") -> Lieu : | CL6: =IF('INFORMATIONS GENERALES'!Q16="","",'INFORMATIONS GENERALES'!Q16) -> 28ème CNPL Clermont Ferrand | DE6: =IF(BQ6="","","Lieu :") -> Lieu : | DG6: =IF('INFORMATIONS GENERALES'!Q16="","",'INFORMATIONS GENERALES'!Q16) -> 28ème CNPL Clermont Ferrand | DZ6: =IF(BQ6="","","Lieu :") -> Lieu : | EB6: =IF('INFORMATIONS GENERALES'!Q16="","",'INFORMATIONS GENERALES'!Q16) -> 28ème CNPL Clermont Ferrand | EU6: =IF(BQ6="","","Lieu :") -> Lieu : | EW6: =IF('INFORMATIONS GENERALES'!Q16="","",'INFORMATIONS GENERALES'!Q16) -> 28ème CNPL Clermont Ferrand | FP6: =IF(BQ6="","","Lieu :") -> Lieu : | FR6: =IF('INFORMATIONS GENERALES'!Q16="","",'INFORMATIONS GENERALES'!Q16) -> 28ème CNPL Clermont Ferrand | GK6: =IF(GM6="","","Lieu :") -> Lieu : | GM6: =IF('INFORMATIONS GENERALES'!Q16="","",'INFORMATIONS GENERALES'!Q16) -> 28ème CNPL Clermont Ferrand
D7: =IF(F7="","","Date :") -> Date : | F7: =IF('INFORMATIONS GENERALES'!G22="","",'INFORMATIONS GENERALES'!G22) -> 2017-01-14 | Y7: =IF(AA7="","","Date :") -> Date : | AA7: =IF('INFORMATIONS GENERALES'!G22="","",'INFORMATIONS GENERALES'!G22) -> 2017-01-14 | AT7: =IF(AV7="","","Date :") -> Date : | AV7: =IF('INFORMATIONS GENERALES'!G22="","",'INFORMATIONS GENERALES'!G22) -> 2017-01-14 | BO7: =IF(BQ7="","","Date :") -> Date : | BQ7: =IF('INFORMATIONS GENERALES'!G22="","",'INFORMATIONS GENERALES'!G22) -> 2017-01-14 | CJ7: =IF(BQ7="","","Date :") -> Date : | CL7: =IF('INFORMATIONS GENERALES'!G22="","",'INFORMATIONS GENERALES'!G22) -> 2017-01-14 | DE7: =IF(BQ7="","","Date :") -> Date : | DG7: =IF('INFORMATIONS GENERALES'!G22="","",'INFORMATIONS GENERALES'!G22) -> 2017-01-14 | DZ7: =IF(BQ7="","","Date :") -> Date : | EB7: =IF('INFORMATIONS GENERALES'!G22="","",'INFORMATIONS GENERALES'!G22) -> 2017-01-14 | EU7: =IF(BQ7="","","Date :") -> Date : | EW7: =IF('INFORMATIONS GENERALES'!G22="","",'INFORMATIONS GENERALES'!G22) -> 2017-01-14 | FP7: =IF(BQ7="","","Date :") -> Date : | FR7: =IF('INFORMATIONS GENERALES'!G22="","",'INFORMATIONS GENERALES'!G22) -> 2017-01-14 | GK7: =IF(GM7="","","Date :") -> Date : | GM7: =IF('INFORMATIONS GENERALES'!G22="","",'INFORMATIONS GENERALES'!G22) -> 2017-01-14
D10: N° de plaquette | E10: Compétiteur | H10: Club | K10: Catégorie | L10: POINTS MOUCHE N°1 | N10: POINTS MOUCHE N°2 | P10: POINTS MOUCHE N°3 | R10: POINTS MOUCHE N°4 | T10: TOTAL POINTS MOUCHES | Y10: N° de plaquette | Z10: Compétiteur | AC10: Club | AF10: Catégorie | AG10: POINTS MOUCHE N°1 | AI10: POINTS MOUCHE N°2 | AK10: POINTS MOUCHE N°3 | AM10: POINTS MOUCHE N°4 | AO10: TOTAL POINTS MOUCHES | AT10: N° de plaquette | AU10: Compétiteur | AX10: Club | BA10: Catégorie | BB10: POINTS MOUCHE N°1 | BD10: POINTS MOUCHE N°2 | BF10: POINTS MOUCHE N°3 | BH10: POINTS MOUCHE N°4 | BJ10: TOTAL POINTS MOUCHES | BO10: N° de plaquette | BP10: Compétiteur | BS10: Club | BV10: Catégorie | BW10: POINTS MOUCHE N°1 | BY10: POINTS MOUCHE N°2 | CA10: POINTS MOUCHE N°3 | CC10: POINTS MOUCHE N°4 | CE10: TOTAL POINTS MOUCHES | CJ10: N° de plaquette | CK10: Compétiteur | CN10: Club | CQ10: Catégorie | CR10: POINTS MOUCHE N°1 | CT10: POINTS MOUCHE N°2 | CV10: POINTS MOUCHE N°3 | CX10: POINTS MOUCHE N°4 | CZ10: TOTAL POINTS MOUCHES | DE10: N° de plaquette | DF10: Compétiteur | DI10: Club | DL10: Catégorie | DM10: POINTS MOUCHE N°1 | DO10: POINTS MOUCHE N°2 | DQ10: POINTS MOUCHE N°3 | DS10: POINTS MOUCHE N°4 | DU10: TOTAL POINTS MOUCHES | DZ10: N° de plaquette | EA10: Compétiteur | ED10: Club | EG10: Catégorie | EH10: POINTS MOUCHE N°1 | EJ10: POINTS MOUCHE N°2 | EL10: POINTS MOUCHE N°3 | EN10: POINTS MOUCHE N°4 | EP10: TOTAL POINTS MOUCHES | EU10: N° de plaquette | EV10: Compétiteur | EY10: Club | FB10: Catégorie | FC10: POINTS MOUCHE N°1 | FE10: POINTS MOUCHE N°2 | FG10: POINTS MOUCHE N°3 | FI10: POINTS MOUCHE N°4 | FK10: TOTAL POINTS MOUCHES | FP10: N° de plaquette | FQ10: Compétiteur | FT10: Club | FW10: Catégorie | FX10: POINTS MOUCHE N°1 | FZ10: POINTS MOUCHE N°2 | GB10: POINTS MOUCHE N°3 | GD10: POINTS MOUCHE N°4 | GF10: TOTAL POINTS MOUCHES | GK10: N° de plaquette | GL10: Compétiteur | GO10: Club | GR10: Catégorie | GS10: POINTS MOUCHE N°1 | GU10: POINTS MOUCHE N°2 | GW10: POINTS MOUCHE N°3 | GY10: POINTS MOUCHE N°4 | HA10: TOTAL POINTS MOUCHES
D14: ='INFORMATIONS COMPETITEURS'!D9 -> 1 | E14: =IF('INFORMATIONS COMPETITEURS'!$D$59="TABLEAU DE SAISIE CONFORME",CONCATENATE('INFORMATIONS COMPETITEURS'!G9," ",'INFORMATIONS COMPETITEURS'!E9),"") -> Claude CAMPILLO | H14: =IF('INFORMATIONS COMPETITEURS'!$D$59="TABLEAU DE SAISIE CONFORME",IF('INFORMATIONS COMPETITEURS'!I9="","",'INFORMATIONS COMPETITEURS'!I9),"") -> CML | K14: =IF('INFORMATIONS COMPETITEURS'!$D$59="TABLEAU DE SAISIE CONFORME",IF(COUNTBLANK('INFORMATIONS COMPETITEURS'!L9)=1,"",'INFORMATIONS COMPETITEURS'!L9),"") -> Sénior | L14: =IF('INFORMATIONS COMPETITEURS'!$D$59="TABLEAU DE SAISIE NON CONFORME","",IF(OR(E14="",H14="",K14=""),N(0),'MOUCHE N°1'!P10)) -> 169 | N14: =IF('INFORMATIONS COMPETITEURS'!$D$59="TABLEAU DE SAISIE NON CONFORME","",IF(OR(E14="",H14="",K14=""),N(0),'MOUCHE N°2'!P10)) -> 152 | P14: =IF('INFORMATIONS COMPETITEURS'!$D$59="TABLEAU DE SAISIE NON CONFORME","",IF(OR(E14="",H14="",K14=""),N(0),'MOUCHE N°3'!P10)) -> 172 | R14: =IF('INFORMATIONS COMPETITEURS'!$D$59="TABLEAU DE SAISIE NON CONFORME","",IF(OR(E14="",H14="",K14=""),N(0),'MOUCHE N°4'!P10)) -> 193 | T14: =IF('INFORMATIONS COMPETITEURS'!$D$59="TABLEAU DE SAISIE NON CONFORME","",IF(E14=" ",N(0),IF(COUNT(L14,N14,P14,R14)>0,SUM(L14,N14,P14,R14),N(0)))) -> 686 | X14: =IF(Y14="","",1) -> 1 | Y14: =IF(AO14="","",IF(AND(AO14=0,Z14=" "),"",IF(ISNA(MATCH(Z14,$E$14:$E$63,0)),"",MATCH(Z14,$E$14:$E$63,0)))) -> 26 | Z14: Henri CALAVIA | AC14: CMCRE | AF14: Sénior | AG14: 285 | AI14: 280 | AK14: 278 | AM14: 294 | AO14: 1137 | AS14: =IF(AT14="","",1) -> 1 | AT14: =IF(BJ14="","",IF(AND(BJ14=0,AU14=" "),"",IF(ISNA(MATCH(AU14,$E$14:$E$63,0)),"",MATCH(AU14,$E$14:$E$63,0)))) -> 26 | AU14: Henri CALAVIA | AX14: CMCRE | BA14: Sénior | BB14: 285 | BD14: 280 | BF14: 278 | BH14: 294 | BJ14: 1137 | BN14: =IF(BO14="","",1) ->  | BO14: =IF(CE14="","",IF(AND(CE14=0,BP14=" "),"",IF(ISNA(MATCH(BP14,$E$14:$E$63,0)),"",MATCH(BP14,$E$14:$E$63,0)))) ->  | CI14: =IF(CJ14="","",1) -> 1 | CJ14: =IF(CZ14="","",IF(AND(CZ14=0,CK14=" "),"",IF(ISNA(MATCH(CK14,$E$14:$E$63,0)),"",MATCH(CK14,$E$14:$E$63,0)))) -> 27 | CK14: Batiste JEANIN | CN14: Ecole de pêche Dijon | CQ14: Cadet | CR14: 115 | CT14: 155 | CV14: 106 | CX14: 135 | CZ14: 511 | DD14: =IF(DE14="","",1) -> 1 | DE14: =IF(DU14="","",IF(AND(DU14=0,DF14=" "),"",IF(ISNA(MATCH(DF14,$E$14:$E$63,0)),"",MATCH(DF14,$E$14:$E$63,0)))) -> 21 | DF14: Dimitri DEZOTHEZ | DI14: Club Mouche du gévaudan | DL14: Minime | DM14: 262 | DO14: 175 | DQ14: 173 | DS14: 173 | DU14: 783 | DY14: =IF(DZ14="","",1) -> 1 | DZ14: =IF(EP14="","",IF(AND(EP14=0,EA14=" "),"",IF(ISNA(MATCH(EA14,$E$14:$E$63,0)),"",MATCH(EA14,$E$14:$E$63,0)))) -> 20 | EA14: HAMZA MAACH | ED14: Ecole de pêche Dijon | EG14: Benjamin | EH14: 92 | EJ14: 85 | EL14: 79 | EN14: 150 | EP14: 406 | ET14: =IF(EU14="","",1) ->  | EU14: =IF(FK14="","",IF(AND(FK14=0,EV14=" "),"",IF(ISNA(MATCH(EV14,$E$14:$E$63,0)),"",MATCH(EV14,$E$14:$E$63,0)))) ->  | FO14: =IF(FP14="","",1) -> 1 | FP14: =IF(GF14="","",IF(AND(GF14=0,FQ14=" "),"",IF(ISNA(MATCH(FQ14,$E$14:$E$63,0)),"",MATCH(FQ14,$E$14:$E$63,0)))) -> 11 | FQ14: Gerard COMMARET | FT14: GPS Val de Saone | FW14: Handisport | FX14: 79 | FZ14: 91 | GB14: 55 | GD14: 85 | GF14: 310 | GJ14: =IF(GK14="","",1) -> 1 | GK14: =IF(HA14="","",IF(AND(HA14=0,GL14=" "),"",IF(ISNA(MATCH(GL14,$E$14:$E$63,0)),"",MATCH(GL14,$E$14:$E$63,0)))) -> 5 | GL14: Nathalie ALBERGE | GO14: CM Pays d'Oc | GR14: Féminine | GS14: 182 | GU14: 169 | GW14: 177 | GY14: 123 | HA14: 651
D15: ='INFORMATIONS COMPETITEURS'!D10 -> 2 | E15: =IF('INFORMATIONS COMPETITEURS'!$D$59="TABLEAU DE SAISIE CONFORME",CONCATENATE('INFORMATIONS COMPETITEURS'!G10," ",'INFORMATIONS COMPETITEURS'!E10),"") -> Didier DIEGO | H15: =IF('INFORMATIONS COMPETITEURS'!$D$59="TABLEAU DE SAISIE CONFORME",IF('INFORMATIONS COMPETITEURS'!I10="","",'INFORMATIONS COMPETITEURS'!I10),"") -> GPD Pays d'Oc | K15: =IF('INFORMATIONS COMPETITEURS'!$D$59="TABLEAU DE SAISIE CONFORME",IF(COUNTBLANK('INFORMATIONS COMPETITEURS'!L10)=1,"",'INFORMATIONS COMPETITEURS'!L10),"") -> Sénior | L15: =IF('INFORMATIONS COMPETITEURS'!$D$59="TABLEAU DE SAISIE NON CONFORME","",IF(OR(E15="",H15="",K15=""),N(0),'MOUCHE N°1'!P11)) -> 252 | N15: =IF('INFORMATIONS COMPETITEURS'!$D$59="TABLEAU DE SAISIE NON CONFORME","",IF(OR(E15="",H15="",K15=""),N(0),'MOUCHE N°2'!P11)) -> 223 | P15: =IF('INFORMATIONS COMPETITEURS'!$D$59="TABLEAU DE SAISIE NON CONFORME","",IF(OR(E15="",H15="",K15=""),N(0),'MOUCHE N°3'!P11)) -> 215 | R15: =IF('INFORMATIONS COMPETITEURS'!$D$59="TABLEAU DE SAISIE NON CONFORME","",IF(OR(E15="",H15="",K15=""),N(0),'MOUCHE N°4'!P11)) -> 170 | T15: =IF('INFORMATIONS COMPETITEURS'!$D$59="TABLEAU DE SAISIE NON CONFORME","",IF(E15=" ",N(0),IF(COUNT(L15,N15,P15,R15)>0,SUM(L15,N15,P15,R15),N(0)))) -> 860 | X15: =IF(Y15="","",IF(ISERROR(IF(AND(AG15=AG14,AI15=AI14,AO15=AO14),X14,X14+1)),"",IF(AND(AG15=AG14,AI15=AI14,AO15=AO14),X14,X14+1))) -> 2 | Y15: =IF(AO15="","",IF(AND(AO15=0,Z15=" "),"",IF(ISNA(MATCH(Z15,$E$14:$E$63,0)),"",MATCH(Z15,$E$14:$E$63,0)))) -> 13 | Z15: Didier CHETAUD | AC15: GPS Val de Saone | AF15: Sénior | AG15: 248 | AI15: 248 | AK15: 292 | AM15: 294 | AO15: 1082 | AS15: =IF(AT15="","",IF(ISERROR(IF(AND(BB15=BB14,BD15=BD14,BJ15=BJ14),AS14,AS14+1)),"",IF(AND(BB15=BB14,BD15=BD14,BJ15=BJ14),AS14,AS14+1))) -> 2 | AT15: =IF(BJ15="","",IF(AND(BJ15=0,AU15=" "),"",IF(ISNA(MATCH(AU15,$E$14:$E$63,0)),"",MATCH(AU15,$E$14:$E$63,0)))) -> 13 | AU15: Didier CHETAUD | AX15: GPS Val de Saone | BA15: Sénior | BB15: 248 | BD15: 248 | BF15: 292 | BH15: 294 | BJ15: 1082 | BN15: =IF(BO15="","",IF(ISERROR(IF(AND(BW15=BW14,BY15=BY14,CE15=CE14),BN14,BN14+1)),"",IF(AND(BW15=BW14,BY15=BY14,CE15=CE14),BN14,BN14+1))) ->  | BO15: =IF(CE15="","",IF(AND(CE15=0,BP15=" "),"",IF(ISNA(MATCH(BP15,$E$14:$E$63,0)),"",MATCH(BP15,$E$14:$E$63,0)))) ->  | CI15: =IF(CJ15="","",IF(ISERROR(IF(AND(CR15=CR14,CT15=CT14,CZ15=CZ14),CI14,CI14+1)),"",IF(AND(CR15=CR14,CT15=CT14,CZ15=CZ14),CI14,CI14+1))) -> 2 | CJ15: =IF(CZ15="","",IF(AND(CZ15=0,CK15=" "),"",IF(ISNA(MATCH(CK15,$E$14:$E$63,0)),"",MATCH(CK15,$E$14:$E$63,0)))) -> 8 | CK15: Edgard RICHARD | CN15: Ecole de pêche Dijon | CQ15: Cadet | CR15: 95 | CT15: 115 | CV15: 132 | CX15: 130 | CZ15: 472 | DD15: =IF(DE15="","",IF(ISERROR(IF(AND(DM15=DM14,DO15=DO14,DU15=DU14),DD14,DD14+1)),"",IF(AND(DM15=DM14,DO15=DO14,DU15=DU14),DD14,DD14+1))) -> 2 | DE15: =IF(DU15="","",IF(AND(DU15=0,DF15=" "),"",IF(ISNA(MATCH(DF15,$E$14:$E$63,0)),"",MATCH(DF15,$E$14:$E$63,0)))) -> 4 | DF15: Valentin BIBENT | DI15: CML | DL15: Minime | DM15: 65 | DO15: 192 | DQ15: 151 | DS15: 124 | DU15: 532 | DY15: =IF(DZ15="","",IF(ISERROR(IF(AND(EH15=EH14,EJ15=EJ14,EP15=EP14),DY14,DY14+1)),"",IF(AND(EH15=EH14,EJ15=EJ14,EP15=EP14),DY14,DY14+1))) -> 2 | DZ15: =IF(EP15="","",IF(AND(EP15=0,EA15=" "),"",IF(ISNA(MATCH(EA15,$E$14:$E$63,0)),"",MATCH(EA15,$E$14:$E$63,0)))) -> 17 | EA15: Bernard Rémi | ED15: Ecole de pêche Dijon | EG15: Benjamin | EH15: 0 | EJ15: 0 | EL15: 0 | EN15: 0 | EP15: 0 | ET15: =IF(EU15="","",IF(ISERROR(IF(AND(FC15=FC14,FE15=FE14,FK15=FK14),ET14,ET14+1)),"",IF(AND(FC15=FC14,FE15=FE14,FK15=FK14),ET14,ET14+1))) ->  | EU15: =IF(FK15="","",IF(AND(FK15=0,EV15=" "),"",IF(ISNA(MATCH(EV15,$E$14:$E$63,0)),"",MATCH(EV15,$E$14:$E$63,0)))) ->  | FO15: =IF(FP15="","",IF(ISERROR(IF(AND(FX15=FX14,FZ15=FZ14,GF15=GF14),FO14,FO14+1)),"",IF(AND(FX15=FX14,FZ15=FZ14,GF15=GF14),FO14,FO14+1))) ->  | FP15: =IF(GF15="","",IF(AND(GF15=0,FQ15=" "),"",IF(ISNA(MATCH(FQ15,$E$14:$E$63,0)),"",MATCH(FQ15,$E$14:$E$63,0)))) ->  | GJ15: =IF(GK15="","",IF(ISERROR(IF(AND(GS15=GS14,GU15=GU14,HA15=HA14),GJ14,GJ14+1)),"",IF(AND(GS15=GS14,GU15=GU14,HA15=HA14),GJ14,GJ14+1))) -> 2 | GK15: =IF(HA15="","",IF(AND(HA15=0,GL15=" "),"",IF(ISNA(MATCH(GL15,$E$14:$E$63,0)),"",MATCH(GL15,$E$14:$E$63,0)))) -> 9 | GL15: Solène Le Bourhis Beyer | GO15: CM Arzano | GR15: Féminine | GS15: 180 | GU15: 160 | GW15: 146 | GY15: 153 | HA15: 639
D16: ='INFORMATIONS COMPETITEURS'!D11 -> 3 | E16: =IF('INFORMATIONS COMPETITEURS'!$D$59="TABLEAU DE SAISIE CONFORME",CONCATENATE('INFORMATIONS COMPETITEURS'!G11," ",'INFORMATIONS COMPETITEURS'!E11),"") -> Samuel CREPILLON | H16: =IF('INFORMATIONS COMPETITEURS'!$D$59="TABLEAU DE SAISIE CONFORME",IF('INFORMATIONS COMPETITEURS'!I11="","",'INFORMATIONS COMPETITEURS'!I11),"") -> GPS Nièvre Morvan | K16: =IF('INFORMATIONS COMPETITEURS'!$D$59="TABLEAU DE SAISIE CONFORME",IF(COUNTBLANK('INFORMATIONS COMPETITEURS'!L11)=1,"",'INFORMATIONS COMPETITEURS'!L11),"") -> Sénior | L16: =IF('INFORMATIONS COMPETITEURS'!$D$59="TABLEAU DE SAISIE NON CONFORME","",IF(OR(E16="",H16="",K16=""),N(0),'MOUCHE N°1'!P12)) -> 120 | N16: =IF('INFORMATIONS COMPETITEURS'!$D$59="TABLEAU DE SAISIE NON CONFORME","",IF(OR(E16="",H16="",K16=""),N(0),'MOUCHE N°2'!P12)) -> 120 | P16: =IF('INFORMATIONS COMPETITEURS'!$D$59="TABLEAU DE SAISIE NON CONFORME","",IF(OR(E16="",H16="",K16=""),N(0),'MOUCHE N°3'!P12)) -> 142 | R16: =IF('INFORMATIONS COMPETITEURS'!$D$59="TABLEAU DE SAISIE NON CONFORME","",IF(OR(E16="",H16="",K16=""),N(0),'MOUCHE N°4'!P12)) -> 270 | T16: =IF('INFORMATIONS COMPETITEURS'!$D$59="TABLEAU DE SAISIE NON CONFORME","",IF(E16=" ",N(0),IF(COUNT(L16,N16,P16,R16)>0,SUM(L16,N16,P16,R16),N(0)))) -> 652 | X16: =IF(Y16="","",IF(ISERROR(IF(AND(AG16=AG15,AI16=AI15,AO16=AO15),X15,X15+1)),"",IF(AND(AG16=AG15,AI16=AI15,AO16=AO15),X15,X15+1))) -> 3 | Y16: =IF(AO16="","",IF(AND(AO16=0,Z16=" "),"",IF(ISNA(MATCH(Z16,$E$14:$E$63,0)),"",MATCH(Z16,$E$14:$E$63,0)))) -> 2 | Z16: Didier DIEGO | AC16: GPD Pays d'Oc | AF16: Sénior | AG16: 252 | AI16: 223 | AK16: 215 | AM16: 170 | AO16: 860 | AS16: =IF(AT16="","",IF(ISERROR(IF(AND(BB16=BB15,BD16=BD15,BJ16=BJ15),AS15,AS15+1)),"",IF(AND(BB16=BB15,BD16=BD15,BJ16=BJ15),AS15,AS15+1))) -> 3 | AT16: =IF(BJ16="","",IF(AND(BJ16=0,AU16=" "),"",IF(ISNA(MATCH(AU16,$E$14:$E$63,0)),"",MATCH(AU16,$E$14:$E$63,0)))) -> 2 | AU16: Didier DIEGO | AX16: GPD Pays d'Oc | BA16: Sénior | BB16: 252 | BD16: 223 | BF16: 215 | BH16: 170 | BJ16: 860 | BN16: =IF(BO16="","",IF(ISERROR(IF(AND(BW16=BW15,BY16=BY15,CE16=CE15),BN15,BN15+1)),"",IF(AND(BW16=BW15,BY16=BY15,CE16=CE15),BN15,BN15+1))) ->  | BO16: =IF(CE16="","",IF(AND(CE16=0,BP16=" "),"",IF(ISNA(MATCH(BP16,$E$14:$E$63,0)),"",MATCH(BP16,$E$14:$E$63,0)))) ->  | CI16: =IF(CJ16="","",IF(ISERROR(IF(AND(CR16=CR15,CT16=CT15,CZ16=CZ15),CI15,CI15+1)),"",IF(AND(CR16=CR15,CT16=CT15,CZ16=CZ15),CI15,CI15+1))) ->  | CJ16: =IF(CZ16="","",IF(AND(CZ16=0,CK16=" "),"",IF(ISNA(MATCH(CK16,$E$14:$E$63,0)),"",MATCH(CK16,$E$14:$E$63,0)))) ->  | DD16: =IF(DE16="","",IF(ISERROR(IF(AND(DM16=DM15,DO16=DO15,DU16=DU15),DD15,DD15+1)),"",IF(AND(DM16=DM15,DO16=DO15,DU16=DU15),DD15,DD15+1))) -> 3 | DE16: =IF(DU16="","",IF(AND(DU16=0,DF16=" "),"",IF(ISNA(MATCH(DF16,$E$14:$E$63,0)),"",MATCH(DF16,$E$14:$E$63,0)))) -> 29 | DF16: BOUAFFIA DENIL | DI16: GPS | DL16: Minime | DM16: 0 | DO16: 0 | DQ16: 0 | DS16: 0 | DU16: 0 | DY16: =IF(DZ16="","",IF(ISERROR(IF(AND(EH16=EH15,EJ16=EJ15,EP16=EP15),DY15,DY15+1)),"",IF(AND(EH16=EH15,EJ16=EJ15,EP16=EP15),DY15,DY15+1))) ->  | DZ16: =IF(EP16="","",IF(AND(EP16=0,EA16=" "),"",IF(ISNA(MATCH(EA16,$E$14:$E$63,0)),"",MATCH(EA16,$E$14:$E$63,0)))) ->  | ET16: =IF(EU16="","",IF(ISERROR(IF(AND(FC16=FC15,FE16=FE15,FK16=FK15),ET15,ET15+1)),"",IF(AND(FC16=FC15,FE16=FE15,FK16=FK15),ET15,ET15+1))) ->  | EU16: =IF(FK16="","",IF(AND(FK16=0,EV16=" "),"",IF(ISNA(MATCH(EV16,$E$14:$E$63,0)),"",MATCH(EV16,$E$14:$E$63,0)))) ->  | FO16: =IF(FP16="","",IF(ISERROR(IF(AND(FX16=FX15,FZ16=FZ15,GF16=GF15),FO15,FO15+1)),"",IF(AND(FX16=FX15,FZ16=FZ15,GF16=GF15),FO15,FO15+1))) ->  | FP16: =IF(GF16="","",IF(AND(GF16=0,FQ16=" "),"",IF(ISNA(MATCH(FQ16,$E$14:$E$63,0)),"",MATCH(FQ16,$E$14:$E$63,0)))) ->  | GJ16: =IF(GK16="","",IF(ISERROR(IF(AND(GS16=GS15,GU16=GU15,HA16=HA15),GJ15,GJ15+1)),"",IF(AND(GS16=GS15,GU16=GU15,HA16=HA15),GJ15,GJ15+1))) ->  | GK16: =IF(HA16="","",IF(AND(HA16=0,GL16=" "),"",IF(ISNA(MATCH(GL16,$E$14:$E$63,0)),"",MATCH(GL16,$E$14:$E$63,0)))) -> 
D17: ='INFORMATIONS COMPETITEURS'!D12 -> 4 | E17: =IF('INFORMATIONS COMPETITEURS'!$D$59="TABLEAU DE SAISIE CONFORME",CONCATENATE('INFORMATIONS COMPETITEURS'!G12," ",'INFORMATIONS COMPETITEURS'!E12),"") -> Valentin BIBENT | H17: =IF('INFORMATIONS COMPETITEURS'!$D$59="TABLEAU DE SAISIE CONFORME",IF('INFORMATIONS COMPETITEURS'!I12="","",'INFORMATIONS COMPETITEURS'!I12),"") -> CML | K17: =IF('INFORMATIONS COMPETITEURS'!$D$59="TABLEAU DE SAISIE CONFORME",IF(COUNTBLANK('INFORMATIONS COMPETITEURS'!L12)=1,"",'INFORMATIONS COMPETITEURS'!L12),"") -> Minime | L17: =IF('INFORMATIONS COMPETITEURS'!$D$59="TABLEAU DE SAISIE NON CONFORME","",IF(OR(E17="",H17="",K17=""),N(0),'MOUCHE N°1'!P13)) -> 65 | N17: =IF('INFORMATIONS COMPETITEURS'!$D$59="TABLEAU DE SAISIE NON CONFORME","",IF(OR(E17="",H17="",K17=""),N(0),'MOUCHE N°2'!P13)) -> 192 | P17: =IF('INFORMATIONS COMPETITEURS'!$D$59="TABLEAU DE SAISIE NON CONFORME","",IF(OR(E17="",H17="",K17=""),N(0),'MOUCHE N°3'!P13)) -> 151 | R17: =IF('INFORMATIONS COMPETITEURS'!$D$59="TABLEAU DE SAISIE NON CONFORME","",IF(OR(E17="",H17="",K17=""),N(0),'MOUCHE N°4'!P13)) -> 124 | T17: =IF('INFORMATIONS COMPETITEURS'!$D$59="TABLEAU DE SAISIE NON CONFORME","",IF(E17=" ",N(0),IF(COUNT(L17,N17,P17,R17)>0,SUM(L17,N17,P17,R17),N(0)))) -> 532 | X17: 4 | Y17: =IF(AO17="","",IF(AND(AO17=0,Z17=" "),"",IF(ISNA(MATCH(Z17,$E$14:$E$63,0)),"",MATCH(Z17,$E$14:$E$63,0)))) -> 12 | Z17: Stéphane PONCET | AC17: GPS Bresse Remiremont | AF17: Sénior | AG17: 244 | AI17: 162 | AK17: 238 | AM17: 182 | AO17: 826 | AS17: =IF(AT17="","",IF(ISERROR(IF(AND(BB17=BB16,BD17=BD16,BJ17=BJ16),AS16,AS16+1)),"",IF(AND(BB17=BB16,BD17=BD16,BJ17=BJ16),AS16,AS16+1))) -> 4 | AT17: =IF(BJ17="","",IF(AND(BJ17=0,AU17=" "),"",IF(ISNA(MATCH(AU17,$E$14:$E$63,0)),"",MATCH(AU17,$E$14:$E$63,0)))) -> 12 | AU17: Stéphane PONCET | AX17: GPS Bresse Remiremont | BA17: Sénior | BB17: 244 | BD17: 162 | BF17: 238 | BH17: 182 | BJ17: 826 | BN17: =IF(BO17="","",IF(ISERROR(IF(AND(BW17=BW16,BY17=BY16,CE17=CE16),BN16,BN16+1)),"",IF(AND(BW17=BW16,BY17=BY16,CE17=CE16),BN16,BN16+1))) ->  | BO17: =IF(CE17="","",IF(AND(CE17=0,BP17=" "),"",IF(ISNA(MATCH(BP17,$E$14:$E$63,0)),"",MATCH(BP17,$E$14:$E$63,0)))) ->  | CI17: =IF(CJ17="","",IF(ISERROR(IF(AND(CR17=CR16,CT17=CT16,CZ17=CZ16),CI16,CI16+1)),"",IF(AND(CR17=CR16,CT17=CT16,CZ17=CZ16),CI16,CI16+1))) ->  | CJ17: =IF(CZ17="","",IF(AND(CZ17=0,CK17=" "),"",IF(ISNA(MATCH(CK17,$E$14:$E$63,0)),"",MATCH(CK17,$E$14:$E$63,0)))) ->  | DD17: =IF(DE17="","",IF(ISERROR(IF(AND(DM17=DM16,DO17=DO16,DU17=DU16),DD16,DD16+1)),"",IF(AND(DM17=DM16,DO17=DO16,DU17=DU16),DD16,DD16+1))) ->  | DE17: =IF(DU17="","",IF(AND(DU17=0,DF17=" "),"",IF(ISNA(MATCH(DF17,$E$14:$E$63,0)),"",MATCH(DF17,$E$14:$E$63,0)))) ->  | DY17: =IF(DZ17="","",IF(ISERROR(IF(AND(EH17=EH16,EJ17=EJ16,EP17=EP16),DY16,DY16+1)),"",IF(AND(EH17=EH16,EJ17=EJ16,EP17=EP16),DY16,DY16+1))) ->  | DZ17: =IF(EP17="","",IF(AND(EP17=0,EA17=" "),"",IF(ISNA(MATCH(EA17,$E$14:$E$63,0)),"",MATCH(EA17,$E$14:$E$63,0)))) ->  | ET17: =IF(EU17="","",IF(ISERROR(IF(AND(FC17=FC16,FE17=FE16,FK17=FK16),ET16,ET16+1)),"",IF(AND(FC17=FC16,FE17=FE16,FK17=FK16),ET16,ET16+1))) ->  | EU17: =IF(FK17="","",IF(AND(FK17=0,EV17=" "),"",IF(ISNA(MATCH(EV17,$E$14:$E$63,0)),"",MATCH(EV17,$E$14:$E$63,0)))) ->  | FO17: =IF(FP17="","",IF(ISERROR(IF(AND(FX17=FX16,FZ17=FZ16,GF17=GF16),FO16,FO16+1)),"",IF(AND(FX17=FX16,FZ17=FZ16,GF17=GF16),FO16,FO16+1))) ->  | FP17: =IF(GF17="","",IF(AND(GF17=0,FQ17=" "),"",IF(ISNA(MATCH(FQ17,$E$14:$E$63,0)),"",MATCH(FQ17,$E$14:$E$63,0)))) ->  | GJ17: =IF(GK17="","",IF(ISERROR(IF(AND(GS17=GS16,GU17=GU16,HA17=HA16),GJ16,GJ16+1)),"",IF(AND(GS17=GS16,GU17=GU16,HA17=HA16),GJ16,GJ16+1))) ->  | GK17: =IF(HA17="","",IF(AND(HA17=0,GL17=" "),"",IF(ISNA(MATCH(GL17,$E$14:$E$63,0)),"",MATCH(GL17,$E$14:$E$63,0)))) -> 
D18: ='INFORMATIONS COMPETITEURS'!D13 -> 5 | E18: =IF('INFORMATIONS COMPETITEURS'!$D$59="TABLEAU DE SAISIE CONFORME",CONCATENATE('INFORMATIONS COMPETITEURS'!G13," ",'INFORMATIONS COMPETITEURS'!E13),"") -> Nathalie ALBERGE | H18: =IF('INFORMATIONS COMPETITEURS'!$D$59="TABLEAU DE SAISIE CONFORME",IF('INFORMATIONS COMPETITEURS'!I13="","",'INFORMATIONS COMPETITEURS'!I13),"") -> CM Pays d'Oc | K18: =IF('INFORMATIONS COMPETITEURS'!$D$59="TABLEAU DE SAISIE CONFORME",IF(COUNTBLANK('INFORMATIONS COMPETITEURS'!L13)=1,"",'INFORMATIONS COMPETITEURS'!L13),"") -> Féminine | L18: =IF('INFORMATIONS COMPETITEURS'!$D$59="TABLEAU DE SAISIE NON CONFORME","",IF(OR(E18="",H18="",K18=""),N(0),'MOUCHE N°1'!P14)) -> 182 | N18: =IF('INFORMATIONS COMPETITEURS'!$D$59="TABLEAU DE SAISIE NON CONFORME","",IF(OR(E18="",H18="",K18=""),N(0),'MOUCHE N°2'!P14)) -> 169 | P18: =IF('INFORMATIONS COMPETITEURS'!$D$59="TABLEAU DE SAISIE NON CONFORME","",IF(OR(E18="",H18="",K18=""),N(0),'MOUCHE N°3'!P14)) -> 177 | R18: =IF('INFORMATIONS COMPETITEURS'!$D$59="TABLEAU DE SAISIE NON CONFORME","",IF(OR(E18="",H18="",K18=""),N(0),'MOUCHE N°4'!P14)) -> 123 | T18: =IF('INFORMATIONS COMPETITEURS'!$D$59="TABLEAU DE SAISIE NON CONFORME","",IF(E18=" ",N(0),IF(COUNT(L18,N18,P18,R18)>0,SUM(L18,N18,P18,R18),N(0)))) -> 651 | X18: =IF(Y18="","",IF(ISERROR(IF(AND(AG18=AG17,AI18=AI17,AO18=AO17),X17,X17+1)),"",IF(AND(AG18=AG17,AI18=AI17,AO18=AO17),X17,X17+1))) -> 5 | Y18: =IF(AO18="","",IF(AND(AO18=0,Z18=" "),"",IF(ISNA(MATCH(Z18,$E$14:$E$63,0)),"",MATCH(Z18,$E$14:$E$63,0)))) -> 14 | Z18: Eric GIAMPRETI | AC18: GPS Lyon Centre | AF18: Sénior | AG18: 212 | AI18: 230 | AK18: 106 | AM18: 272 | AO18: 820 | AS18: =IF(AT18="","",IF(ISERROR(IF(AND(BB18=BB17,BD18=BD17,BJ18=BJ17),AS17,AS17+1)),"",IF(AND(BB18=BB17,BD18=BD17,BJ18=BJ17),AS17,AS17+1))) -> 5 | AT18: =IF(BJ18="","",IF(AND(BJ18=0,AU18=" "),"",IF(ISNA(MATCH(AU18,$E$14:$E$63,0)),"",MATCH(AU18,$E$14:$E$63,0)))) -> 14 | AU18: Eric GIAMPRETI | AX18: GPS Lyon Centre | BA18: Sénior | BB18: 212 | BD18: 230 | BF18: 106 | BH18: 272 | BJ18: 820 | BN18: =IF(BO18="","",IF(ISERROR(IF(AND(BW18=BW17,BY18=BY17,CE18=CE17),BN17,BN17+1)),"",IF(AND(BW18=BW17,BY18=BY17,CE18=CE17),BN17,BN17+1))) ->  | BO18: =IF(CE18="","",IF(AND(CE18=0,BP18=" "),"",IF(ISNA(MATCH(BP18,$E$14:$E$63,0)),"",MATCH(BP18,$E$14:$E$63,0)))) ->  | CI18: =IF(CJ18="","",IF(ISERROR(IF(AND(CR18=CR17,CT18=CT17,CZ18=CZ17),CI17,CI17+1)),"",IF(AND(CR18=CR17,CT18=CT17,CZ18=CZ17),CI17,CI17+1))) ->  | CJ18: =IF(CZ18="","",IF(AND(CZ18=0,CK18=" "),"",IF(ISNA(MATCH(CK18,$E$14:$E$63,0)),"",MATCH(CK18,$E$14:$E$63,0)))) ->  | DD18: =IF(DE18="","",IF(ISERROR(IF(AND(DM18=DM17,DO18=DO17,DU18=DU17),DD17,DD17+1)),"",IF(AND(DM18=DM17,DO18=DO17,DU18=DU17),DD17,DD17+1))) ->  | DE18: =IF(DU18="","",IF(AND(DU18=0,DF18=" "),"",IF(ISNA(MATCH(DF18,$E$14:$E$63,0)),"",MATCH(DF18,$E$14:$E$63,0)))) ->  | DY18: =IF(DZ18="","",IF(ISERROR(IF(AND(EH18=EH17,EJ18=EJ17,EP18=EP17),DY17,DY17+1)),"",IF(AND(EH18=EH17,EJ18=EJ17,EP18=EP17),DY17,DY17+1))) ->  | DZ18: =IF(EP18="","",IF(AND(EP18=0,EA18=" "),"",IF(ISNA(MATCH(EA18,$E$14:$E$63,0)),"",MATCH(EA18,$E$14:$E$63,0)))) ->  | ET18: =IF(EU18="","",IF(ISERROR(IF(AND(FC18=FC17,FE18=FE17,FK18=FK17),ET17,ET17+1)),"",IF(AND(FC18=FC17,FE18=FE17,FK18=FK17),ET17,ET17+1))) ->  | EU18: =IF(FK18="","",IF(AND(FK18=0,EV18=" "),"",IF(ISNA(MATCH(EV18,$E$14:$E$63,0)),"",MATCH(EV18,$E$14:$E$63,0)))) ->  | FO18: =IF(FP18="","",IF(ISERROR(IF(AND(FX18=FX17,FZ18=FZ17,GF18=GF17),FO17,FO17+1)),"",IF(AND(FX18=FX17,FZ18=FZ17,GF18=GF17),FO17,FO17+1))) ->  | FP18: =IF(GF18="","",IF(AND(GF18=0,FQ18=" "),"",IF(ISNA(MATCH(FQ18,$E$14:$E$63,0)),"",MATCH(FQ18,$E$14:$E$63,0)))) ->  | GJ18: =IF(GK18="","",IF(ISERROR(IF(AND(GS18=GS17,GU18=GU17,HA18=HA17),GJ17,GJ17+1)),"",IF(AND(GS18=GS17,GU18=GU17,HA18=HA17),GJ17,GJ17+1))) ->  | GK18: =IF(HA18="","",IF(AND(HA18=0,GL18=" "),"",IF(ISNA(MATCH(GL18,$E$14:$E$63,0)),"",MATCH(GL18,$E$14:$E$63,0)))) -> 
D19: ='INFORMATIONS COMPETITEURS'!D14 -> 6 | E19: =IF('INFORMATIONS COMPETITEURS'!$D$59="TABLEAU DE SAISIE CONFORME",CONCATENATE('INFORMATIONS COMPETITEURS'!G14," ",'INFORMATIONS COMPETITEURS'!E14),"") -> Jean-Luc GAULON | H19: =IF('INFORMATIONS COMPETITEURS'!$D$59="TABLEAU DE SAISIE CONFORME",IF('INFORMATIONS COMPETITEURS'!I14="","",'INFORMATIONS COMPETITEURS'!I14),"") -> CMCRE | K19: =IF('INFORMATIONS COMPETITEURS'!$D$59="TABLEAU DE SAISIE CONFORME",IF(COUNTBLANK('INFORMATIONS COMPETITEURS'!L14)=1,"",'INFORMATIONS COMPETITEURS'!L14),"") -> Sénior | L19: =IF('INFORMATIONS COMPETITEURS'!$D$59="TABLEAU DE SAISIE NON CONFORME","",IF(OR(E19="",H19="",K19=""),N(0),'MOUCHE N°1'!P15)) -> 112 | N19: =IF('INFORMATIONS COMPETITEURS'!$D$59="TABLEAU DE SAISIE NON CONFORME","",IF(OR(E19="",H19="",K19=""),N(0),'MOUCHE N°2'!P15)) -> 96 | P19: =IF('INFORMATIONS COMPETITEURS'!$D$59="TABLEAU DE SAISIE NON CONFORME","",IF(OR(E19="",H19="",K19=""),N(0),'MOUCHE N°3'!P15)) -> 222 | R19: =IF('INFORMATIONS COMPETITEURS'!$D$59="TABLEAU DE SAISIE NON CONFORME","",IF(OR(E19="",H19="",K19=""),N(0),'MOUCHE N°4'!P15)) -> 236 | T19: =IF('INFORMATIONS COMPETITEURS'!$D$59="TABLEAU DE SAISIE NON CONFORME","",IF(E19=" ",N(0),IF(COUNT(L19,N19,P19,R19)>0,SUM(L19,N19,P19,R19),N(0)))) -> 666 | X19: 6 | Y19: 24 | Z19: Gérard VILLA | AC19: GPS Pays d'Oc | AF19: Sénior | AG19: 229 | AI19: 252 | AK19: 157 | AM19: 170 | AO19: 808 | AS19: =IF(AT19="","",IF(ISERROR(IF(AND(BB19=BB18,BD19=BD18,BJ19=BJ18),AS18,AS18+1)),"",IF(AND(BB19=BB18,BD19=BD18,BJ19=BJ18),AS18,AS18+1))) -> 6 | AT19: 24 | AU19: Gérard VILLA | AX19: GPS Pays d'Oc | BA19: Sénior | BB19: 229 | BD19: 252 | BF19: 157 | BH19: 170 | BJ19: 808 | BN19: =IF(BO19="","",IF(ISERROR(IF(AND(BW19=BW18,BY19=BY18,CE19=CE18),BN18,BN18+1)),"",IF(AND(BW19=BW18,BY19=BY18,CE19=CE18),BN18,BN18+1))) ->  | CI19: =IF(CJ19="","",IF(ISERROR(IF(AND(CR19=CR18,CT19=CT18,CZ19=CZ18),CI18,CI18+1)),"",IF(AND(CR19=CR18,CT19=CT18,CZ19=CZ18),CI18,CI18+1))) ->  | DD19: =IF(DE19="","",IF(ISERROR(IF(AND(DM19=DM18,DO19=DO18,DU19=DU18),DD18,DD18+1)),"",IF(AND(DM19=DM18,DO19=DO18,DU19=DU18),DD18,DD18+1))) ->  | DY19: =IF(DZ19="","",IF(ISERROR(IF(AND(EH19=EH18,EJ19=EJ18,EP19=EP18),DY18,DY18+1)),"",IF(AND(EH19=EH18,EJ19=EJ18,EP19=EP18),DY18,DY18+1))) ->  | ET19: =IF(EU19="","",IF(ISERROR(IF(AND(FC19=FC18,FE19=FE18,FK19=FK18),ET18,ET18+1)),"",IF(AND(FC19=FC18,FE19=FE18,FK19=FK18),ET18,ET18+1))) ->  | FO19: =IF(FP19="","",IF(ISERROR(IF(AND(FX19=FX18,FZ19=FZ18,GF19=GF18),FO18,FO18+1)),"",IF(AND(FX19=FX18,FZ19=FZ18,GF19=GF18),FO18,FO18+1))) ->  | GJ19: =IF(GK19="","",IF(ISERROR(IF(AND(GS19=GS18,GU19=GU18,HA19=HA18),GJ18,GJ18+1)),"",IF(AND(GS19=GS18,GU19=GU18,HA19=HA18),GJ18,GJ18+1))) -> 
D20: ='INFORMATIONS COMPETITEURS'!D15 -> 7 | E20: =IF('INFORMATIONS COMPETITEURS'!$D$59="TABLEAU DE SAISIE CONFORME",CONCATENATE('INFORMATIONS COMPETITEURS'!G15," ",'INFORMATIONS COMPETITEURS'!E15),"") -> Jérôme VILLE | H20: =IF('INFORMATIONS COMPETITEURS'!$D$59="TABLEAU DE SAISIE CONFORME",IF('INFORMATIONS COMPETITEURS'!I15="","",'INFORMATIONS COMPETITEURS'!I15),"") -> GPS Lyon Centre | K20: =IF('INFORMATIONS COMPETITEURS'!$D$59="TABLEAU DE SAISIE CONFORME",IF(COUNTBLANK('INFORMATIONS COMPETITEURS'!L15)=1,"",'INFORMATIONS COMPETITEURS'!L15),"") -> Sénior | L20: =IF('INFORMATIONS COMPETITEURS'!$D$59="TABLEAU DE SAISIE NON CONFORME","",IF(OR(E20="",H20="",K20=""),N(0),'MOUCHE N°1'!P16)) -> 176 | N20: =IF('INFORMATIONS COMPETITEURS'!$D$59="TABLEAU DE SAISIE NON CONFORME","",IF(OR(E20="",H20="",K20=""),N(0),'MOUCHE N°2'!P16)) -> 187 | P20: =IF('INFORMATIONS COMPETITEURS'!$D$59="TABLEAU DE SAISIE NON CONFORME","",IF(OR(E20="",H20="",K20=""),N(0),'MOUCHE N°3'!P16)) -> 157 | R20: =IF('INFORMATIONS COMPETITEURS'!$D$59="TABLEAU DE SAISIE NON CONFORME","",IF(OR(E20="",H20="",K20=""),N(0),'MOUCHE N°4'!P16)) -> 217 | T20: =IF('INFORMATIONS COMPETITEURS'!$D$59="TABLEAU DE SAISIE NON CONFORME","",IF(E20=" ",N(0),IF(COUNT(L20,N20,P20,R20)>0,SUM(L20,N20,P20,R20),N(0)))) -> 737 | X20: 7 | Y20: 21 | Z20: Dimitri DEZOTHEZ | AC20: Club Mouche du gévaudan | AF20: Minime | AG20: 262 | AI20: 175 | AK20: 173 | AM20: 173 | AO20: 783 | AS20: 7 | AT20: 28 | AU20: Règis CAZARETH | AX20: GPS Décines | BA20: Sénior | BB20: 114 | BD20: 223 | BF20: 138 | BH20: 280 | BJ20: 755
D21: ='INFORMATIONS COMPETITEURS'!D16 -> 8 | E21: =IF('INFORMATIONS COMPETITEURS'!$D$59="TABLEAU DE SAISIE CONFORME",CONCATENATE('INFORMATIONS COMPETITEURS'!G16," ",'INFORMATIONS COMPETITEURS'!E16),"") -> Edgard RICHARD | H21: =IF('INFORMATIONS COMPETITEURS'!$D$59="TABLEAU DE SAISIE CONFORME",IF('INFORMATIONS COMPETITEURS'!I16="","",'INFORMATIONS COMPETITEURS'!I16),"") -> Ecole de pêche Dijon | K21: =IF('INFORMATIONS COMPETITEURS'!$D$59="TABLEAU DE SAISIE CONFORME",IF(COUNTBLANK('INFORMATIONS COMPETITEURS'!L16)=1,"",'INFORMATIONS COMPETITEURS'!L16),"") -> Cadet | L21: =IF('INFORMATIONS COMPETITEURS'!$D$59="TABLEAU DE SAISIE NON CONFORME","",IF(OR(E21="",H21="",K21=""),N(0),'MOUCHE N°1'!P17)) -> 95 | N21: =IF('INFORMATIONS COMPETITEURS'!$D$59="TABLEAU DE SAISIE NON CONFORME","",IF(OR(E21="",H21="",K21=""),N(0),'MOUCHE N°2'!P17)) -> 115 | P21: =IF('INFORMATIONS COMPETITEURS'!$D$59="TABLEAU DE SAISIE NON CONFORME","",IF(OR(E21="",H21="",K21=""),N(0),'MOUCHE N°3'!P17)) -> 132 | R21: =IF('INFORMATIONS COMPETITEURS'!$D$59="TABLEAU DE SAISIE NON CONFORME","",IF(OR(E21="",H21="",K21=""),N(0),'MOUCHE N°4'!P17)) -> 130 | T21: =IF('INFORMATIONS COMPETITEURS'!$D$59="TABLEAU DE SAISIE NON CONFORME","",IF(E21=" ",N(0),IF(COUNT(L21,N21,P21,R21)>0,SUM(L21,N21,P21,R21),N(0)))) -> 472 | X21: 8 | Y21: 28 | Z21: Règis CAZARETH | AC21: GPS Décines | AF21: Sénior | AG21: 114 | AI21: 223 | AK21: 138 | AM21: 280 | AO21: 755 | AS21: 8 | AT21: 16 | AU21: Bernard FAIVRE | AX21: GPS Pays d'Oc | BA21: Sénior | BB21: 230 | BD21: 150 | BF21: 125 | BH21: 246 | BJ21: 751
D22: ='INFORMATIONS COMPETITEURS'!D17 -> 9 | E22: =IF('INFORMATIONS COMPETITEURS'!$D$59="TABLEAU DE SAISIE CONFORME",CONCATENATE('INFORMATIONS COMPETITEURS'!G17," ",'INFORMATIONS COMPETITEURS'!E17),"") -> Solène Le Bourhis Beyer | H22: =IF('INFORMATIONS COMPETITEURS'!$D$59="TABLEAU DE SAISIE CONFORME",IF('INFORMATIONS COMPETITEURS'!I17="","",'INFORMATIONS COMPETITEURS'!I17),"") -> CM Arzano | K22: =IF('INFORMATIONS COMPETITEURS'!$D$59="TABLEAU DE SAISIE CONFORME",IF(COUNTBLANK('INFORMATIONS COMPETITEURS'!L17)=1,"",'INFORMATIONS COMPETITEURS'!L17),"") -> Féminine | L22: =IF('INFORMATIONS COMPETITEURS'!$D$59="TABLEAU DE SAISIE NON CONFORME","",IF(OR(E22="",H22="",K22=""),N(0),'MOUCHE N°1'!P18)) -> 180 | N22: =IF('INFORMATIONS COMPETITEURS'!$D$59="TABLEAU DE SAISIE NON CONFORME","",IF(OR(E22="",H22="",K22=""),N(0),'MOUCHE N°2'!P18)) -> 160 | P22: =IF('INFORMATIONS COMPETITEURS'!$D$59="TABLEAU DE SAISIE NON CONFORME","",IF(OR(E22="",H22="",K22=""),N(0),'MOUCHE N°3'!P18)) -> 146 | R22: =IF('INFORMATIONS COMPETITEURS'!$D$59="TABLEAU DE SAISIE NON CONFORME","",IF(OR(E22="",H22="",K22=""),N(0),'MOUCHE N°4'!P18)) -> 153 | T22: =IF('INFORMATIONS COMPETITEURS'!$D$59="TABLEAU DE SAISIE NON CONFORME","",IF(E22=" ",N(0),IF(COUNT(L22,N22,P22,R22)>0,SUM(L22,N22,P22,R22),N(0)))) -> 639 | X22: 9 | Y22: 16 | Z22: Bernard FAIVRE | AC22: GPS Pays d'Oc | AF22: Sénior | AG22: 230 | AI22: 150 | AK22: 125 | AM22: 246 | AO22: 751 | AS22: 9 | AT22: 7 | AU22: Jérôme VILLE | AX22: GPS Lyon Centre | BA22: Sénior | BB22: 176 | BD22: 187 | BF22: 157 | BH22: 217 | BJ22: 737
D23: ='INFORMATIONS COMPETITEURS'!D18 -> 10 | E23: =IF('INFORMATIONS COMPETITEURS'!$D$59="TABLEAU DE SAISIE CONFORME",CONCATENATE('INFORMATIONS COMPETITEURS'!G18," ",'INFORMATIONS COMPETITEURS'!E18),"") -> Guy MASSON | H23: =IF('INFORMATIONS COMPETITEURS'!$D$59="TABLEAU DE SAISIE CONFORME",IF('INFORMATIONS COMPETITEURS'!I18="","",'INFORMATIONS COMPETITEURS'!I18),"") -> GPS Lyon Centre | K23: =IF('INFORMATIONS COMPETITEURS'!$D$59="TABLEAU DE SAISIE CONFORME",IF(COUNTBLANK('INFORMATIONS COMPETITEURS'!L18)=1,"",'INFORMATIONS COMPETITEURS'!L18),"") -> Sénior | L23: =IF('INFORMATIONS COMPETITEURS'!$D$59="TABLEAU DE SAISIE NON CONFORME","",IF(OR(E23="",H23="",K23=""),N(0),'MOUCHE N°1'!P19)) -> 250 | N23: =IF('INFORMATIONS COMPETITEURS'!$D$59="TABLEAU DE SAISIE NON CONFORME","",IF(OR(E23="",H23="",K23=""),N(0),'MOUCHE N°2'!P19)) -> 95 | P23: =IF('INFORMATIONS COMPETITEURS'!$D$59="TABLEAU DE SAISIE NON CONFORME","",IF(OR(E23="",H23="",K23=""),N(0),'MOUCHE N°3'!P19)) -> 153 | R23: =IF('INFORMATIONS COMPETITEURS'!$D$59="TABLEAU DE SAISIE NON CONFORME","",IF(OR(E23="",H23="",K23=""),N(0),'MOUCHE N°4'!P19)) -> 191 | T23: =IF('INFORMATIONS COMPETITEURS'!$D$59="TABLEAU DE SAISIE NON CONFORME","",IF(E23=" ",N(0),IF(COUNT(L23,N23,P23,R23)>0,SUM(L23,N23,P23,R23),N(0)))) -> 689 | X23: 10 | Y23: 7 | Z23: Jérôme VILLE | AC23: GPS Lyon Centre | AF23: Sénior | AG23: 176 | AI23: 187 | AK23: 157 | AM23: 217 | AO23: 737 | AS23: 10 | AT23: 19 | AU23: Lionel GOMINET | AX23: GPS Pays d'Oc | BA23: Sénior | BB23: 161 | BD23: 268 | BF23: 175 | BH23: 114 | BJ23: 718
D24: ='INFORMATIONS COMPETITEURS'!D19 -> 11 | E24: =IF('INFORMATIONS COMPETITEURS'!$D$59="TABLEAU DE SAISIE CONFORME",CONCATENATE('INFORMATIONS COMPETITEURS'!G19," ",'INFORMATIONS COMPETITEURS'!E19),"") -> Gerard COMMARET | H24: =IF('INFORMATIONS COMPETITEURS'!$D$59="TABLEAU DE SAISIE CONFORME",IF('INFORMATIONS COMPETITEURS'!I19="","",'INFORMATIONS COMPETITEURS'!I19),"") -> GPS Val de Saone | K24: =IF('INFORMATIONS COMPETITEURS'!$D$59="TABLEAU DE SAISIE CONFORME",IF(COUNTBLANK('INFORMATIONS COMPETITEURS'!L19)=1,"",'INFORMATIONS COMPETITEURS'!L19),"") -> Handisport | L24: =IF('INFORMATIONS COMPETITEURS'!$D$59="TABLEAU DE SAISIE NON CONFORME","",IF(OR(E24="",H24="",K24=""),N(0),'MOUCHE N°1'!P20)) -> 79 | N24: =IF('INFORMATIONS COMPETITEURS'!$D$59="TABLEAU DE SAISIE NON CONFORME","",IF(OR(E24="",H24="",K24=""),N(0),'MOUCHE N°2'!P20)) -> 91 | P24: =IF('INFORMATIONS COMPETITEURS'!$D$59="TABLEAU DE SAISIE NON CONFORME","",IF(OR(E24="",H24="",K24=""),N(0),'MOUCHE N°3'!P20)) -> 55 | R24: =IF('INFORMATIONS COMPETITEURS'!$D$59="TABLEAU DE SAISIE NON CONFORME","",IF(OR(E24="",H24="",K24=""),N(0),'MOUCHE N°4'!P20)) -> 85 | T24: =IF('INFORMATIONS COMPETITEURS'!$D$59="TABLEAU DE SAISIE NON CONFORME","",IF(E24=" ",N(0),IF(COUNT(L24,N24,P24,R24)>0,SUM(L24,N24,P24,R24),N(0)))) -> 310 | X24: 11 | Y24: 19 | Z24: Lionel GOMINET | AC24: GPS Pays d'Oc | AF24: Sénior | AG24: 161 | AI24: 268 | AK24: 175 | AM24: 114 | AO24: 718 | AS24: 11 | AT24: 10 | AU24: Guy MASSON | AX24: GPS Lyon Centre | BA24: Sénior | BB24: 250 | BD24: 95 | BF24: 153 | BH24: 191 | BJ24: 689
D25: ='INFORMATIONS COMPETITEURS'!D20 -> 12 | E25: =IF('INFORMATIONS COMPETITEURS'!$D$59="TABLEAU DE SAISIE CONFORME",CONCATENATE('INFORMATIONS COMPETITEURS'!G20," ",'INFORMATIONS COMPETITEURS'!E20),"") -> Stéphane PONCET | H25: =IF('INFORMATIONS COMPETITEURS'!$D$59="TABLEAU DE SAISIE CONFORME",IF('INFORMATIONS COMPETITEURS'!I20="","",'INFORMATIONS COMPETITEURS'!I20),"") -> GPS Bresse Remiremont | K25: =IF('INFORMATIONS COMPETITEURS'!$D$59="TABLEAU DE SAISIE CONFORME",IF(COUNTBLANK('INFORMATIONS COMPETITEURS'!L20)=1,"",'INFORMATIONS COMPETITEURS'!L20),"") -> Sénior | L25: =IF('INFORMATIONS COMPETITEURS'!$D$59="TABLEAU DE SAISIE NON CONFORME","",IF(OR(E25="",H25="",K25=""),N(0),'MOUCHE N°1'!P21)) -> 244 | N25: =IF('INFORMATIONS COMPETITEURS'!$D$59="TABLEAU DE SAISIE NON CONFORME","",IF(OR(E25="",H25="",K25=""),N(0),'MOUCHE N°2'!P21)) -> 162 | P25: =IF('INFORMATIONS COMPETITEURS'!$D$59="TABLEAU DE SAISIE NON CONFORME","",IF(OR(E25="",H25="",K25=""),N(0),'MOUCHE N°3'!P21)) -> 238 | R25: =IF('INFORMATIONS COMPETITEURS'!$D$59="TABLEAU DE SAISIE NON CONFORME","",IF(OR(E25="",H25="",K25=""),N(0),'MOUCHE N°4'!P21)) -> 182 | T25: =IF('INFORMATIONS COMPETITEURS'!$D$59="TABLEAU DE SAISIE NON CONFORME","",IF(E25=" ",N(0),IF(COUNT(L25,N25,P25,R25)>0,SUM(L25,N25,P25,R25),N(0)))) -> 826 | X25: 12 | Y25: 10 | Z25: Guy MASSON | AC25: GPS Lyon Centre | AF25: Sénior | AG25: 250 | AI25: 95 | AK25: 153 | AM25: 191 | AO25: 689 | AS25: 12 | AT25: 1 | AU25: Claude CAMPILLO | AX25: CML | BA25: Sénior | BB25: 169 | BD25: 152 | BF25: 172 | BH25: 193 | BJ25: 686
D26: ='INFORMATIONS COMPETITEURS'!D21 -> 13 | E26: =IF('INFORMATIONS COMPETITEURS'!$D$59="TABLEAU DE SAISIE CONFORME",CONCATENATE('INFORMATIONS COMPETITEURS'!G21," ",'INFORMATIONS COMPETITEURS'!E21),"") -> Didier CHETAUD | H26: =IF('INFORMATIONS COMPETITEURS'!$D$59="TABLEAU DE SAISIE CONFORME",IF('INFORMATIONS COMPETITEURS'!I21="","",'INFORMATIONS COMPETITEURS'!I21),"") -> GPS Val de Saone | K26: =IF('INFORMATIONS COMPETITEURS'!$D$59="TABLEAU DE SAISIE CONFORME",IF(COUNTBLANK('INFORMATIONS COMPETITEURS'!L21)=1,"",'INFORMATIONS COMPETITEURS'!L21),"") -> Sénior | L26: =IF('INFORMATIONS COMPETITEURS'!$D$59="TABLEAU DE SAISIE NON CONFORME","",IF(OR(E26="",H26="",K26=""),N(0),'MOUCHE N°1'!P22)) -> 248 | N26: =IF('INFORMATIONS COMPETITEURS'!$D$59="TABLEAU DE SAISIE NON CONFORME","",IF(OR(E26="",H26="",K26=""),N(0),'MOUCHE N°2'!P22)) -> 248 | P26: =IF('INFORMATIONS COMPETITEURS'!$D$59="TABLEAU DE SAISIE NON CONFORME","",IF(OR(E26="",H26="",K26=""),N(0),'MOUCHE N°3'!P22)) -> 292 | R26: =IF('INFORMATIONS COMPETITEURS'!$D$59="TABLEAU DE SAISIE NON CONFORME","",IF(OR(E26="",H26="",K26=""),N(0),'MOUCHE N°4'!P22)) -> 294 | T26: =IF('INFORMATIONS COMPETITEURS'!$D$59="TABLEAU DE SAISIE NON CONFORME","",IF(E26=" ",N(0),IF(COUNT(L26,N26,P26,R26)>0,SUM(L26,N26,P26,R26),N(0)))) -> 1082 | X26: 13 | Y26: 1 | Z26: Claude CAMPILLO | AC26: CML | AF26: Sénior | AG26: 169 | AI26: 152 | AK26: 172 | AM26: 193 | AO26: 686 | AS26: 13 | AT26: 25 | AU26: patrick JACQUOT | AX26: GPS Val de Saone | BA26: Sénior | BB26: 143 | BD26: 91 | BF26: 149 | BH26: 286 | BJ26: 669
D27: ='INFORMATIONS COMPETITEURS'!D22 -> 14 | E27: =IF('INFORMATIONS COMPETITEURS'!$D$59="TABLEAU DE SAISIE CONFORME",CONCATENATE('INFORMATIONS COMPETITEURS'!G22," ",'INFORMATIONS COMPETITEURS'!E22),"") -> Eric GIAMPRETI | H27: =IF('INFORMATIONS COMPETITEURS'!$D$59="TABLEAU DE SAISIE CONFORME",IF('INFORMATIONS COMPETITEURS'!I22="","",'INFORMATIONS COMPETITEURS'!I22),"") -> GPS Lyon Centre | K27: =IF('INFORMATIONS COMPETITEURS'!$D$59="TABLEAU DE SAISIE CONFORME",IF(COUNTBLANK('INFORMATIONS COMPETITEURS'!L22)=1,"",'INFORMATIONS COMPETITEURS'!L22),"") -> Sénior | L27: =IF('INFORMATIONS COMPETITEURS'!$D$59="TABLEAU DE SAISIE NON CONFORME","",IF(OR(E27="",H27="",K27=""),N(0),'MOUCHE N°1'!P23)) -> 212 | N27: =IF('INFORMATIONS COMPETITEURS'!$D$59="TABLEAU DE SAISIE NON CONFORME","",IF(OR(E27="",H27="",K27=""),N(0),'MOUCHE N°2'!P23)) -> 230 | P27: =IF('INFORMATIONS COMPETITEURS'!$D$59="TABLEAU DE SAISIE NON CONFORME","",IF(OR(E27="",H27="",K27=""),N(0),'MOUCHE N°3'!P23)) -> 106 | R27: =IF('INFORMATIONS COMPETITEURS'!$D$59="TABLEAU DE SAISIE NON CONFORME","",IF(OR(E27="",H27="",K27=""),N(0),'MOUCHE N°4'!P23)) -> 272 | T27: =IF('INFORMATIONS COMPETITEURS'!$D$59="TABLEAU DE SAISIE NON CONFORME","",IF(E27=" ",N(0),IF(COUNT(L27,N27,P27,R27)>0,SUM(L27,N27,P27,R27),N(0)))) -> 820 | X27: 14 | Y27: 25 | Z27: patrick JACQUOT | AC27: GPS Val de Saone | AF27: Sénior | AG27: 143 | AI27: 91 | AK27: 149 | AM27: 286 | AO27: 669 | AS27: 14 | AT27: 6 | AU27: Jean-Luc GAULON | AX27: CMCRE | BA27: Sénior | BB27: 112 | BD27: 96 | BF27: 222 | BH27: 236 | BJ27: 666
D28: ='INFORMATIONS COMPETITEURS'!D23 -> 15 | E28: =IF('INFORMATIONS COMPETITEURS'!$D$59="TABLEAU DE SAISIE CONFORME",CONCATENATE('INFORMATIONS COMPETITEURS'!G23," ",'INFORMATIONS COMPETITEURS'!E23),"") -> Frédéric EVENNOU | H28: =IF('INFORMATIONS COMPETITEURS'!$D$59="TABLEAU DE SAISIE CONFORME",IF('INFORMATIONS COMPETITEURS'!I23="","",'INFORMATIONS COMPETITEURS'!I23),"") -> GPS Lyon Centre | K28: =IF('INFORMATIONS COMPETITEURS'!$D$59="TABLEAU DE SAISIE CONFORME",IF(COUNTBLANK('INFORMATIONS COMPETITEURS'!L23)=1,"",'INFORMATIONS COMPETITEURS'!L23),"") -> Sénior | L28: =IF('INFORMATIONS COMPETITEURS'!$D$59="TABLEAU DE SAISIE NON CONFORME","",IF(OR(E28="",H28="",K28=""),N(0),'MOUCHE N°1'!P24)) -> 139 | N28: =IF('INFORMATIONS COMPETITEURS'!$D$59="TABLEAU DE SAISIE NON CONFORME","",IF(OR(E28="",H28="",K28=""),N(0),'MOUCHE N°2'!P24)) -> 78 | P28: =IF('INFORMATIONS COMPETITEURS'!$D$59="TABLEAU DE SAISIE NON CONFORME","",IF(OR(E28="",H28="",K28=""),N(0),'MOUCHE N°3'!P24)) -> 143 | R28: =IF('INFORMATIONS COMPETITEURS'!$D$59="TABLEAU DE SAISIE NON CONFORME","",IF(OR(E28="",H28="",K28=""),N(0),'MOUCHE N°4'!P24)) -> 226 | T28: =IF('INFORMATIONS COMPETITEURS'!$D$59="TABLEAU DE SAISIE NON CONFORME","",IF(E28=" ",N(0),IF(COUNT(L28,N28,P28,R28)>0,SUM(L28,N28,P28,R28),N(0)))) -> 586 | X28: 15 | Y28: 6 | Z28: Jean-Luc GAULON | AC28: CMCRE | AF28: Sénior | AG28: 112 | AI28: 96 | AK28: 222 | AM28: 236 | AO28: 666 | AS28: 15 | AT28: 3 | AU28: Samuel CREPILLON | AX28: GPS Nièvre Morvan | BA28: Sénior | BB28: 120 | BD28: 120 | BF28: 142 | BH28: 270 | BJ28: 652
D29: ='INFORMATIONS COMPETITEURS'!D24 -> 16 | E29: =IF('INFORMATIONS COMPETITEURS'!$D$59="TABLEAU DE SAISIE CONFORME",CONCATENATE('INFORMATIONS COMPETITEURS'!G24," ",'INFORMATIONS COMPETITEURS'!E24),"") -> Bernard FAIVRE | H29: =IF('INFORMATIONS COMPETITEURS'!$D$59="TABLEAU DE SAISIE CONFORME",IF('INFORMATIONS COMPETITEURS'!I24="","",'INFORMATIONS COMPETITEURS'!I24),"") -> GPS Pays d'Oc | K29: =IF('INFORMATIONS COMPETITEURS'!$D$59="TABLEAU DE SAISIE CONFORME",IF(COUNTBLANK('INFORMATIONS COMPETITEURS'!L24)=1,"",'INFORMATIONS COMPETITEURS'!L24),"") -> Sénior | L29: =IF('INFORMATIONS COMPETITEURS'!$D$59="TABLEAU DE SAISIE NON CONFORME","",IF(OR(E29="",H29="",K29=""),N(0),'MOUCHE N°1'!P25)) -> 230 | N29: =IF('INFORMATIONS COMPETITEURS'!$D$59="TABLEAU DE SAISIE NON CONFORME","",IF(OR(E29="",H29="",K29=""),N(0),'MOUCHE N°2'!P25)) -> 150 | P29: =IF('INFORMATIONS COMPETITEURS'!$D$59="TABLEAU DE SAISIE NON CONFORME","",IF(OR(E29="",H29="",K29=""),N(0),'MOUCHE N°3'!P25)) -> 125 | R29: =IF('INFORMATIONS COMPETITEURS'!$D$59="TABLEAU DE SAISIE NON CONFORME","",IF(OR(E29="",H29="",K29=""),N(0),'MOUCHE N°4'!P25)) -> 246 | T29: =IF('INFORMATIONS COMPETITEURS'!$D$59="TABLEAU DE SAISIE NON CONFORME","",IF(E29=" ",N(0),IF(COUNT(L29,N29,P29,R29)>0,SUM(L29,N29,P29,R29),N(0)))) -> 751 | X29: 16 | Y29: 3 | Z29: Samuel CREPILLON | AC29: GPS Nièvre Morvan | AF29: Sénior | AG29: 120 | AI29: 120 | AK29: 142 | AM29: 270 | AO29: 652 | AS29: 16 | AT29: 22 | AU29: Dominique BRULEY | AX29: GPS Val de Saone | BA29: Sénior | BB29: 276 | BD29: 78 | BF29: 129 | BH29: 161 | BJ29: 644
D30: ='INFORMATIONS COMPETITEURS'!D25 -> 17 | E30: =IF('INFORMATIONS COMPETITEURS'!$D$59="TABLEAU DE SAISIE CONFORME",CONCATENATE('INFORMATIONS COMPETITEURS'!G25," ",'INFORMATIONS COMPETITEURS'!E25),"") -> Bernard Rémi | H30: =IF('INFORMATIONS COMPETITEURS'!$D$59="TABLEAU DE SAISIE CONFORME",IF('INFORMATIONS COMPETITEURS'!I25="","",'INFORMATIONS COMPETITEURS'!I25),"") -> Ecole de pêche Dijon | K30: =IF('INFORMATIONS COMPETITEURS'!$D$59="TABLEAU DE SAISIE CONFORME",IF(COUNTBLANK('INFORMATIONS COMPETITEURS'!L25)=1,"",'INFORMATIONS COMPETITEURS'!L25),"") -> Benjamin | L30: =IF('INFORMATIONS COMPETITEURS'!$D$59="TABLEAU DE SAISIE NON CONFORME","",IF(OR(E30="",H30="",K30=""),N(0),'MOUCHE N°1'!P26)) -> 0 | N30: =IF('INFORMATIONS COMPETITEURS'!$D$59="TABLEAU DE SAISIE NON CONFORME","",IF(OR(E30="",H30="",K30=""),N(0),'MOUCHE N°2'!P26)) -> 0 | P30: =IF('INFORMATIONS COMPETITEURS'!$D$59="TABLEAU DE SAISIE NON CONFORME","",IF(OR(E30="",H30="",K30=""),N(0),'MOUCHE N°3'!P26)) -> 0 | R30: =IF('INFORMATIONS COMPETITEURS'!$D$59="TABLEAU DE SAISIE NON CONFORME","",IF(OR(E30="",H30="",K30=""),N(0),'MOUCHE N°4'!P26)) -> 0 | T30: =IF('INFORMATIONS COMPETITEURS'!$D$59="TABLEAU DE SAISIE NON CONFORME","",IF(E30=" ",N(0),IF(COUNT(L30,N30,P30,R30)>0,SUM(L30,N30,P30,R30),N(0)))) -> 0 | X30: 17 | Y30: 5 | Z30: Nathalie ALBERGE | AC30: CM Pays d'Oc | AF30: Féminine | AG30: 182 | AI30: 169 | AK30: 177 | AM30: 123 | AO30: 651 | AS30: 17 | AT30: 15 | AU30: Frédéric EVENNOU | AX30: GPS Lyon Centre | BA30: Sénior | BB30: 139 | BD30: 78 | BF30: 143 | BH30: 226 | BJ30: 586
D31: ='INFORMATIONS COMPETITEURS'!D26 -> 18 | E31: =IF('INFORMATIONS COMPETITEURS'!$D$59="TABLEAU DE SAISIE CONFORME",CONCATENATE('INFORMATIONS COMPETITEURS'!G26," ",'INFORMATIONS COMPETITEURS'!E26),"") -> Denis FAUVELLIERE | H31: =IF('INFORMATIONS COMPETITEURS'!$D$59="TABLEAU DE SAISIE CONFORME",IF('INFORMATIONS COMPETITEURS'!I26="","",'INFORMATIONS COMPETITEURS'!I26),"") -> CM Plaisir | K31: =IF('INFORMATIONS COMPETITEURS'!$D$59="TABLEAU DE SAISIE CONFORME",IF(COUNTBLANK('INFORMATIONS COMPETITEURS'!L26)=1,"",'INFORMATIONS COMPETITEURS'!L26),"") -> Sénior | L31: =IF('INFORMATIONS COMPETITEURS'!$D$59="TABLEAU DE SAISIE NON CONFORME","",IF(OR(E31="",H31="",K31=""),N(0),'MOUCHE N°1'!P27)) -> 124 | N31: =IF('INFORMATIONS COMPETITEURS'!$D$59="TABLEAU DE SAISIE NON CONFORME","",IF(OR(E31="",H31="",K31=""),N(0),'MOUCHE N°2'!P27)) -> 155 | P31: =IF('INFORMATIONS COMPETITEURS'!$D$59="TABLEAU DE SAISIE NON CONFORME","",IF(OR(E31="",H31="",K31=""),N(0),'MOUCHE N°3'!P27)) -> 152 | R31: =IF('INFORMATIONS COMPETITEURS'!$D$59="TABLEAU DE SAISIE NON CONFORME","",IF(OR(E31="",H31="",K31=""),N(0),'MOUCHE N°4'!P27)) -> 128 | T31: =IF('INFORMATIONS COMPETITEURS'!$D$59="TABLEAU DE SAISIE NON CONFORME","",IF(E31=" ",N(0),IF(COUNT(L31,N31,P31,R31)>0,SUM(L31,N31,P31,R31),N(0)))) -> 559 | X31: 18 | Y31: 22 | Z31: Dominique BRULEY | AC31: GPS Val de Saone | AF31: Sénior | AG31: 276 | AI31: 78 | AK31: 129 | AM31: 161 | AO31: 644 | AS31: 18 | AT31: 23 | AU31: Christophe MARTIN | AX31: CM Plaisir | BA31: Sénior | BB31: 149 | BD31: 126 | BF31: 127 | BH31: 160 | BJ31: 562
D32: ='INFORMATIONS COMPETITEURS'!D27 -> 19 | E32: =IF('INFORMATIONS COMPETITEURS'!$D$59="TABLEAU DE SAISIE CONFORME",CONCATENATE('INFORMATIONS COMPETITEURS'!G27," ",'INFORMATIONS COMPETITEURS'!E27),"") -> Lionel GOMINET | H32: =IF('INFORMATIONS COMPETITEURS'!$D$59="TABLEAU DE SAISIE CONFORME",IF('INFORMATIONS COMPETITEURS'!I27="","",'INFORMATIONS COMPETITEURS'!I27),"") -> GPS Pays d'Oc | K32: =IF('INFORMATIONS COMPETITEURS'!$D$59="TABLEAU DE SAISIE CONFORME",IF(COUNTBLANK('INFORMATIONS COMPETITEURS'!L27)=1,"",'INFORMATIONS COMPETITEURS'!L27),"") -> Sénior | L32: =IF('INFORMATIONS COMPETITEURS'!$D$59="TABLEAU DE SAISIE NON CONFORME","",IF(OR(E32="",H32="",K32=""),N(0),'MOUCHE N°1'!P28)) -> 161 | N32: =IF('INFORMATIONS COMPETITEURS'!$D$59="TABLEAU DE SAISIE NON CONFORME","",IF(OR(E32="",H32="",K32=""),N(0),'MOUCHE N°2'!P28)) -> 268 | P32: =IF('INFORMATIONS COMPETITEURS'!$D$59="TABLEAU DE SAISIE NON CONFORME","",IF(OR(E32="",H32="",K32=""),N(0),'MOUCHE N°3'!P28)) -> 175 | R32: =IF('INFORMATIONS COMPETITEURS'!$D$59="TABLEAU DE SAISIE NON CONFORME","",IF(OR(E32="",H32="",K32=""),N(0),'MOUCHE N°4'!P28)) -> 114 | T32: =IF('INFORMATIONS COMPETITEURS'!$D$59="TABLEAU DE SAISIE NON CONFORME","",IF(E32=" ",N(0),IF(COUNT(L32,N32,P32,R32)>0,SUM(L32,N32,P32,R32),N(0)))) -> 718 | X32: 19 | Y32: 9 | Z32: Solène Le Bourhis Beyer | AC32: CM Arzano | AF32: Féminine | AG32: 180 | AI32: 160 | AK32: 146 | AM32: 153 | AO32: 639 | AS32: 19 | AT32: 18 | AU32: Denis FAUVELLIERE | AX32: CM Plaisir | BA32: Sénior | BB32: 124 | BD32: 155 | BF32: 152 | BH32: 128 | BJ32: 559
D33: ='INFORMATIONS COMPETITEURS'!D28 -> 20 | E33: =IF('INFORMATIONS COMPETITEURS'!$D$59="TABLEAU DE SAISIE CONFORME",CONCATENATE('INFORMATIONS COMPETITEURS'!G28," ",'INFORMATIONS COMPETITEURS'!E28),"") -> HAMZA MAACH | H33: =IF('INFORMATIONS COMPETITEURS'!$D$59="TABLEAU DE SAISIE CONFORME",IF('INFORMATIONS COMPETITEURS'!I28="","",'INFORMATIONS COMPETITEURS'!I28),"") -> Ecole de pêche Dijon | K33: =IF('INFORMATIONS COMPETITEURS'!$D$59="TABLEAU DE SAISIE CONFORME",IF(COUNTBLANK('INFORMATIONS COMPETITEURS'!L28)=1,"",'INFORMATIONS COMPETITEURS'!L28),"") -> Benjamin | L33: =IF('INFORMATIONS COMPETITEURS'!$D$59="TABLEAU DE SAISIE NON CONFORME","",IF(OR(E33="",H33="",K33=""),N(0),'MOUCHE N°1'!P29)) -> 92 | N33: =IF('INFORMATIONS COMPETITEURS'!$D$59="TABLEAU DE SAISIE NON CONFORME","",IF(OR(E33="",H33="",K33=""),N(0),'MOUCHE N°2'!P29)) -> 85 | P33: =IF('INFORMATIONS COMPETITEURS'!$D$59="TABLEAU DE SAISIE NON CONFORME","",IF(OR(E33="",H33="",K33=""),N(0),'MOUCHE N°3'!P29)) -> 79 | R33: =IF('INFORMATIONS COMPETITEURS'!$D$59="TABLEAU DE SAISIE NON CONFORME","",IF(OR(E33="",H33="",K33=""),N(0),'MOUCHE N°4'!P29)) -> 150 | T33: =IF('INFORMATIONS COMPETITEURS'!$D$59="TABLEAU DE SAISIE NON CONFORME","",IF(E33=" ",N(0),IF(COUNT(L33,N33,P33,R33)>0,SUM(L33,N33,P33,R33),N(0)))) -> 406 | X33: 20 | Y33: 15 | Z33: Frédéric EVENNOU | AC33: GPS Lyon Centre | AF33: Sénior | AG33: 139 | AI33: 78 | AK33: 143 | AM33: 226 | AO33: 586
D34: ='INFORMATIONS COMPETITEURS'!D29 -> 21 | E34: =IF('INFORMATIONS COMPETITEURS'!$D$59="TABLEAU DE SAISIE CONFORME",CONCATENATE('INFORMATIONS COMPETITEURS'!G29," ",'INFORMATIONS COMPETITEURS'!E29),"") -> Dimitri DEZOTHEZ | H34: =IF('INFORMATIONS COMPETITEURS'!$D$59="TABLEAU DE SAISIE CONFORME",IF('INFORMATIONS COMPETITEURS'!I29="","",'INFORMATIONS COMPETITEURS'!I29),"") -> Club Mouche du gévaudan | K34: =IF('INFORMATIONS COMPETITEURS'!$D$59="TABLEAU DE SAISIE CONFORME",IF(COUNTBLANK('INFORMATIONS COMPETITEURS'!L29)=1,"",'INFORMATIONS COMPETITEURS'!L29),"") -> Minime | L34: =IF('INFORMATIONS COMPETITEURS'!$D$59="TABLEAU DE SAISIE NON CONFORME","",IF(OR(E34="",H34="",K34=""),N(0),'MOUCHE N°1'!P30)) -> 262 | N34: =IF('INFORMATIONS COMPETITEURS'!$D$59="TABLEAU DE SAISIE NON CONFORME","",IF(OR(E34="",H34="",K34=""),N(0),'MOUCHE N°2'!P30)) -> 175 | P34: =IF('INFORMATIONS COMPETITEURS'!$D$59="TABLEAU DE SAISIE NON CONFORME","",IF(OR(E34="",H34="",K34=""),N(0),'MOUCHE N°3'!P30)) -> 173 | R34: =IF('INFORMATIONS COMPETITEURS'!$D$59="TABLEAU DE SAISIE NON CONFORME","",IF(OR(E34="",H34="",K34=""),N(0),'MOUCHE N°4'!P30)) -> 173 | T34: =IF('INFORMATIONS COMPETITEURS'!$D$59="TABLEAU DE SAISIE NON CONFORME","",IF(E34=" ",N(0),IF(COUNT(L34,N34,P34,R34)>0,SUM(L34,N34,P34,R34),N(0)))) -> 783 | X34: 21 | Y34: 23 | Z34: Christophe MARTIN | AC34: CM Plaisir | AF34: Sénior | AG34: 149 | AI34: 126 | AK34: 127 | AM34: 160 | AO34: 562
D35: ='INFORMATIONS COMPETITEURS'!D30 -> 22 | E35: =IF('INFORMATIONS COMPETITEURS'!$D$59="TABLEAU DE SAISIE CONFORME",CONCATENATE('INFORMATIONS COMPETITEURS'!G30," ",'INFORMATIONS COMPETITEURS'!E30),"") -> Dominique BRULEY | H35: =IF('INFORMATIONS COMPETITEURS'!$D$59="TABLEAU DE SAISIE CONFORME",IF('INFORMATIONS COMPETITEURS'!I30="","",'INFORMATIONS COMPETITEURS'!I30),"") -> GPS Val de Saone | K35: =IF('INFORMATIONS COMPETITEURS'!$D$59="TABLEAU DE SAISIE CONFORME",IF(COUNTBLANK('INFORMATIONS COMPETITEURS'!L30)=1,"",'INFORMATIONS COMPETITEURS'!L30),"") -> Sénior | L35: =IF('INFORMATIONS COMPETITEURS'!$D$59="TABLEAU DE SAISIE NON CONFORME","",IF(OR(E35="",H35="",K35=""),N(0),'MOUCHE N°1'!P31)) -> 276 | N35: =IF('INFORMATIONS COMPETITEURS'!$D$59="TABLEAU DE SAISIE NON CONFORME","",IF(OR(E35="",H35="",K35=""),N(0),'MOUCHE N°2'!P31)) -> 78 | P35: =IF('INFORMATIONS COMPETITEURS'!$D$59="TABLEAU DE SAISIE NON CONFORME","",IF(OR(E35="",H35="",K35=""),N(0),'MOUCHE N°3'!P31)) -> 129 | R35: =IF('INFORMATIONS COMPETITEURS'!$D$59="TABLEAU DE SAISIE NON CONFORME","",IF(OR(E35="",H35="",K35=""),N(0),'MOUCHE N°4'!P31)) -> 161 | T35: =IF('INFORMATIONS COMPETITEURS'!$D$59="TABLEAU DE SAISIE NON CONFORME","",IF(E35=" ",N(0),IF(COUNT(L35,N35,P35,R35)>0,SUM(L35,N35,P35,R35),N(0)))) -> 644 | X35: 22 | Y35: 18 | Z35: Denis FAUVELLIERE | AC35: CM Plaisir | AF35: Sénior | AG35: 124 | AI35: 155 | AK35: 152 | AM35: 128 | AO35: 559
D36: ='INFORMATIONS COMPETITEURS'!D31 -> 23 | E36: =IF('INFORMATIONS COMPETITEURS'!$D$59="TABLEAU DE SAISIE CONFORME",CONCATENATE('INFORMATIONS COMPETITEURS'!G31," ",'INFORMATIONS COMPETITEURS'!E31),"") -> Christophe MARTIN | H36: =IF('INFORMATIONS COMPETITEURS'!$D$59="TABLEAU DE SAISIE CONFORME",IF('INFORMATIONS COMPETITEURS'!I31="","",'INFORMATIONS COMPETITEURS'!I31),"") -> CM Plaisir | K36: =IF('INFORMATIONS COMPETITEURS'!$D$59="TABLEAU DE SAISIE CONFORME",IF(COUNTBLANK('INFORMATIONS COMPETITEURS'!L31)=1,"",'INFORMATIONS COMPETITEURS'!L31),"") -> Sénior | L36: =IF('INFORMATIONS COMPETITEURS'!$D$59="TABLEAU DE SAISIE NON CONFORME","",IF(OR(E36="",H36="",K36=""),N(0),'MOUCHE N°1'!P32)) -> 149 | N36: =IF('INFORMATIONS COMPETITEURS'!$D$59="TABLEAU DE SAISIE NON CONFORME","",IF(OR(E36="",H36="",K36=""),N(0),'MOUCHE N°2'!P32)) -> 126 | P36: =IF('INFORMATIONS COMPETITEURS'!$D$59="TABLEAU DE SAISIE NON CONFORME","",IF(OR(E36="",H36="",K36=""),N(0),'MOUCHE N°3'!P32)) -> 127 | R36: =IF('INFORMATIONS COMPETITEURS'!$D$59="TABLEAU DE SAISIE NON CONFORME","",IF(OR(E36="",H36="",K36=""),N(0),'MOUCHE N°4'!P32)) -> 160 | T36: =IF('INFORMATIONS COMPETITEURS'!$D$59="TABLEAU DE SAISIE NON CONFORME","",IF(E36=" ",N(0),IF(COUNT(L36,N36,P36,R36)>0,SUM(L36,N36,P36,R36),N(0)))) -> 562 | X36: 23 | Y36: 4 | Z36: Valentin BIBENT | AC36: CML | AF36: Minime | AG36: 65 | AI36: 192 | AK36: 151 | AM36: 124 | AO36: 532
D37: ='INFORMATIONS COMPETITEURS'!D32 -> 24 | E37: =IF('INFORMATIONS COMPETITEURS'!$D$59="TABLEAU DE SAISIE CONFORME",CONCATENATE('INFORMATIONS COMPETITEURS'!G32," ",'INFORMATIONS COMPETITEURS'!E32),"") -> Gérard VILLA | H37: =IF('INFORMATIONS COMPETITEURS'!$D$59="TABLEAU DE SAISIE CONFORME",IF('INFORMATIONS COMPETITEURS'!I32="","",'INFORMATIONS COMPETITEURS'!I32),"") -> GPS Pays d'Oc | K37: =IF('INFORMATIONS COMPETITEURS'!$D$59="TABLEAU DE SAISIE CONFORME",IF(COUNTBLANK('INFORMATIONS COMPETITEURS'!L32)=1,"",'INFORMATIONS COMPETITEURS'!L32),"") -> Sénior | L37: =IF('INFORMATIONS COMPETITEURS'!$D$59="TABLEAU DE SAISIE NON CONFORME","",IF(OR(E37="",H37="",K37=""),N(0),'MOUCHE N°1'!P33)) -> 229 | N37: =IF('INFORMATIONS COMPETITEURS'!$D$59="TABLEAU DE SAISIE NON CONFORME","",IF(OR(E37="",H37="",K37=""),N(0),'MOUCHE N°2'!P33)) -> 252 | P37: =IF('INFORMATIONS COMPETITEURS'!$D$59="TABLEAU DE SAISIE NON CONFORME","",IF(OR(E37="",H37="",K37=""),N(0),'MOUCHE N°3'!P33)) -> 157 | R37: =IF('INFORMATIONS COMPETITEURS'!$D$59="TABLEAU DE SAISIE NON CONFORME","",IF(OR(E37="",H37="",K37=""),N(0),'MOUCHE N°4'!P33)) -> 170 | T37: =IF('INFORMATIONS COMPETITEURS'!$D$59="TABLEAU DE SAISIE NON CONFORME","",IF(E37=" ",N(0),IF(COUNT(L37,N37,P37,R37)>0,SUM(L37,N37,P37,R37),N(0)))) -> 808 | X37: 24 | Y37: 27 | Z37: Batiste JEANIN | AC37: Ecole de pêche Dijon | AF37: Cadet | AG37: 115 | AI37: 155 | AK37: 106 | AM37: 135 | AO37: 511
D38: ='INFORMATIONS COMPETITEURS'!D33 -> 25 | E38: =IF('INFORMATIONS COMPETITEURS'!$D$59="TABLEAU DE SAISIE CONFORME",CONCATENATE('INFORMATIONS COMPETITEURS'!G33," ",'INFORMATIONS COMPETITEURS'!E33),"") -> patrick JACQUOT | H38: =IF('INFORMATIONS COMPETITEURS'!$D$59="TABLEAU DE SAISIE CONFORME",IF('INFORMATIONS COMPETITEURS'!I33="","",'INFORMATIONS COMPETITEURS'!I33),"") -> GPS Val de Saone | K38: =IF('INFORMATIONS COMPETITEURS'!$D$59="TABLEAU DE SAISIE CONFORME",IF(COUNTBLANK('INFORMATIONS COMPETITEURS'!L33)=1,"",'INFORMATIONS COMPETITEURS'!L33),"") -> Sénior | L38: =IF('INFORMATIONS COMPETITEURS'!$D$59="TABLEAU DE SAISIE NON CONFORME","",IF(OR(E38="",H38="",K38=""),N(0),'MOUCHE N°1'!P34)) -> 143 | N38: =IF('INFORMATIONS COMPETITEURS'!$D$59="TABLEAU DE SAISIE NON CONFORME","",IF(OR(E38="",H38="",K38=""),N(0),'MOUCHE N°2'!P34)) -> 91 | P38: =IF('INFORMATIONS COMPETITEURS'!$D$59="TABLEAU DE SAISIE NON CONFORME","",IF(OR(E38="",H38="",K38=""),N(0),'MOUCHE N°3'!P34)) -> 149 | R38: =IF('INFORMATIONS COMPETITEURS'!$D$59="TABLEAU DE SAISIE NON CONFORME","",IF(OR(E38="",H38="",K38=""),N(0),'MOUCHE N°4'!P34)) -> 286 | T38: =IF('INFORMATIONS COMPETITEURS'!$D$59="TABLEAU DE SAISIE NON CONFORME","",IF(E38=" ",N(0),IF(COUNT(L38,N38,P38,R38)>0,SUM(L38,N38,P38,R38),N(0)))) -> 669 | X38: 25 | Y38: 8 | Z38: Edgard RICHARD | AC38: Ecole de pêche Dijon | AF38: Cadet | AG38: 95 | AI38: 115 | AK38: 132 | AM38: 130 | AO38: 472
D39: ='INFORMATIONS COMPETITEURS'!D34 -> 26 | E39: =IF('INFORMATIONS COMPETITEURS'!$D$59="TABLEAU DE SAISIE CONFORME",CONCATENATE('INFORMATIONS COMPETITEURS'!G34," ",'INFORMATIONS COMPETITEURS'!E34),"") -> Henri CALAVIA | H39: =IF('INFORMATIONS COMPETITEURS'!$D$59="TABLEAU DE SAISIE CONFORME",IF('INFORMATIONS COMPETITEURS'!I34="","",'INFORMATIONS COMPETITEURS'!I34),"") -> CMCRE | K39: =IF('INFORMATIONS COMPETITEURS'!$D$59="TABLEAU DE SAISIE CONFORME",IF(COUNTBLANK('INFORMATIONS COMPETITEURS'!L34)=1,"",'INFORMATIONS COMPETITEURS'!L34),"") -> Sénior | L39: =IF('INFORMATIONS COMPETITEURS'!$D$59="TABLEAU DE SAISIE NON CONFORME","",IF(OR(E39="",H39="",K39=""),N(0),'MOUCHE N°1'!P35)) -> 285 | N39: =IF('INFORMATIONS COMPETITEURS'!$D$59="TABLEAU DE SAISIE NON CONFORME","",IF(OR(E39="",H39="",K39=""),N(0),'MOUCHE N°2'!P35)) -> 280 | P39: =IF('INFORMATIONS COMPETITEURS'!$D$59="TABLEAU DE SAISIE NON CONFORME","",IF(OR(E39="",H39="",K39=""),N(0),'MOUCHE N°3'!P35)) -> 278 | R39: =IF('INFORMATIONS COMPETITEURS'!$D$59="TABLEAU DE SAISIE NON CONFORME","",IF(OR(E39="",H39="",K39=""),N(0),'MOUCHE N°4'!P35)) -> 294 | T39: =IF('INFORMATIONS COMPETITEURS'!$D$59="TABLEAU DE SAISIE NON CONFORME","",IF(E39=" ",N(0),IF(COUNT(L39,N39,P39,R39)>0,SUM(L39,N39,P39,R39),N(0)))) -> 1137 | X39: 26 | Y39: 20 | Z39: HAMZA MAACH | AC39: Ecole de pêche Dijon | AF39: Benjamin | AG39: 92 | AI39: 85 | AK39: 79 | AM39: 150 | AO39: 406
D40: ='INFORMATIONS COMPETITEURS'!D35 -> 27 | E40: =IF('INFORMATIONS COMPETITEURS'!$D$59="TABLEAU DE SAISIE CONFORME",CONCATENATE('INFORMATIONS COMPETITEURS'!G35," ",'INFORMATIONS COMPETITEURS'!E35),"") -> Batiste JEANIN | H40: =IF('INFORMATIONS COMPETITEURS'!$D$59="TABLEAU DE SAISIE CONFORME",IF('INFORMATIONS COMPETITEURS'!I35="","",'INFORMATIONS COMPETITEURS'!I35),"") -> Ecole de pêche Dijon | K40: =IF('INFORMATIONS COMPETITEURS'!$D$59="TABLEAU DE SAISIE CONFORME",IF(COUNTBLANK('INFORMATIONS COMPETITEURS'!L35)=1,"",'INFORMATIONS COMPETITEURS'!L35),"") -> Cadet | L40: =IF('INFORMATIONS COMPETITEURS'!$D$59="TABLEAU DE SAISIE NON CONFORME","",IF(OR(E40="",H40="",K40=""),N(0),'MOUCHE N°1'!P36)) -> 115 | N40: =IF('INFORMATIONS COMPETITEURS'!$D$59="TABLEAU DE SAISIE NON CONFORME","",IF(OR(E40="",H40="",K40=""),N(0),'MOUCHE N°2'!P36)) -> 155 | P40: =IF('INFORMATIONS COMPETITEURS'!$D$59="TABLEAU DE SAISIE NON CONFORME","",IF(OR(E40="",H40="",K40=""),N(0),'MOUCHE N°3'!P36)) -> 106 | R40: =IF('INFORMATIONS COMPETITEURS'!$D$59="TABLEAU DE SAISIE NON CONFORME","",IF(OR(E40="",H40="",K40=""),N(0),'MOUCHE N°4'!P36)) -> 135 | T40: =IF('INFORMATIONS COMPETITEURS'!$D$59="TABLEAU DE SAISIE NON CONFORME","",IF(E40=" ",N(0),IF(COUNT(L40,N40,P40,R40)>0,SUM(L40,N40,P40,R40),N(0)))) -> 511 | X40: 27 | Y40: 11 | Z40: Gerard COMMARET | AC40: GPS Val de Saone | AF40: Handisport | AG40: 79 | AI40: 91 | AK40: 55 | AM40: 85 | AO40: 310
D41: ='INFORMATIONS COMPETITEURS'!D36 -> 28 | E41: =IF('INFORMATIONS COMPETITEURS'!$D$59="TABLEAU DE SAISIE CONFORME",CONCATENATE('INFORMATIONS COMPETITEURS'!G36," ",'INFORMATIONS COMPETITEURS'!E36),"") -> Règis CAZARETH | H41: =IF('INFORMATIONS COMPETITEURS'!$D$59="TABLEAU DE SAISIE CONFORME",IF('INFORMATIONS COMPETITEURS'!I36="","",'INFORMATIONS COMPETITEURS'!I36),"") -> GPS Décines | K41: =IF('INFORMATIONS COMPETITEURS'!$D$59="TABLEAU DE SAISIE CONFORME",IF(COUNTBLANK('INFORMATIONS COMPETITEURS'!L36)=1,"",'INFORMATIONS COMPETITEURS'!L36),"") -> Sénior | L41: =IF('INFORMATIONS COMPETITEURS'!$D$59="TABLEAU DE SAISIE NON CONFORME","",IF(OR(E41="",H41="",K41=""),N(0),'MOUCHE N°1'!P37)) -> 114 | N41: =IF('INFORMATIONS COMPETITEURS'!$D$59="TABLEAU DE SAISIE NON CONFORME","",IF(OR(E41="",H41="",K41=""),N(0),'MOUCHE N°2'!P37)) -> 223 | P41: =IF('INFORMATIONS COMPETITEURS'!$D$59="TABLEAU DE SAISIE NON CONFORME","",IF(OR(E41="",H41="",K41=""),N(0),'MOUCHE N°3'!P37)) -> 138 | R41: =IF('INFORMATIONS COMPETITEURS'!$D$59="TABLEAU DE SAISIE NON CONFORME","",IF(OR(E41="",H41="",K41=""),N(0),'MOUCHE N°4'!P37)) -> 280 | T41: =IF('INFORMATIONS COMPETITEURS'!$D$59="TABLEAU DE SAISIE NON CONFORME","",IF(E41=" ",N(0),IF(COUNT(L41,N41,P41,R41)>0,SUM(L41,N41,P41,R41),N(0)))) -> 755 | X41: 28 | Y41: 17 | Z41: Bernard Rémi | AC41: Ecole de pêche Dijon | AF41: Benjamin | AG41: 0 | AI41: 0 | AK41: 0 | AM41: 0 | AO41: 0
D42: ='INFORMATIONS COMPETITEURS'!D37 -> 29 | E42: =IF('INFORMATIONS COMPETITEURS'!$D$59="TABLEAU DE SAISIE CONFORME",CONCATENATE('INFORMATIONS COMPETITEURS'!G37," ",'INFORMATIONS COMPETITEURS'!E37),"") -> BOUAFFIA DENIL | H42: =IF('INFORMATIONS COMPETITEURS'!$D$59="TABLEAU DE SAISIE CONFORME",IF('INFORMATIONS COMPETITEURS'!I37="","",'INFORMATIONS COMPETITEURS'!I37),"") -> GPS | K42: =IF('INFORMATIONS COMPETITEURS'!$D$59="TABLEAU DE SAISIE CONFORME",IF(COUNTBLANK('INFORMATIONS COMPETITEURS'!L37)=1,"",'INFORMATIONS COMPETITEURS'!L37),"") -> Minime | L42: =IF('INFORMATIONS COMPETITEURS'!$D$59="TABLEAU DE SAISIE NON CONFORME","",IF(OR(E42="",H42="",K42=""),N(0),'MOUCHE N°1'!P38)) -> 0 | N42: =IF('INFORMATIONS COMPETITEURS'!$D$59="TABLEAU DE SAISIE NON CONFORME","",IF(OR(E42="",H42="",K42=""),N(0),'MOUCHE N°2'!P38)) -> 0 | P42: =IF('INFORMATIONS COMPETITEURS'!$D$59="TABLEAU DE SAISIE NON CONFORME","",IF(OR(E42="",H42="",K42=""),N(0),'MOUCHE N°3'!P38)) -> 0 | R42: =IF('INFORMATIONS COMPETITEURS'!$D$59="TABLEAU DE SAISIE NON CONFORME","",IF(OR(E42="",H42="",K42=""),N(0),'MOUCHE N°4'!P38)) -> 0 | T42: =IF('INFORMATIONS COMPETITEURS'!$D$59="TABLEAU DE SAISIE NON CONFORME","",IF(E42=" ",N(0),IF(COUNT(L42,N42,P42,R42)>0,SUM(L42,N42,P42,R42),N(0)))) -> 0 | X42: 28 | Y42: 29 | Z42: BOUAFFIA DENIL | AC42: GPS | AF42: Minime | AG42: 0 | AI42: 0 | AK42: 0 | AM42: 0 | AO42: 0
D43: ='INFORMATIONS COMPETITEURS'!D38 -> 30 | E43: =IF('INFORMATIONS COMPETITEURS'!$D$59="TABLEAU DE SAISIE CONFORME",CONCATENATE('INFORMATIONS COMPETITEURS'!G38," ",'INFORMATIONS COMPETITEURS'!E38),"") ->  | H43: =IF('INFORMATIONS COMPETITEURS'!$D$59="TABLEAU DE SAISIE CONFORME",IF('INFORMATIONS COMPETITEURS'!I38="","",'INFORMATIONS COMPETITEURS'!I38),"") ->  | K43: =IF('INFORMATIONS COMPETITEURS'!$D$59="TABLEAU DE SAISIE CONFORME",IF(COUNTBLANK('INFORMATIONS COMPETITEURS'!L38)=1,"",'INFORMATIONS COMPETITEURS'!L38),"") ->  | L43: =IF('INFORMATIONS COMPETITEURS'!$D$59="TABLEAU DE SAISIE NON CONFORME","",IF(OR(E43="",H43="",K43=""),N(0),'MOUCHE N°1'!P39)) -> 0 | N43: =IF('INFORMATIONS COMPETITEURS'!$D$59="TABLEAU DE SAISIE NON CONFORME","",IF(OR(E43="",H43="",K43=""),N(0),'MOUCHE N°2'!P39)) -> 0 | P43: =IF('INFORMATIONS COMPETITEURS'!$D$59="TABLEAU DE SAISIE NON CONFORME","",IF(OR(E43="",H43="",K43=""),N(0),'MOUCHE N°3'!P39)) -> 0 | R43: =IF('INFORMATIONS COMPETITEURS'!$D$59="TABLEAU DE SAISIE NON CONFORME","",IF(OR(E43="",H43="",K43=""),N(0),'MOUCHE N°4'!P39)) -> 0 | T43: =IF('INFORMATIONS COMPETITEURS'!$D$59="TABLEAU DE SAISIE NON CONFORME","",IF(E43=" ",N(0),IF(COUNT(L43,N43,P43,R43)>0,SUM(L43,N43,P43,R43),N(0)))) -> 0 | AG43: 0 | AI43: 0 | AK43: 0 | AM43: 0 | AO43: 0
D44: ='INFORMATIONS COMPETITEURS'!D39 -> 31 | E44: =IF('INFORMATIONS COMPETITEURS'!$D$59="TABLEAU DE SAISIE CONFORME",CONCATENATE('INFORMATIONS COMPETITEURS'!G39," ",'INFORMATIONS COMPETITEURS'!E39),"") ->  | H44: =IF('INFORMATIONS COMPETITEURS'!$D$59="TABLEAU DE SAISIE CONFORME",IF('INFORMATIONS COMPETITEURS'!I39="","",'INFORMATIONS COMPETITEURS'!I39),"") ->  | K44: =IF('INFORMATIONS COMPETITEURS'!$D$59="TABLEAU DE SAISIE CONFORME",IF(COUNTBLANK('INFORMATIONS COMPETITEURS'!L39)=1,"",'INFORMATIONS COMPETITEURS'!L39),"") ->  | L44: =IF('INFORMATIONS COMPETITEURS'!$D$59="TABLEAU DE SAISIE NON CONFORME","",IF(OR(E44="",H44="",K44=""),N(0),'MOUCHE N°1'!P40)) -> 0 | N44: =IF('INFORMATIONS COMPETITEURS'!$D$59="TABLEAU DE SAISIE NON CONFORME","",IF(OR(E44="",H44="",K44=""),N(0),'MOUCHE N°2'!P40)) -> 0 | P44: =IF('INFORMATIONS COMPETITEURS'!$D$59="TABLEAU DE SAISIE NON CONFORME","",IF(OR(E44="",H44="",K44=""),N(0),'MOUCHE N°3'!P40)) -> 0 | R44: =IF('INFORMATIONS COMPETITEURS'!$D$59="TABLEAU DE SAISIE NON CONFORME","",IF(OR(E44="",H44="",K44=""),N(0),'MOUCHE N°4'!P40)) -> 0 | T44: =IF('INFORMATIONS COMPETITEURS'!$D$59="TABLEAU DE SAISIE NON CONFORME","",IF(E44=" ",N(0),IF(COUNT(L44,N44,P44,R44)>0,SUM(L44,N44,P44,R44),N(0)))) -> 0 | AG44: 0 | AI44: 0 | AK44: 0 | AM44: 0 | AO44: 0
D45: ='INFORMATIONS COMPETITEURS'!D40 -> 32 | E45: =IF('INFORMATIONS COMPETITEURS'!$D$59="TABLEAU DE SAISIE CONFORME",CONCATENATE('INFORMATIONS COMPETITEURS'!G40," ",'INFORMATIONS COMPETITEURS'!E40),"") ->  | H45: =IF('INFORMATIONS COMPETITEURS'!$D$59="TABLEAU DE SAISIE CONFORME",IF('INFORMATIONS COMPETITEURS'!I40="","",'INFORMATIONS COMPETITEURS'!I40),"") ->  | K45: =IF('INFORMATIONS COMPETITEURS'!$D$59="TABLEAU DE SAISIE CONFORME",IF(COUNTBLANK('INFORMATIONS COMPETITEURS'!L40)=1,"",'INFORMATIONS COMPETITEURS'!L40),"") ->  | L45: =IF('INFORMATIONS COMPETITEURS'!$D$59="TABLEAU DE SAISIE NON CONFORME","",IF(OR(E45="",H45="",K45=""),N(0),'MOUCHE N°1'!P41)) -> 0 | N45: =IF('INFORMATIONS COMPETITEURS'!$D$59="TABLEAU DE SAISIE NON CONFORME","",IF(OR(E45="",H45="",K45=""),N(0),'MOUCHE N°2'!P41)) -> 0 | P45: =IF('INFORMATIONS COMPETITEURS'!$D$59="TABLEAU DE SAISIE NON CONFORME","",IF(OR(E45="",H45="",K45=""),N(0),'MOUCHE N°3'!P41)) -> 0 | R45: =IF('INFORMATIONS COMPETITEURS'!$D$59="TABLEAU DE SAISIE NON CONFORME","",IF(OR(E45="",H45="",K45=""),N(0),'MOUCHE N°4'!P41)) -> 0 | T45: =IF('INFORMATIONS COMPETITEURS'!$D$59="TABLEAU DE SAISIE NON CONFORME","",IF(E45=" ",N(0),IF(COUNT(L45,N45,P45,R45)>0,SUM(L45,N45,P45,R45),N(0)))) -> 0 | AG45: 0 | AI45: 0 | AK45: 0 | AM45: 0 | AO45: 0
D46: ='INFORMATIONS COMPETITEURS'!D41 -> 33 | E46: =IF('INFORMATIONS COMPETITEURS'!$D$59="TABLEAU DE SAISIE CONFORME",CONCATENATE('INFORMATIONS COMPETITEURS'!G41," ",'INFORMATIONS COMPETITEURS'!E41),"") ->  | H46: =IF('INFORMATIONS COMPETITEURS'!$D$59="TABLEAU DE SAISIE CONFORME",IF('INFORMATIONS COMPETITEURS'!I41="","",'INFORMATIONS COMPETITEURS'!I41),"") ->  | K46: =IF('INFORMATIONS COMPETITEURS'!$D$59="TABLEAU DE SAISIE CONFORME",IF(COUNTBLANK('INFORMATIONS COMPETITEURS'!L41)=1,"",'INFORMATIONS COMPETITEURS'!L41),"") ->  | L46: =IF('INFORMATIONS COMPETITEURS'!$D$59="TABLEAU DE SAISIE NON CONFORME","",IF(OR(E46="",H46="",K46=""),N(0),'MOUCHE N°1'!P42)) -> 0 | N46: =IF('INFORMATIONS COMPETITEURS'!$D$59="TABLEAU DE SAISIE NON CONFORME","",IF(OR(E46="",H46="",K46=""),N(0),'MOUCHE N°2'!P42)) -> 0 | P46: =IF('INFORMATIONS COMPETITEURS'!$D$59="TABLEAU DE SAISIE NON CONFORME","",IF(OR(E46="",H46="",K46=""),N(0),'MOUCHE N°3'!P42)) -> 0 | R46: =IF('INFORMATIONS COMPETITEURS'!$D$59="TABLEAU DE SAISIE NON CONFORME","",IF(OR(E46="",H46="",K46=""),N(0),'MOUCHE N°4'!P42)) -> 0 | T46: =IF('INFORMATIONS COMPETITEURS'!$D$59="TABLEAU DE SAISIE NON CONFORME","",IF(E46=" ",N(0),IF(COUNT(L46,N46,P46,R46)>0,SUM(L46,N46,P46,R46),N(0)))) -> 0 | AG46: 0 | AI46: 0 | AK46: 0 | AM46: 0 | AO46: 0
D47: ='INFORMATIONS COMPETITEURS'!D42 -> 34 | E47: =IF('INFORMATIONS COMPETITEURS'!$D$59="TABLEAU DE SAISIE CONFORME",CONCATENATE('INFORMATIONS COMPETITEURS'!G42," ",'INFORMATIONS COMPETITEURS'!E42),"") ->  | H47: =IF('INFORMATIONS COMPETITEURS'!$D$59="TABLEAU DE SAISIE CONFORME",IF('INFORMATIONS COMPETITEURS'!I42="","",'INFORMATIONS COMPETITEURS'!I42),"") ->  | K47: =IF('INFORMATIONS COMPETITEURS'!$D$59="TABLEAU DE SAISIE CONFORME",IF(COUNTBLANK('INFORMATIONS COMPETITEURS'!L42)=1,"",'INFORMATIONS COMPETITEURS'!L42),"") ->  | L47: =IF('INFORMATIONS COMPETITEURS'!$D$59="TABLEAU DE SAISIE NON CONFORME","",IF(OR(E47="",H47="",K47=""),N(0),'MOUCHE N°1'!P43)) -> 0 | N47: =IF('INFORMATIONS COMPETITEURS'!$D$59="TABLEAU DE SAISIE NON CONFORME","",IF(OR(E47="",H47="",K47=""),N(0),'MOUCHE N°2'!P43)) -> 0 | P47: =IF('INFORMATIONS COMPETITEURS'!$D$59="TABLEAU DE SAISIE NON CONFORME","",IF(OR(E47="",H47="",K47=""),N(0),'MOUCHE N°3'!P43)) -> 0 | R47: =IF('INFORMATIONS COMPETITEURS'!$D$59="TABLEAU DE SAISIE NON CONFORME","",IF(OR(E47="",H47="",K47=""),N(0),'MOUCHE N°4'!P43)) -> 0 | T47: =IF('INFORMATIONS COMPETITEURS'!$D$59="TABLEAU DE SAISIE NON CONFORME","",IF(E47=" ",N(0),IF(COUNT(L47,N47,P47,R47)>0,SUM(L47,N47,P47,R47),N(0)))) -> 0 | AG47: 0 | AI47: 0 | AK47: 0 | AM47: 0 | AO47: 0
D48: ='INFORMATIONS COMPETITEURS'!D43 -> 35 | E48: =IF('INFORMATIONS COMPETITEURS'!$D$59="TABLEAU DE SAISIE CONFORME",CONCATENATE('INFORMATIONS COMPETITEURS'!G43," ",'INFORMATIONS COMPETITEURS'!E43),"") ->  | H48: =IF('INFORMATIONS COMPETITEURS'!$D$59="TABLEAU DE SAISIE CONFORME",IF('INFORMATIONS COMPETITEURS'!I43="","",'INFORMATIONS COMPETITEURS'!I43),"") ->  | K48: =IF('INFORMATIONS COMPETITEURS'!$D$59="TABLEAU DE SAISIE CONFORME",IF(COUNTBLANK('INFORMATIONS COMPETITEURS'!L43)=1,"",'INFORMATIONS COMPETITEURS'!L43),"") ->  | L48: =IF('INFORMATIONS COMPETITEURS'!$D$59="TABLEAU DE SAISIE NON CONFORME","",IF(OR(E48="",H48="",K48=""),N(0),'MOUCHE N°1'!P44)) -> 0 | N48: =IF('INFORMATIONS COMPETITEURS'!$D$59="TABLEAU DE SAISIE NON CONFORME","",IF(OR(E48="",H48="",K48=""),N(0),'MOUCHE N°2'!P44)) -> 0 | P48: =IF('INFORMATIONS COMPETITEURS'!$D$59="TABLEAU DE SAISIE NON CONFORME","",IF(OR(E48="",H48="",K48=""),N(0),'MOUCHE N°3'!P44)) -> 0 | R48: =IF('INFORMATIONS COMPETITEURS'!$D$59="TABLEAU DE SAISIE NON CONFORME","",IF(OR(E48="",H48="",K48=""),N(0),'MOUCHE N°4'!P44)) -> 0 | T48: =IF('INFORMATIONS COMPETITEURS'!$D$59="TABLEAU DE SAISIE NON CONFORME","",IF(E48=" ",N(0),IF(COUNT(L48,N48,P48,R48)>0,SUM(L48,N48,P48,R48),N(0)))) -> 0 | AG48: 0 | AI48: 0 | AK48: 0 | AM48: 0 | AO48: 0
D49: ='INFORMATIONS COMPETITEURS'!D44 -> 36 | E49: =IF('INFORMATIONS COMPETITEURS'!$D$59="TABLEAU DE SAISIE CONFORME",CONCATENATE('INFORMATIONS COMPETITEURS'!G44," ",'INFORMATIONS COMPETITEURS'!E44),"") ->  | H49: =IF('INFORMATIONS COMPETITEURS'!$D$59="TABLEAU DE SAISIE CONFORME",IF('INFORMATIONS COMPETITEURS'!I44="","",'INFORMATIONS COMPETITEURS'!I44),"") ->  | K49: =IF('INFORMATIONS COMPETITEURS'!$D$59="TABLEAU DE SAISIE CONFORME",IF(COUNTBLANK('INFORMATIONS COMPETITEURS'!L44)=1,"",'INFORMATIONS COMPETITEURS'!L44),"") ->  | L49: =IF('INFORMATIONS COMPETITEURS'!$D$59="TABLEAU DE SAISIE NON CONFORME","",IF(OR(E49="",H49="",K49=""),N(0),'MOUCHE N°1'!P45)) -> 0 | N49: =IF('INFORMATIONS COMPETITEURS'!$D$59="TABLEAU DE SAISIE NON CONFORME","",IF(OR(E49="",H49="",K49=""),N(0),'MOUCHE N°2'!P45)) -> 0 | P49: =IF('INFORMATIONS COMPETITEURS'!$D$59="TABLEAU DE SAISIE NON CONFORME","",IF(OR(E49="",H49="",K49=""),N(0),'MOUCHE N°3'!P45)) -> 0 | R49: =IF('INFORMATIONS COMPETITEURS'!$D$59="TABLEAU DE SAISIE NON CONFORME","",IF(OR(E49="",H49="",K49=""),N(0),'MOUCHE N°4'!P45)) -> 0 | T49: =IF('INFORMATIONS COMPETITEURS'!$D$59="TABLEAU DE SAISIE NON CONFORME","",IF(E49=" ",N(0),IF(COUNT(L49,N49,P49,R49)>0,SUM(L49,N49,P49,R49),N(0)))) -> 0 | AG49: 0 | AI49: 0 | AK49: 0 | AM49: 0 | AO49: 0
D50: ='INFORMATIONS COMPETITEURS'!D45 -> 37 | E50: =IF('INFORMATIONS COMPETITEURS'!$D$59="TABLEAU DE SAISIE CONFORME",CONCATENATE('INFORMATIONS COMPETITEURS'!G45," ",'INFORMATIONS COMPETITEURS'!E45),"") ->  | H50: =IF('INFORMATIONS COMPETITEURS'!$D$59="TABLEAU DE SAISIE CONFORME",IF('INFORMATIONS COMPETITEURS'!I45="","",'INFORMATIONS COMPETITEURS'!I45),"") ->  | K50: =IF('INFORMATIONS COMPETITEURS'!$D$59="TABLEAU DE SAISIE CONFORME",IF(COUNTBLANK('INFORMATIONS COMPETITEURS'!L45)=1,"",'INFORMATIONS COMPETITEURS'!L45),"") ->  | L50: =IF('INFORMATIONS COMPETITEURS'!$D$59="TABLEAU DE SAISIE NON CONFORME","",IF(OR(E50="",H50="",K50=""),N(0),'MOUCHE N°1'!P46)) -> 0 | N50: =IF('INFORMATIONS COMPETITEURS'!$D$59="TABLEAU DE SAISIE NON CONFORME","",IF(OR(E50="",H50="",K50=""),N(0),'MOUCHE N°2'!P46)) -> 0 | P50: =IF('INFORMATIONS COMPETITEURS'!$D$59="TABLEAU DE SAISIE NON CONFORME","",IF(OR(E50="",H50="",K50=""),N(0),'MOUCHE N°3'!P46)) -> 0 | R50: =IF('INFORMATIONS COMPETITEURS'!$D$59="TABLEAU DE SAISIE NON CONFORME","",IF(OR(E50="",H50="",K50=""),N(0),'MOUCHE N°4'!P46)) -> 0 | T50: =IF('INFORMATIONS COMPETITEURS'!$D$59="TABLEAU DE SAISIE NON CONFORME","",IF(E50=" ",N(0),IF(COUNT(L50,N50,P50,R50)>0,SUM(L50,N50,P50,R50),N(0)))) -> 0 | AG50: 0 | AI50: 0 | AK50: 0 | AM50: 0 | AO50: 0
D51: ='INFORMATIONS COMPETITEURS'!D46 -> 38 | E51: =IF('INFORMATIONS COMPETITEURS'!$D$59="TABLEAU DE SAISIE CONFORME",CONCATENATE('INFORMATIONS COMPETITEURS'!G46," ",'INFORMATIONS COMPETITEURS'!E46),"") ->  | H51: =IF('INFORMATIONS COMPETITEURS'!$D$59="TABLEAU DE SAISIE CONFORME",IF('INFORMATIONS COMPETITEURS'!I46="","",'INFORMATIONS COMPETITEURS'!I46),"") ->  | K51: =IF('INFORMATIONS COMPETITEURS'!$D$59="TABLEAU DE SAISIE CONFORME",IF(COUNTBLANK('INFORMATIONS COMPETITEURS'!L46)=1,"",'INFORMATIONS COMPETITEURS'!L46),"") ->  | L51: =IF('INFORMATIONS COMPETITEURS'!$D$59="TABLEAU DE SAISIE NON CONFORME","",IF(OR(E51="",H51="",K51=""),N(0),'MOUCHE N°1'!P47)) -> 0 | N51: =IF('INFORMATIONS COMPETITEURS'!$D$59="TABLEAU DE SAISIE NON CONFORME","",IF(OR(E51="",H51="",K51=""),N(0),'MOUCHE N°2'!P47)) -> 0 | P51: =IF('INFORMATIONS COMPETITEURS'!$D$59="TABLEAU DE SAISIE NON CONFORME","",IF(OR(E51="",H51="",K51=""),N(0),'MOUCHE N°3'!P47)) -> 0 | R51: =IF('INFORMATIONS COMPETITEURS'!$D$59="TABLEAU DE SAISIE NON CONFORME","",IF(OR(E51="",H51="",K51=""),N(0),'MOUCHE N°4'!P47)) -> 0 | T51: =IF('INFORMATIONS COMPETITEURS'!$D$59="TABLEAU DE SAISIE NON CONFORME","",IF(E51=" ",N(0),IF(COUNT(L51,N51,P51,R51)>0,SUM(L51,N51,P51,R51),N(0)))) -> 0 | AG51: 0 | AI51: 0 | AK51: 0 | AM51: 0 | AO51: 0
D52: ='INFORMATIONS COMPETITEURS'!D47 -> 39 | E52: =IF('INFORMATIONS COMPETITEURS'!$D$59="TABLEAU DE SAISIE CONFORME",CONCATENATE('INFORMATIONS COMPETITEURS'!G47," ",'INFORMATIONS COMPETITEURS'!E47),"") ->  | H52: =IF('INFORMATIONS COMPETITEURS'!$D$59="TABLEAU DE SAISIE CONFORME",IF('INFORMATIONS COMPETITEURS'!I47="","",'INFORMATIONS COMPETITEURS'!I47),"") ->  | K52: =IF('INFORMATIONS COMPETITEURS'!$D$59="TABLEAU DE SAISIE CONFORME",IF(COUNTBLANK('INFORMATIONS COMPETITEURS'!L47)=1,"",'INFORMATIONS COMPETITEURS'!L47),"") ->  | L52: =IF('INFORMATIONS COMPETITEURS'!$D$59="TABLEAU DE SAISIE NON CONFORME","",IF(OR(E52="",H52="",K52=""),N(0),'MOUCHE N°1'!P48)) -> 0 | N52: =IF('INFORMATIONS COMPETITEURS'!$D$59="TABLEAU DE SAISIE NON CONFORME","",IF(OR(E52="",H52="",K52=""),N(0),'MOUCHE N°2'!P48)) -> 0 | P52: =IF('INFORMATIONS COMPETITEURS'!$D$59="TABLEAU DE SAISIE NON CONFORME","",IF(OR(E52="",H52="",K52=""),N(0),'MOUCHE N°3'!P48)) -> 0 | R52: =IF('INFORMATIONS COMPETITEURS'!$D$59="TABLEAU DE SAISIE NON CONFORME","",IF(OR(E52="",H52="",K52=""),N(0),'MOUCHE N°4'!P48)) -> 0 | T52: =IF('INFORMATIONS COMPETITEURS'!$D$59="TABLEAU DE SAISIE NON CONFORME","",IF(E52=" ",N(0),IF(COUNT(L52,N52,P52,R52)>0,SUM(L52,N52,P52,R52),N(0)))) -> 0 | AG52: 0 | AI52: 0 | AK52: 0 | AM52: 0 | AO52: 0
D53: ='INFORMATIONS COMPETITEURS'!D48 -> 40 | E53: =IF('INFORMATIONS COMPETITEURS'!$D$59="TABLEAU DE SAISIE CONFORME",CONCATENATE('INFORMATIONS COMPETITEURS'!G48," ",'INFORMATIONS COMPETITEURS'!E48),"") ->  | H53: =IF('INFORMATIONS COMPETITEURS'!$D$59="TABLEAU DE SAISIE CONFORME",IF('INFORMATIONS COMPETITEURS'!I48="","",'INFORMATIONS COMPETITEURS'!I48),"") ->  | K53: =IF('INFORMATIONS COMPETITEURS'!$D$59="TABLEAU DE SAISIE CONFORME",IF(COUNTBLANK('INFORMATIONS COMPETITEURS'!L48)=1,"",'INFORMATIONS COMPETITEURS'!L48),"") ->  | L53: =IF('INFORMATIONS COMPETITEURS'!$D$59="TABLEAU DE SAISIE NON CONFORME","",IF(OR(E53="",H53="",K53=""),N(0),'MOUCHE N°1'!P49)) -> 0 | N53: =IF('INFORMATIONS COMPETITEURS'!$D$59="TABLEAU DE SAISIE NON CONFORME","",IF(OR(E53="",H53="",K53=""),N(0),'MOUCHE N°2'!P49)) -> 0 | P53: =IF('INFORMATIONS COMPETITEURS'!$D$59="TABLEAU DE SAISIE NON CONFORME","",IF(OR(E53="",H53="",K53=""),N(0),'MOUCHE N°3'!P49)) -> 0 | R53: =IF('INFORMATIONS COMPETITEURS'!$D$59="TABLEAU DE SAISIE NON CONFORME","",IF(OR(E53="",H53="",K53=""),N(0),'MOUCHE N°4'!P49)) -> 0 | T53: =IF('INFORMATIONS COMPETITEURS'!$D$59="TABLEAU DE SAISIE NON CONFORME","",IF(E53=" ",N(0),IF(COUNT(L53,N53,P53,R53)>0,SUM(L53,N53,P53,R53),N(0)))) -> 0 | AG53: 0 | AI53: 0 | AK53: 0 | AM53: 0 | AO53: 0
D54: ='INFORMATIONS COMPETITEURS'!D49 -> 41 | E54: =IF('INFORMATIONS COMPETITEURS'!$D$59="TABLEAU DE SAISIE CONFORME",CONCATENATE('INFORMATIONS COMPETITEURS'!G49," ",'INFORMATIONS COMPETITEURS'!E49),"") ->  | H54: =IF('INFORMATIONS COMPETITEURS'!$D$59="TABLEAU DE SAISIE CONFORME",IF('INFORMATIONS COMPETITEURS'!I49="","",'INFORMATIONS COMPETITEURS'!I49),"") ->  | K54: =IF('INFORMATIONS COMPETITEURS'!$D$59="TABLEAU DE SAISIE CONFORME",IF(COUNTBLANK('INFORMATIONS COMPETITEURS'!L49)=1,"",'INFORMATIONS COMPETITEURS'!L49),"") ->  | L54: =IF('INFORMATIONS COMPETITEURS'!$D$59="TABLEAU DE SAISIE NON CONFORME","",IF(OR(E54="",H54="",K54=""),N(0),'MOUCHE N°1'!P50)) -> 0 | N54: =IF('INFORMATIONS COMPETITEURS'!$D$59="TABLEAU DE SAISIE NON CONFORME","",IF(OR(E54="",H54="",K54=""),N(0),'MOUCHE N°2'!P50)) -> 0 | P54: =IF('INFORMATIONS COMPETITEURS'!$D$59="TABLEAU DE SAISIE NON CONFORME","",IF(OR(E54="",H54="",K54=""),N(0),'MOUCHE N°3'!P50)) -> 0 | R54: =IF('INFORMATIONS COMPETITEURS'!$D$59="TABLEAU DE SAISIE NON CONFORME","",IF(OR(E54="",H54="",K54=""),N(0),'MOUCHE N°4'!P50)) -> 0 | T54: =IF('INFORMATIONS COMPETITEURS'!$D$59="TABLEAU DE SAISIE NON CONFORME","",IF(E54=" ",N(0),IF(COUNT(L54,N54,P54,R54)>0,SUM(L54,N54,P54,R54),N(0)))) -> 0 | AG54: 0 | AI54: 0 | AK54: 0 | AM54: 0 | AO54: 0
D55: ='INFORMATIONS COMPETITEURS'!D50 -> 42 | E55: =IF('INFORMATIONS COMPETITEURS'!$D$59="TABLEAU DE SAISIE CONFORME",CONCATENATE('INFORMATIONS COMPETITEURS'!G50," ",'INFORMATIONS COMPETITEURS'!E50),"") ->  | H55: =IF('INFORMATIONS COMPETITEURS'!$D$59="TABLEAU DE SAISIE CONFORME",IF('INFORMATIONS COMPETITEURS'!I50="","",'INFORMATIONS COMPETITEURS'!I50),"") ->  | K55: =IF('INFORMATIONS COMPETITEURS'!$D$59="TABLEAU DE SAISIE CONFORME",IF(COUNTBLANK('INFORMATIONS COMPETITEURS'!L50)=1,"",'INFORMATIONS COMPETITEURS'!L50),"") ->  | L55: =IF('INFORMATIONS COMPETITEURS'!$D$59="TABLEAU DE SAISIE NON CONFORME","",IF(OR(E55="",H55="",K55=""),N(0),'MOUCHE N°1'!P51)) -> 0 | N55: =IF('INFORMATIONS COMPETITEURS'!$D$59="TABLEAU DE SAISIE NON CONFORME","",IF(OR(E55="",H55="",K55=""),N(0),'MOUCHE N°2'!P51)) -> 0 | P55: =IF('INFORMATIONS COMPETITEURS'!$D$59="TABLEAU DE SAISIE NON CONFORME","",IF(OR(E55="",H55="",K55=""),N(0),'MOUCHE N°3'!P51)) -> 0 | R55: =IF('INFORMATIONS COMPETITEURS'!$D$59="TABLEAU DE SAISIE NON CONFORME","",IF(OR(E55="",H55="",K55=""),N(0),'MOUCHE N°4'!P51)) -> 0 | T55: =IF('INFORMATIONS COMPETITEURS'!$D$59="TABLEAU DE SAISIE NON CONFORME","",IF(E55=" ",N(0),IF(COUNT(L55,N55,P55,R55)>0,SUM(L55,N55,P55,R55),N(0)))) -> 0 | AG55: 0 | AI55: 0 | AK55: 0 | AM55: 0 | AO55: 0
D56: ='INFORMATIONS COMPETITEURS'!D51 -> 43 | E56: =IF('INFORMATIONS COMPETITEURS'!$D$59="TABLEAU DE SAISIE CONFORME",CONCATENATE('INFORMATIONS COMPETITEURS'!G51," ",'INFORMATIONS COMPETITEURS'!E51),"") ->  | H56: =IF('INFORMATIONS COMPETITEURS'!$D$59="TABLEAU DE SAISIE CONFORME",IF('INFORMATIONS COMPETITEURS'!I51="","",'INFORMATIONS COMPETITEURS'!I51),"") ->  | K56: =IF('INFORMATIONS COMPETITEURS'!$D$59="TABLEAU DE SAISIE CONFORME",IF(COUNTBLANK('INFORMATIONS COMPETITEURS'!L51)=1,"",'INFORMATIONS COMPETITEURS'!L51),"") ->  | L56: =IF('INFORMATIONS COMPETITEURS'!$D$59="TABLEAU DE SAISIE NON CONFORME","",IF(OR(E56="",H56="",K56=""),N(0),'MOUCHE N°1'!P52)) -> 0 | N56: =IF('INFORMATIONS COMPETITEURS'!$D$59="TABLEAU DE SAISIE NON CONFORME","",IF(OR(E56="",H56="",K56=""),N(0),'MOUCHE N°2'!P52)) -> 0 | P56: =IF('INFORMATIONS COMPETITEURS'!$D$59="TABLEAU DE SAISIE NON CONFORME","",IF(OR(E56="",H56="",K56=""),N(0),'MOUCHE N°3'!P52)) -> 0 | R56: =IF('INFORMATIONS COMPETITEURS'!$D$59="TABLEAU DE SAISIE NON CONFORME","",IF(OR(E56="",H56="",K56=""),N(0),'MOUCHE N°4'!P52)) -> 0 | T56: =IF('INFORMATIONS COMPETITEURS'!$D$59="TABLEAU DE SAISIE NON CONFORME","",IF(E56=" ",N(0),IF(COUNT(L56,N56,P56,R56)>0,SUM(L56,N56,P56,R56),N(0)))) -> 0 | AG56: 0 | AI56: 0 | AK56: 0 | AM56: 0 | AO56: 0
D57: ='INFORMATIONS COMPETITEURS'!D52 -> 44 | E57: =IF('INFORMATIONS COMPETITEURS'!$D$59="TABLEAU DE SAISIE CONFORME",CONCATENATE('INFORMATIONS COMPETITEURS'!G52," ",'INFORMATIONS COMPETITEURS'!E52),"") ->  | H57: =IF('INFORMATIONS COMPETITEURS'!$D$59="TABLEAU DE SAISIE CONFORME",IF('INFORMATIONS COMPETITEURS'!I52="","",'INFORMATIONS COMPETITEURS'!I52),"") ->  | K57: =IF('INFORMATIONS COMPETITEURS'!$D$59="TABLEAU DE SAISIE CONFORME",IF(COUNTBLANK('INFORMATIONS COMPETITEURS'!L52)=1,"",'INFORMATIONS COMPETITEURS'!L52),"") ->  | L57: =IF('INFORMATIONS COMPETITEURS'!$D$59="TABLEAU DE SAISIE NON CONFORME","",IF(OR(E57="",H57="",K57=""),N(0),'MOUCHE N°1'!P53)) -> 0 | N57: =IF('INFORMATIONS COMPETITEURS'!$D$59="TABLEAU DE SAISIE NON CONFORME","",IF(OR(E57="",H57="",K57=""),N(0),'MOUCHE N°2'!P53)) -> 0 | P57: =IF('INFORMATIONS COMPETITEURS'!$D$59="TABLEAU DE SAISIE NON CONFORME","",IF(OR(E57="",H57="",K57=""),N(0),'MOUCHE N°3'!P53)) -> 0 | R57: =IF('INFORMATIONS COMPETITEURS'!$D$59="TABLEAU DE SAISIE NON CONFORME","",IF(OR(E57="",H57="",K57=""),N(0),'MOUCHE N°4'!P53)) -> 0 | T57: =IF('INFORMATIONS COMPETITEURS'!$D$59="TABLEAU DE SAISIE NON CONFORME","",IF(E57=" ",N(0),IF(COUNT(L57,N57,P57,R57)>0,SUM(L57,N57,P57,R57),N(0)))) -> 0 | AG57: 0 | AI57: 0 | AK57: 0 | AM57: 0 | AO57: 0 | BN57: =IF(BO57="","",IF(ISERROR(IF(AND(BW57=BW56,BY57=BY56,CE57=CE56),BN56,BN56+1)),"",IF(AND(BW57=BW56,BY57=BY56,CE57=CE56),BN56,BN56+1))) ->  | CI57: =IF(CJ57="","",IF(ISERROR(IF(AND(CR57=CR56,CT57=CT56,CZ57=CZ56),CI56,CI56+1)),"",IF(AND(CR57=CR56,CT57=CT56,CZ57=CZ56),CI56,CI56+1))) ->  | DD57: =IF(DE57="","",IF(ISERROR(IF(AND(DM57=DM56,DO57=DO56,DU57=DU56),DD56,DD56+1)),"",IF(AND(DM57=DM56,DO57=DO56,DU57=DU56),DD56,DD56+1))) ->  | DY57: =IF(DZ57="","",IF(ISERROR(IF(AND(EH57=EH56,EJ57=EJ56,EP57=EP56),DY56,DY56+1)),"",IF(AND(EH57=EH56,EJ57=EJ56,EP57=EP56),DY56,DY56+1))) ->  | ET57: =IF(EU57="","",IF(ISERROR(IF(AND(FC57=FC56,FE57=FE56,FK57=FK56),ET56,ET56+1)),"",IF(AND(FC57=FC56,FE57=FE56,FK57=FK56),ET56,ET56+1))) ->  | FO57: =IF(FP57="","",IF(ISERROR(IF(AND(FX57=FX56,FZ57=FZ56,GF57=GF56),FO56,FO56+1)),"",IF(AND(FX57=FX56,FZ57=FZ56,GF57=GF56),FO56,FO56+1))) -> 
D58: ='INFORMATIONS COMPETITEURS'!D53 -> 45 | E58: =IF('INFORMATIONS COMPETITEURS'!$D$59="TABLEAU DE SAISIE CONFORME",CONCATENATE('INFORMATIONS COMPETITEURS'!G53," ",'INFORMATIONS COMPETITEURS'!E53),"") ->  | H58: =IF('INFORMATIONS COMPETITEURS'!$D$59="TABLEAU DE SAISIE CONFORME",IF('INFORMATIONS COMPETITEURS'!I53="","",'INFORMATIONS COMPETITEURS'!I53),"") ->  | K58: =IF('INFORMATIONS COMPETITEURS'!$D$59="TABLEAU DE SAISIE CONFORME",IF(COUNTBLANK('INFORMATIONS COMPETITEURS'!L53)=1,"",'INFORMATIONS COMPETITEURS'!L53),"") ->  | L58: =IF('INFORMATIONS COMPETITEURS'!$D$59="TABLEAU DE SAISIE NON CONFORME","",IF(OR(E58="",H58="",K58=""),N(0),'MOUCHE N°1'!P54)) -> 0 | N58: =IF('INFORMATIONS COMPETITEURS'!$D$59="TABLEAU DE SAISIE NON CONFORME","",IF(OR(E58="",H58="",K58=""),N(0),'MOUCHE N°2'!P54)) -> 0 | P58: =IF('INFORMATIONS COMPETITEURS'!$D$59="TABLEAU DE SAISIE NON CONFORME","",IF(OR(E58="",H58="",K58=""),N(0),'MOUCHE N°3'!P54)) -> 0 | R58: =IF('INFORMATIONS COMPETITEURS'!$D$59="TABLEAU DE SAISIE NON CONFORME","",IF(OR(E58="",H58="",K58=""),N(0),'MOUCHE N°4'!P54)) -> 0 | T58: =IF('INFORMATIONS COMPETITEURS'!$D$59="TABLEAU DE SAISIE NON CONFORME","",IF(E58=" ",N(0),IF(COUNT(L58,N58,P58,R58)>0,SUM(L58,N58,P58,R58),N(0)))) -> 0 | AG58: 0 | AI58: 0 | AK58: 0 | AM58: 0 | AO58: 0 | CI58: =IF(CJ58="","",IF(ISERROR(IF(AND(CR58=CR57,CT58=CT57,CZ58=CZ57),CI57,CI57+1)),"",IF(AND(CR58=CR57,CT58=CT57,CZ58=CZ57),CI57,CI57+1))) ->  | DD58: =IF(DE58="","",IF(ISERROR(IF(AND(DM58=DM57,DO58=DO57,DU58=DU57),DD57,DD57+1)),"",IF(AND(DM58=DM57,DO58=DO57,DU58=DU57),DD57,DD57+1))) ->  | DY58: =IF(DZ58="","",IF(ISERROR(IF(AND(EH58=EH57,EJ58=EJ57,EP58=EP57),DY57,DY57+1)),"",IF(AND(EH58=EH57,EJ58=EJ57,EP58=EP57),DY57,DY57+1))) ->  | ET58: =IF(EU58="","",IF(ISERROR(IF(AND(FC58=FC57,FE58=FE57,FK58=FK57),ET57,ET57+1)),"",IF(AND(FC58=FC57,FE58=FE57,FK58=FK57),ET57,ET57+1))) ->  | FO58: =IF(FP58="","",IF(ISERROR(IF(AND(FX58=FX57,FZ58=FZ57,GF58=GF57),FO57,FO57+1)),"",IF(AND(FX58=FX57,FZ58=FZ57,GF58=GF57),FO57,FO57+1))) ->  | GJ58: =IF(GK58="","",IF(ISERROR(IF(AND(GS58=GS57,GU58=GU57,HA58=HA57),GJ57,GJ57+1)),"",IF(AND(GS58=GS57,GU58=GU57,HA58=HA57),GJ57,GJ57+1))) -> 
D59: ='INFORMATIONS COMPETITEURS'!D54 -> 46 | E59: =IF('INFORMATIONS COMPETITEURS'!$D$59="TABLEAU DE SAISIE CONFORME",CONCATENATE('INFORMATIONS COMPETITEURS'!G54," ",'INFORMATIONS COMPETITEURS'!E54),"") ->  | H59: =IF('INFORMATIONS COMPETITEURS'!$D$59="TABLEAU DE SAISIE CONFORME",IF('INFORMATIONS COMPETITEURS'!I54="","",'INFORMATIONS COMPETITEURS'!I54),"") ->  | K59: =IF('INFORMATIONS COMPETITEURS'!$D$59="TABLEAU DE SAISIE CONFORME",IF(COUNTBLANK('INFORMATIONS COMPETITEURS'!L54)=1,"",'INFORMATIONS COMPETITEURS'!L54),"") ->  | L59: =IF('INFORMATIONS COMPETITEURS'!$D$59="TABLEAU DE SAISIE NON CONFORME","",IF(OR(E59="",H59="",K59=""),N(0),'MOUCHE N°1'!P55)) -> 0 | N59: =IF('INFORMATIONS COMPETITEURS'!$D$59="TABLEAU DE SAISIE NON CONFORME","",IF(OR(E59="",H59="",K59=""),N(0),'MOUCHE N°2'!P55)) -> 0 | P59: =IF('INFORMATIONS COMPETITEURS'!$D$59="TABLEAU DE SAISIE NON CONFORME","",IF(OR(E59="",H59="",K59=""),N(0),'MOUCHE N°3'!P55)) -> 0 | R59: =IF('INFORMATIONS COMPETITEURS'!$D$59="TABLEAU DE SAISIE NON CONFORME","",IF(OR(E59="",H59="",K59=""),N(0),'MOUCHE N°4'!P55)) -> 0 | T59: =IF('INFORMATIONS COMPETITEURS'!$D$59="TABLEAU DE SAISIE NON CONFORME","",IF(E59=" ",N(0),IF(COUNT(L59,N59,P59,R59)>0,SUM(L59,N59,P59,R59),N(0)))) -> 0 | AG59: 0 | AI59: 0 | AK59: 0 | AM59: 0 | AO59: 0 | GJ59: =IF(GK59="","",IF(ISERROR(IF(AND(GS59=GS58,GU59=GU58,HA59=HA58),GJ58,GJ58+1)),"",IF(AND(GS59=GS58,GU59=GU58,HA59=HA58),GJ58,GJ58+1))) -> 
D60: ='INFORMATIONS COMPETITEURS'!D55 -> 47 | E60: =IF('INFORMATIONS COMPETITEURS'!$D$59="TABLEAU DE SAISIE CONFORME",CONCATENATE('INFORMATIONS COMPETITEURS'!G55," ",'INFORMATIONS COMPETITEURS'!E55),"") ->  | H60: =IF('INFORMATIONS COMPETITEURS'!$D$59="TABLEAU DE SAISIE CONFORME",IF('INFORMATIONS COMPETITEURS'!I55="","",'INFORMATIONS COMPETITEURS'!I55),"") ->  | K60: =IF('INFORMATIONS COMPETITEURS'!$D$59="TABLEAU DE SAISIE CONFORME",IF(COUNTBLANK('INFORMATIONS COMPETITEURS'!L55)=1,"",'INFORMATIONS COMPETITEURS'!L55),"") ->  | L60: =IF('INFORMATIONS COMPETITEURS'!$D$59="TABLEAU DE SAISIE NON CONFORME","",IF(OR(E60="",H60="",K60=""),N(0),'MOUCHE N°1'!P56)) -> 0 | N60: =IF('INFORMATIONS COMPETITEURS'!$D$59="TABLEAU DE SAISIE NON CONFORME","",IF(OR(E60="",H60="",K60=""),N(0),'MOUCHE N°2'!P56)) -> 0 | P60: =IF('INFORMATIONS COMPETITEURS'!$D$59="TABLEAU DE SAISIE NON CONFORME","",IF(OR(E60="",H60="",K60=""),N(0),'MOUCHE N°3'!P56)) -> 0 | R60: =IF('INFORMATIONS COMPETITEURS'!$D$59="TABLEAU DE SAISIE NON CONFORME","",IF(OR(E60="",H60="",K60=""),N(0),'MOUCHE N°4'!P56)) -> 0 | T60: =IF('INFORMATIONS COMPETITEURS'!$D$59="TABLEAU DE SAISIE NON CONFORME","",IF(E60=" ",N(0),IF(COUNT(L60,N60,P60,R60)>0,SUM(L60,N60,P60,R60),N(0)))) -> 0 | AG60: 0 | AI60: 0 | AK60: 0 | AM60: 0 | AO60: 0
D61: ='INFORMATIONS COMPETITEURS'!D56 -> 48 | E61: =IF('INFORMATIONS COMPETITEURS'!$D$59="TABLEAU DE SAISIE CONFORME",CONCATENATE('INFORMATIONS COMPETITEURS'!G56," ",'INFORMATIONS COMPETITEURS'!E56),"") ->  | H61: =IF('INFORMATIONS COMPETITEURS'!$D$59="TABLEAU DE SAISIE CONFORME",IF('INFORMATIONS COMPETITEURS'!I56="","",'INFORMATIONS COMPETITEURS'!I56),"") ->  | K61: =IF('INFORMATIONS COMPETITEURS'!$D$59="TABLEAU DE SAISIE CONFORME",IF(COUNTBLANK('INFORMATIONS COMPETITEURS'!L56)=1,"",'INFORMATIONS COMPETITEURS'!L56),"") ->  | L61: =IF('INFORMATIONS COMPETITEURS'!$D$59="TABLEAU DE SAISIE NON CONFORME","",IF(OR(E61="",H61="",K61=""),N(0),'MOUCHE N°1'!P57)) -> 0 | N61: =IF('INFORMATIONS COMPETITEURS'!$D$59="TABLEAU DE SAISIE NON CONFORME","",IF(OR(E61="",H61="",K61=""),N(0),'MOUCHE N°2'!P57)) -> 0 | P61: =IF('INFORMATIONS COMPETITEURS'!$D$59="TABLEAU DE SAISIE NON CONFORME","",IF(OR(E61="",H61="",K61=""),N(0),'MOUCHE N°3'!P57)) -> 0 | R61: =IF('INFORMATIONS COMPETITEURS'!$D$59="TABLEAU DE SAISIE NON CONFORME","",IF(OR(E61="",H61="",K61=""),N(0),'MOUCHE N°4'!P57)) -> 0 | T61: =IF('INFORMATIONS COMPETITEURS'!$D$59="TABLEAU DE SAISIE NON CONFORME","",IF(E61=" ",N(0),IF(COUNT(L61,N61,P61,R61)>0,SUM(L61,N61,P61,R61),N(0)))) -> 0 | AG61: 0 | AI61: 0 | AK61: 0 | AM61: 0 | AO61: 0 | AS61: =IF(AT61="","",IF(ISERROR(IF(AND(BB61=BB60,BD61=BD60,BJ61=BJ60),AS60,AS60+1)),"",IF(AND(BB61=BB60,BD61=BD60,BJ61=BJ60),AS60,AS60+1))) -> 
D62: ='INFORMATIONS COMPETITEURS'!D57 -> 49 | E62: =IF('INFORMATIONS COMPETITEURS'!$D$59="TABLEAU DE SAISIE CONFORME",CONCATENATE('INFORMATIONS COMPETITEURS'!G57," ",'INFORMATIONS COMPETITEURS'!E57),"") ->  | H62: =IF('INFORMATIONS COMPETITEURS'!$D$59="TABLEAU DE SAISIE CONFORME",IF('INFORMATIONS COMPETITEURS'!I57="","",'INFORMATIONS COMPETITEURS'!I57),"") ->  | K62: =IF('INFORMATIONS COMPETITEURS'!$D$59="TABLEAU DE SAISIE CONFORME",IF(COUNTBLANK('INFORMATIONS COMPETITEURS'!L57)=1,"",'INFORMATIONS COMPETITEURS'!L57),"") ->  | L62: =IF('INFORMATIONS COMPETITEURS'!$D$59="TABLEAU DE SAISIE NON CONFORME","",IF(OR(E62="",H62="",K62=""),N(0),'MOUCHE N°1'!P58)) -> 0 | N62: =IF('INFORMATIONS COMPETITEURS'!$D$59="TABLEAU DE SAISIE NON CONFORME","",IF(OR(E62="",H62="",K62=""),N(0),'MOUCHE N°2'!P58)) -> 0 | P62: =IF('INFORMATIONS COMPETITEURS'!$D$59="TABLEAU DE SAISIE NON CONFORME","",IF(OR(E62="",H62="",K62=""),N(0),'MOUCHE N°3'!P58)) -> 0 | R62: =IF('INFORMATIONS COMPETITEURS'!$D$59="TABLEAU DE SAISIE NON CONFORME","",IF(OR(E62="",H62="",K62=""),N(0),'MOUCHE N°4'!P58)) -> 0 | T62: =IF('INFORMATIONS COMPETITEURS'!$D$59="TABLEAU DE SAISIE NON CONFORME","",IF(E62=" ",N(0),IF(COUNT(L62,N62,P62,R62)>0,SUM(L62,N62,P62,R62),N(0)))) -> 0 | AG62: 0 | AI62: 0 | AK62: 0 | AM62: 0 | AO62: 0
D63: ='INFORMATIONS COMPETITEURS'!D58 -> 50 | E63: =IF('INFORMATIONS COMPETITEURS'!$D$59="TABLEAU DE SAISIE CONFORME",CONCATENATE('INFORMATIONS COMPETITEURS'!G58," ",'INFORMATIONS COMPETITEURS'!E58),"") ->  | H63: =IF('INFORMATIONS COMPETITEURS'!$D$59="TABLEAU DE SAISIE CONFORME",IF('INFORMATIONS COMPETITEURS'!I58="","",'INFORMATIONS COMPETITEURS'!I58),"") ->  | K63: =IF('INFORMATIONS COMPETITEURS'!$D$59="TABLEAU DE SAISIE CONFORME",IF(COUNTBLANK('INFORMATIONS COMPETITEURS'!L58)=1,"",'INFORMATIONS COMPETITEURS'!L58),"") ->  | L63: =IF('INFORMATIONS COMPETITEURS'!$D$59="TABLEAU DE SAISIE NON CONFORME","",IF(OR(E63="",H63="",K63=""),N(0),'MOUCHE N°1'!P59)) -> 0 | N63: =IF('INFORMATIONS COMPETITEURS'!$D$59="TABLEAU DE SAISIE NON CONFORME","",IF(OR(E63="",H63="",K63=""),N(0),'MOUCHE N°2'!P59)) -> 0 | P63: =IF('INFORMATIONS COMPETITEURS'!$D$59="TABLEAU DE SAISIE NON CONFORME","",IF(OR(E63="",H63="",K63=""),N(0),'MOUCHE N°3'!P59)) -> 0 | R63: =IF('INFORMATIONS COMPETITEURS'!$D$59="TABLEAU DE SAISIE NON CONFORME","",IF(OR(E63="",H63="",K63=""),N(0),'MOUCHE N°4'!P59)) -> 0 | T63: =IF('INFORMATIONS COMPETITEURS'!$D$59="TABLEAU DE SAISIE NON CONFORME","",IF(E63=" ",N(0),IF(COUNT(L63,N63,P63,R63)>0,SUM(L63,N63,P63,R63),N(0)))) -> 0 | X63: =IF(Y63="","",IF(ISERROR(IF(AND(AG63=AG62,AI63=AI62,AO63=AO62),X62,X62+1)),"",IF(AND(AG63=AG62,AI63=AI62,AO63=AO62),X62,X62+1))) ->  | AG63: 0 | AI63: 0 | AK63: 0 | AM63: 0 | AO63: 0
D71: 1 | AF71: 1 | AH71: =IF('INFORMATIONS COMPETITEURS'!L9="","",'INFORMATIONS COMPETITEURS'!L9) -> Sénior | AK71: Code info. compétiteurs : | AM71: =IF('INFORMATIONS COMPETITEURS'!D59="TABLEAU DE SAISIE CONFORME",1,0) -> 1
D72: 2 | AF72: 2 | AH72: =IF('INFORMATIONS COMPETITEURS'!L10="","",'INFORMATIONS COMPETITEURS'!L10) -> Sénior | AK72: Code Sénior : | AM72: =COUNTIF($AH$71:$AH$120,"Sénior") -> 19
D73: 3 | AF73: 3 | AH73: =IF('INFORMATIONS COMPETITEURS'!L11="","",'INFORMATIONS COMPETITEURS'!L11) -> Sénior | AK73: Code Junior : | AM73: =COUNTIF($AH$71:$AH$120,"Junior") -> 0
D74: 4 | AF74: 4 | AH74: =IF('INFORMATIONS COMPETITEURS'!L12="","",'INFORMATIONS COMPETITEURS'!L12) -> Minime | AK74: Code Benjamin : | AM74: =COUNTIF($AH$71:$AH$120,"Benjamin") -> 2
D75: 5 | AF75: 5 | AH75: =IF('INFORMATIONS COMPETITEURS'!L13="","",'INFORMATIONS COMPETITEURS'!L13) -> Féminine | AK75: Code Autre : | AM75: =COUNTIF($AH$71:$AH$120,"Handisport") -> 1
D76: 6 | AF76: 6 | AH76: =IF('INFORMATIONS COMPETITEURS'!L14="","",'INFORMATIONS COMPETITEURS'!L14) -> Sénior | AK76: Code Cadet : | AM76: =COUNTIF($AH$71:$AH$120,"Cadet") -> 2
D77: 7 | AF77: 7 | AH77: =IF('INFORMATIONS COMPETITEURS'!L15="","",'INFORMATIONS COMPETITEURS'!L15) -> Sénior | AK77: Code Minime : | AM77: =COUNTIF($AH$71:$AH$120,"Minime") -> 3
D78: 8 | AF78: 8 | AH78: =IF('INFORMATIONS COMPETITEURS'!L16="","",'INFORMATIONS COMPETITEURS'!L16) -> Cadet | AK78: Code Découverte : | AM78: =COUNTIF($AH$71:$AH$120,"Découverte") -> 0
D79: 9 | AF79: 9 | AH79: =IF('INFORMATIONS COMPETITEURS'!L17="","",'INFORMATIONS COMPETITEURS'!L17) -> Féminine | AK79: Code Féminine : | AM79: =COUNTIF($AH$71:$AH$120,"Féminine") -> 2
D80: 10 | AF80: 10 | AH80: =IF('INFORMATIONS COMPETITEURS'!L18="","",'INFORMATIONS COMPETITEURS'!L18) -> Sénior
D81: 11 | AF81: 11 | AH81: =IF('INFORMATIONS COMPETITEURS'!L19="","",'INFORMATIONS COMPETITEURS'!L19) -> Handisport
D82: 12 | AF82: 12 | AH82: =IF('INFORMATIONS COMPETITEURS'!L20="","",'INFORMATIONS COMPETITEURS'!L20) -> Sénior
D83: 13 | AF83: 13 | AH83: =IF('INFORMATIONS COMPETITEURS'!L21="","",'INFORMATIONS COMPETITEURS'!L21) -> Sénior
D84: 14 | AF84: 14 | AH84: =IF('INFORMATIONS COMPETITEURS'!L22="","",'INFORMATIONS COMPETITEURS'!L22) -> Sénior
D85: 15 | AF85: 15 | AH85: =IF('INFORMATIONS COMPETITEURS'!L23="","",'INFORMATIONS COMPETITEURS'!L23) -> Sénior
D86: 16 | AF86: 16 | AH86: =IF('INFORMATIONS COMPETITEURS'!L24="","",'INFORMATIONS COMPETITEURS'!L24) -> Sénior
D87: 17 | AF87: 17 | AH87: =IF('INFORMATIONS COMPETITEURS'!L25="","",'INFORMATIONS COMPETITEURS'!L25) -> Benjamin
D88: 18 | AF88: 18 | AH88: =IF('INFORMATIONS COMPETITEURS'!L26="","",'INFORMATIONS COMPETITEURS'!L26) -> Sénior
D89: 19 | AF89: 19 | AH89: =IF('INFORMATIONS COMPETITEURS'!L27="","",'INFORMATIONS COMPETITEURS'!L27) -> Sénior
D90: 20 | AF90: 20 | AH90: =IF('INFORMATIONS COMPETITEURS'!L28="","",'INFORMATIONS COMPETITEURS'!L28) -> Benjamin
D91: 21 | AF91: 21 | AH91: =IF('INFORMATIONS COMPETITEURS'!L29="","",'INFORMATIONS COMPETITEURS'!L29) -> Minime
D92: 22 | AF92: 22 | AH92: =IF('INFORMATIONS COMPETITEURS'!L30="","",'INFORMATIONS COMPETITEURS'!L30) -> Sénior
D93: 23 | AF93: 23 | AH93: =IF('INFORMATIONS COMPETITEURS'!L31="","",'INFORMATIONS COMPETITEURS'!L31) -> Sénior
D94: 24 | AF94: 24 | AH94: =IF('INFORMATIONS COMPETITEURS'!L32="","",'INFORMATIONS COMPETITEURS'!L32) -> Sénior
D95: 25 | AF95: 25 | AH95: =IF('INFORMATIONS COMPETITEURS'!L33="","",'INFORMATIONS COMPETITEURS'!L33) -> Sénior
D96: 26 | AF96: 26 | AH96: =IF('INFORMATIONS COMPETITEURS'!L34="","",'INFORMATIONS COMPETITEURS'!L34) -> Sénior
D97: 27 | AF97: 27 | AH97: =IF('INFORMATIONS COMPETITEURS'!L35="","",'INFORMATIONS COMPETITEURS'!L35) -> Cadet
D98: 28 | AF98: 28 | AH98: =IF('INFORMATIONS COMPETITEURS'!L36="","",'INFORMATIONS COMPETITEURS'!L36) -> Sénior
D99: 29 | AF99: 29 | AH99: =IF('INFORMATIONS COMPETITEURS'!L37="","",'INFORMATIONS COMPETITEURS'!L37) -> Minime
D100: 30 | AF100: 30 | AH100: =IF('INFORMATIONS COMPETITEURS'!L38="","",'INFORMATIONS COMPETITEURS'!L38) -> 
D101: 31 | AF101: 31 | AH101: =IF('INFORMATIONS COMPETITEURS'!L39="","",'INFORMATIONS COMPETITEURS'!L39) -> 
D102: 32 | AF102: 32 | AH102: =IF('INFORMATIONS COMPETITEURS'!L40="","",'INFORMATIONS COMPETITEURS'!L40) -> 
D103: 33 | AF103: 33 | AH103: =IF('INFORMATIONS COMPETITEURS'!L41="","",'INFORMATIONS COMPETITEURS'!L41) -> 
D104: 34 | AF104: 34 | AH104: =IF('INFORMATIONS COMPETITEURS'!L42="","",'INFORMATIONS COMPETITEURS'!L42) -> 
D105: 35 | AF105: 35 | AH105: =IF('INFORMATIONS COMPETITEURS'!L43="","",'INFORMATIONS COMPETITEURS'!L43) -> 
D106: 36 | AF106: 36 | AH106: =IF('INFORMATIONS COMPETITEURS'!L44="","",'INFORMATIONS COMPETITEURS'!L44) -> 
D107: 37 | AF107: 37 | AH107: =IF('INFORMATIONS COMPETITEURS'!L45="","",'INFORMATIONS COMPETITEURS'!L45) -> 
D108: 38 | AF108: 38 | AH108: =IF('INFORMATIONS COMPETITEURS'!L46="","",'INFORMATIONS COMPETITEURS'!L46) -> 
D109: 39 | AF109: 39 | AH109: =IF('INFORMATIONS COMPETITEURS'!L47="","",'INFORMATIONS COMPETITEURS'!L47) -> 
D110: 40 | AF110: 40 | AH110: =IF('INFORMATIONS COMPETITEURS'!L48="","",'INFORMATIONS COMPETITEURS'!L48) -> 
D111: 41 | AF111: 41 | AH111: =IF('INFORMATIONS COMPETITEURS'!L49="","",'INFORMATIONS COMPETITEURS'!L49) -> 
D112: 42 | AF112: 42 | AH112: =IF('INFORMATIONS COMPETITEURS'!L50="","",'INFORMATIONS COMPETITEURS'!L50) -> 
D113: 43 | AF113: 43 | AH113: =IF('INFORMATIONS COMPETITEURS'!L51="","",'INFORMATIONS COMPETITEURS'!L51) -> 
D114: 44 | AF114: 44 | AH114: =IF('INFORMATIONS COMPETITEURS'!L52="","",'INFORMATIONS COMPETITEURS'!L52) -> 
D115: 45 | AF115: 45 | AH115: =IF('INFORMATIONS COMPETITEURS'!L53="","",'INFORMATIONS COMPETITEURS'!L53) -> 
D116: 46 | AF116: 46 | AH116: =IF('INFORMATIONS COMPETITEURS'!L54="","",'INFORMATIONS COMPETITEURS'!L54) -> 
D117: 47 | AF117: 47 | AH117: =IF('INFORMATIONS COMPETITEURS'!L55="","",'INFORMATIONS COMPETITEURS'!L55) -> 
D118: 48 | AF118: 48 | AH118: =IF('INFORMATIONS COMPETITEURS'!L56="","",'INFORMATIONS COMPETITEURS'!L56) -> 
D119: 49 | AF119: 49 | AH119: =IF('INFORMATIONS COMPETITEURS'!L57="","",'INFORMATIONS COMPETITEURS'!L57) -> 
D120: 50 | AF120: 50 | AH120: =IF('INFORMATIONS COMPETITEURS'!L58="","",'INFORMATIONS COMPETITEURS'!L58) -> 
